Workbook

Sheet Intro & Checklist
D1: Version 3.3.0M
B2: Environmental Accounting Report Calculator General Info & Checklist
B3: This calculator measures the carbon emissions generated and resources used and saved by your production based on information you enter on emission sources such as utility electricity and heating, fuel, flight and hotel use. Information for each emission source is collected on a separate worksheet tab. Information is not required for every tab, and should only be entered for the emission sources associated with your production. The table below provides a general description of the information collected and data collection status for each emission source data collection worksheet.
B4: Please contact XXXX at XXXXXX with any questions.
B5: Click on a tab name to link to the sheet
B6: Status | C6: Calculator Tab | D6: Description | E6: Potential Sources of Data
B7: ='1-Production Info'!J14 -> Data Not Entered | C7: 1-Production Information | D7: Calculator contact information & general production information including production name, headquarters location & schedule. Production location information (e.g., production offices, warehouses, stages) used for utility electricity, natural gas & heating oil tracking
B8: ='2-Electricity'!N10 -> Data Not Entered | C8: 2-Electricity | D8: Total electricity used for all locations entered in Production Info | E8: utility heating bills location lease or real estate information procurement (natural gas or heating oil cost)
B9: ='3-Nat Gas & Heating Oil'!P8 -> Data Not Entered | C9: 3-Natural Gas & Heating | D9: Total natural gas and/or heating oil used for all locations entered in Production Info, if appropriate | E9: electricity bills location lease or real estate information procurement (electricity cost)
B10: ='4-Fuel'!O9 -> Data Not Entered | C10: 4-Fuel | D10: Fuel used for equipment (e.g., generators) and vehicles
B11: ='5-Hotels-Housing'!L6 -> Data Not Entered | C11: 5-Hotels & Housing | D11: Number of days and location of hotels, houses and condos rented during the production
B12: ='6-Commercial Air Travel'!N8 -> Data Not Entered | C12: 6-Commercial Air Travel | D12: Passenger miles and routes (if applicable) traveled on commercial airlines
B13: ='7-Charter and Heli Flights'!L6 -> Data Not Entered | C13: 7-Charter & Helicopter Flights | D13: Fuel, hours or distance traveled on charter jets and helicopters
B14: ='EAR Metrics'!S15 -> No Data Entered | C14: Environmental Accounting Report Metrics | D14: Waste: Landfill, Compost and Recycling
B15: ='EAR Metrics'!S55 -> No data Entered | D15: Drinking Water (water/refillable bottles)
B16: ='EAR Metrics'!P63 -> No Data Entered | D16: Fuel Savings (e.g. biodiesel/hybrid rentals)
B17: ='EAR Metrics'!O83 -> No Data Entered | D17: Donations (food and wrap)
B18: ='EAR Metrics'!P94 -> No Data Entered | D18: Paper, Recycled Content
B19: ='EAR Metrics'!P132 -> No Data Entered | D19: Lauan/Meranti Plywood
B20: =IF(Results!E10="Data Error", "Data Input Error", IF(Results!E10>0, "Data Entered Correctly", "Data Not Entered")) -> Data Not Entered | C20: Environmental Accounting Report | D20: Carbon Footprint Summary: presents emissions results based on the information added in tabs 1 through 7
B21: ='EAR Metrics'!T5 -> Data not entered | D21: Other Environmental Activities: Presents results for up to four Environmental Activities selected on the EAR Metrics page
D22: Updated January 2014

Sheet 1-Production Info
B2: Click for Checklist | D2: Required field | F2: Input not required | G2: Go to EAR
B4: Production Calculator Contact | F4: Production Coordinator Sign Off
B5: Name | C5: Phone Number | D5: Date | F5: Name | G5: Date
B8: =C10&" Production Information" -> Production Information
B9: Production Type:
B10: Production Name: | D10: Start Date: | F10: End Date:
A11: Film | B11: Category of Film by Budget: | D11: Total Number of Shoot Days: | F11: Region:
A12: TV | B12: Type of TV Production: | D12: Number Episodes: | F12: Region:
B13: Main Production Office Location: | D13: Number of Days for Prep: | F13: Number of Days for Wrap:
A14: Film | B14: Total Number of 1st Unit Shoot Days: | D14: Total Number of 2nd Unit Shoot Days: | F14: Other/Additional Photography Shoot Days: | I14: Status: | J14: =IF(ISERROR(SUM(K:K)),"Data Input Error",IF((L19>0),"Data Entered Correctly","Data Not Entered")) -> Data Not Entered
B15: Headquarter State/Province: | D15: Number of On Location Days: | F15: Number of Stage Days: | I15: =IF(OR(C14="USA", C14="Canada", C14= "Australia"), "StatesList", "") -> 
A16: TV | D16: Total Number of Shoot Days: | I16: TV only- HIDE ROW IF FILM
B17: For each production location, enter the name, selet the location type and country. Additional address information is optional. These locations are used on the electricity and natural gas & heating oil tabs.
B18: Locations | I18: Location Calculations
B19: Location Name | C19: Location Type | D19: Country | E19: State/Province | F19: Address (optional) | G19: City & Postal Code (optional) | I19: StatesDropdown | J19: Elec Region | K19: eGRID Factor | L19: =SUM(K:K) -> 0
I20: =IF(OR(D20="USA", D20="Canada", D20= "Australia"), "StatesList", "") ->  | J20: =IF(ISBLANK(D20),"", IF(OR(D20="Canada", D20="Australia", D20="USA"), CONCATENATE(D20,E20), D20)) ->  | K20: =IF(ISBLANK(B20), "", VLOOKUP(J20,ElecFactor,5,FALSE)) -> 
I21: =IF(OR(D21="USA", D21="Canada", D21= "Australia"), "StatesList", "") ->  | J21: =IF(ISBLANK(D21),"", IF(OR(D21="Canada", D21="Australia", D21="USA"), CONCATENATE(D21,E21), D21)) ->  | K21: =IF(ISBLANK(B21), "", VLOOKUP(J21,ElecFactor,5,FALSE)) -> 
J44: =IF(ISBLANK(D44),"", IF(OR(D44="Canada", D44="Australia", D44="USA"), CONCATENATE(D44,E44), D44)) -> 
I45: =IF(OR(D45="USA", D45="Canada", D45= "Australia"), "StatesList", "") ->  | J45: =IF(ISBLANK(D45),"", IF(OR(D45="Canada", D45="Australia", D45="USA"), CONCATENATE(D45,E45), D45)) ->  | K45: =IF(ISBLANK(B45), "", VLOOKUP(J45,ElecFactor,5,FALSE)) -> 
I88: =IF(OR(D88="USA", D88="Canada", D88= "Australia"), "StatesList", "") ->  | J88: =IF(ISBLANK(D88),"", IF(OR(D88="Canada", D88="Australia", D88="USA"), CONCATENATE(D88,E88), D88)) ->  | K88: =IF(ISBLANK(B88), "", VLOOKUP(J88,ElecFactor,5,FALSE)) -> 

Sheet 2-Electricity
B2: Click for Checklist | C2: Go to EAR | H2: Required field | J2: Input not required
B4: ='1-Production Info'!C10& " Purchased Electricity" -> Purchased Electricity | W4: Instructions
B6: Did You Purchase Renewable Energy or RECs? | E6: Comments | X6: 1. General Electricity Questions: Select Yes or No from the dropdowns to identify if you purchased renewable energy, RECs or used power drops on your production. Enter comments about your production energy use (optional)
B8: Did you use power drops?
B9: How much energy was powered from power drops? | X9: 2. Location: Select a Location Name from the dropdown box. Locations are entered in column B of the Production Info Tab
M10: Status: | N10: =IF(ISERROR(U14),"Data Input Error",IF(U14<>SUM(U15:U17),"Multiple Options Entered",IF(U14>0,"Data Entered Correctly","Data Not Entered"))) -> Data Not Entered | X10: 3. From & End Date (optional):- Enter the start and end date of the location electricity information (e.g., the dates on the invoice) into column C and D, respectively
B11: Locations entered in Production Info tab | E11: Enter information only for ONE option for each location
B12: Location Name | C12: From Date (optional) | D12: End Date (optional) | E12: PREFERRED OPTION | F12: Second Option | I12: Third Option | K12: Option Selected | M12: Electricity Calculations | T12: Emission Summary | X12: 4. Enter data for ONE Option for Electricity Information for each location entered: (Note: Include weekends in date ranges, unless specified otherwise. This factors in longer average work days.)
E13: Electricity Use (kWh) | F13: Total Area (e.g., Total Square Feet) | G13: Units | H13: Days Used | I13: Total Cost of Electricity (US$) | J13: Cost Data Source | M13: ElectricityCode | N13: ElecFactor (kgCO2/kWh) | O13: Square Footage | P13: CBECskWh | Q13: CostkWh | R13: CO2 emissions | T13: Emissions | U13: kg CO2 | V13: kWh
K14: =IF(AND(E14>0,I14>0),"Multiple Entered!",IF(AND(F14>0,I14>0),"Multiple Entered!",IF(AND(E14>0,F14>0),"Multiple Entered!",IF(E14>0,"Preferred Option",IF(F14>0,"2nd Option",IF(I14>0,"3rd Option","")))))) ->  | M14: =IF(ISBLANK(B14), "", VLOOKUP(B14, LocationInfo, 9, FALSE)) ->  | N14: =IF(ISBLANK(B14), "", VLOOKUP(M14,ElecFactor,5,FALSE)) ->  | O14: =IF(ISBLANK(G14), "", VLOOKUP(G14,AreaConvert,2,FALSE)*F14) ->  | P14: =IF(ISBLANK(H14),"",(VLOOKUP((VLOOKUP(VLOOKUP(B14,LocationInfo,2,FALSE),CBECSTypes,2,FALSE)),CBECSFactors,2,FALSE)*O14*H14/365)) ->  | Q14: =IF(I14>0, I14/VLOOKUP("Electricity", FuelCost,2,FALSE), "") ->  | R14: =IF(ISBLANK(B14), "", IF(E14>0,E14,IF(F14>0,P14,IF(I14>0,Q14,"")))*N14) ->  | T14: Total | U14: =SUM(R:R) -> 0 | V14: =SUM(V15:V17) -> 0 | Y14: 4.1 Preferred Option- Actual Electricity Use: Enter the actual electricity use (in kWh) for the selected location into column E
K15: =IF(AND(E15>0,I15>0),"Multiple Entered!",IF(AND(F15>0,I15>0),"Multiple Entered!",IF(AND(E15>0,F15>0),"Multiple Entered!",IF(E15>0,"Preferred Option",IF(F15>0,"2nd Option",IF(I15>0,"3rd Option","")))))) ->  | M15: =IF(ISBLANK(B15), "", VLOOKUP(B15, LocationInfo, 9, FALSE)) ->  | O15: =IF(ISBLANK(G15), "", VLOOKUP(G15,AreaConvert,2,FALSE)*F15) ->  | T15: Preferred Option (kWh) | U15: =SUMIF(E:E, ">0",R:R ) -> 0 | V15: =SUM(E:E) -> 0
T16: 2nd Option (square footage) | U16: =SUMIF(P:P, ">0",R:R ) -> 0 | V16: =SUM(P:P) -> 0 | Y16: 4.2 Second Option- Area: Enter the location area in column F, select the area units from column G, and enter the number of days the location was used in column H
T17: 3rd Option (Cost) | U17: =SUMIF(Q:Q, ">0",R:R ) -> 0 | V17: =SUM(Q:Q) -> 0
Y19: 4.3 Third Option- Cost: Enter the total cost of electricity for the location in column I, and select the cost data source (invoice or rent) from column J
W23: Copy Facility Information to Natural Gas Tab: Click the purple button to transfer the location names and Options 2 information (area, units and days used) to the Natural Gas and Heating Oil tab. Clicking the button multiple times will add the same values multiple times.
K46: =IF(AND(E46>0,I46>0),"Multiple Entered!",IF(AND(F46>0,I46>0),"Multiple Entered!",IF(AND(E46>0,F46>0),"Multiple Entered!",IF(E46>0,"Preferred Option",IF(F46>0,"2nd Option",IF(I46>0,"3rd Option","")))))) ->  | M46: =IF(ISBLANK(B46), "", VLOOKUP(B46, LocationInfo, 9, FALSE)) ->  | N46: =IF(ISBLANK(B46), "", VLOOKUP(M46,ElecFactor,5,FALSE)) ->  | O46: =IF(ISBLANK(G46), "", VLOOKUP(G46,AreaConvert,2,FALSE)*F46) ->  | P46: =IF(ISBLANK(H46),"",(VLOOKUP((VLOOKUP(VLOOKUP(B46,LocationInfo,2,FALSE),CBECSTypes,2,FALSE)),CBECSFactors,2,FALSE)*O46*H46/365)) ->  | Q46: =IF(I46>0, I46/VLOOKUP("Electricity", FuelCost,2,FALSE), "") ->  | R46: =IF(ISBLANK(B46), "", IF(E46>0,E46,IF(F46>0,P46,IF(I46>0,Q46,"")))*N46) -> 
K110: =IF(AND(E110>0,I110>0),"Multiple Entered!",IF(AND(F110>0,I110>0),"Multiple Entered!",IF(AND(E110>0,F110>0),"Multiple Entered!",IF(E110>0,"Preferred Option",IF(F110>0,"2nd Option",IF(I110>0,"3rd Option","")))))) ->  | M110: =IF(ISBLANK(B110), "", VLOOKUP(B110, LocationInfo, 9, FALSE)) ->  | N110: =IF(ISBLANK(B110), "", VLOOKUP(M110,ElecFactor,5,FALSE)) ->  | O110: =IF(ISBLANK(G110), "", VLOOKUP(G110,AreaConvert,2,FALSE)*F110) ->  | P110: =IF(ISBLANK(H110),"",(VLOOKUP((VLOOKUP(VLOOKUP(B110,LocationInfo,2,FALSE),CBECSTypes,2,FALSE)),CBECSFactors,2,FALSE)*O110*H110/365)) ->  | Q110: =IF(I110>0, I110/VLOOKUP("Electricity", FuelCost,2,FALSE), "") ->  | R110: =IF(ISBLANK(B110), "", IF(E110>0,E110,IF(F110>0,P110,IF(I110>0,Q110,"")))*N110) -> 

Sheet 3-Nat Gas & Heating Oil
B2: Click for Checklist | D2: Go to EAR | J2: Required field | L2: Input not required
B4: ='1-Production Info'!C10& " Natural Gas & Fuel Oil" -> Natural Gas & Fuel Oil | Y4: Instructions
B6: Comments | Z6: 1. General Natural Gas & Heating Oil Questions: Enter comments about natural gas and heating oil use for your production (optional)
O8: Status: | P8: =IF(ISERROR(X12),"Data Input Error",IF(X12<>SUM(X13:X15),"Multiple Options Entered",IF(X12>0,"Data Entered Correctly","Data Not Entered"))) -> Data Not Entered | Z8: 2. Location-Column B: Select a Location Name from the dropdown box. Locations are entered in Column B of the Production Info Tab
B9: Locations entered in Production Info tab | F9: Enter information only for ONE option for each location
B10: Location Name | C10: From Date (optional) | D10: End Date (optional) | E10: Fuel Type | F10: PREFERRED OPTION | H10: Second Option | K10: Third Option | M10: Option Selected | O10: Natural Gas & Heating Oil Calculations | W10: Emission Summary
F11: Fuel Use Amount | G11: Fuel Use Units | H11: Area | I11: Units | J11: Days Used | K11: Total Cost of Fuel (US$) | L11: Cost Data Source | O11: Standard Fuel Use Amount | P11: Standard Fuel Use Units | Q11: EF (kg CO2/unit) | R11: Square Footage | S11: Fuel Use, CBECs-Est. (Std Units) | T11: Fuel Use, Cost-Est. (Std Unit) | U11: CO2 emissions (kg) | W11: Emissions | X11: kg CO2 | Z11: 3. From & End Date (optional)- Column C & D: enter the start and end date of the location electricity information (e.g., the dates on the invoice)
M12: =IF(AND(F12>0,K12>0),"Multiple Values!",IF(AND(H12>0,K12>0),"Multiple Values!",IF(AND(F12>0,H12>0),"Multiple Values!",IF(F12>0,"Preferred Option",IF(H12>0,"2nd Option",IF(K12>0,"3rd Option","")))))) ->  | O12: =IF(ISBLANK(F12), "", (IF(E12="Natural gas", VLOOKUP(G12,NGConvert,2,FALSE),IF(E12="Fuel Oil", VLOOKUP(G12,FOConvert,2,FALSE),""))*F12)) ->  | P12: =IF(E12="Natural Gas", "Cubic Feet", IF(E12="Fuel Oil", "Gallons","")) ->  | Q12: =IF(ISBLANK(E12), "", VLOOKUP(E12,FuelFactors, 2, FALSE)) ->  | R12: =IF(H12>0, (VLOOKUP(I12,AreaConvert,2,FALSE)*H12), "") ->  | S12: =IF(ISBLANK(J12),"",((VLOOKUP((VLOOKUP(VLOOKUP(B12,LocationInfo,2,FALSE),CBECSTypes,2,FALSE)),CBECSFactors,IF(E12="Natural Gas",3,4),FALSE))*R12*J12/365)) ->  | T12: =IF(ISBLANK(K12), "", K12/VLOOKUP(E12,FuelCost,2,FALSE)) ->  | U12: =IF((F12+H12+K12)=0,"",IF(F12>0,O12,IF(J12>0,S12,IF(K12>0,T12,"")))*Q12) ->  | W12: Total | X12: =SUM(U:U) -> 0 | Z12: 4. Fuel Type- Select the fuel type (natural gas or heating oil) from the dropdown list in column D
M13: =IF(AND(F13>0,K13>0),"Multiple Values!",IF(AND(H13>0,K13>0),"Multiple Values!",IF(AND(F13>0,H13>0),"Multiple Values!",IF(F13>0,"Preferred Option",IF(H13>0,"2nd Option",IF(K13>0,"3rd Option","")))))) ->  | O13: =IF(ISBLANK(F13), "", (IF(E13="Natural gas", VLOOKUP(G13,NGConvert,2,FALSE),IF(E13="Fuel Oil", VLOOKUP(G13,FOConvert,2,FALSE),""))*F13)) ->  | P13: =IF(E13="Natural Gas", "Cubic Feet", IF(E13="Fuel Oil", "Gallons","")) ->  | Q13: =IF(ISBLANK(E13), "", VLOOKUP(E13,FuelFactors, 2, FALSE)) ->  | R13: =IF(H13>0, (VLOOKUP(I13,AreaConvert,2,FALSE)*H13), "") ->  | S13: =IF(ISBLANK(J13),"",((VLOOKUP((VLOOKUP(VLOOKUP(B13,LocationInfo,2,FALSE),CBECSTypes,2,FALSE)),CBECSFactors,IF(E13="Natural Gas",3,4),FALSE))*R13*J13/365)) ->  | T13: =IF(ISBLANK(K13), "", K13/VLOOKUP(E13,FuelCost,2,FALSE)) ->  | U13: =IF((F13+H13+K13)=0,"",IF(F13>0,O13,IF(J13>0,S13,IF(K13>0,T13,"")))*Q13) ->  | W13: Preferred Option (fuel use) | X13: =SUMIF(F:F, ">0",U:U ) -> 0
W14: 2nd Option (square footage) | X14: =SUMIF(S:S, ">0",U:U ) -> 0 | Z14: 5. Enter data for ONE option for Natural Gas or Heating Oil Information for each location entered:
W15: 3rd Option (cost) | X15: =SUMIF(T:T, ">0",U:U ) -> 0
AA16: 5.1 Preferred Option- Actual Fuel Use: Enter the actual natural gas or heating oil used for the selected location in column F and select the associated unit (e.g., cubic feet) for the fuel use amount in column G
AA20: 5.2 Second Option- Area: Enter the total area of the location in column H, select the area units from column I (e.g., square feet), and enter the number of days the location was used in column J
AA23: 5.3 Third Option- Cost: Enter the total cost of natural gas or fuel oil for the location in Column K, and select the cost data source (invoice or rent) from column L
M45: =IF(AND(F45>0,K45>0),"Multiple Values!",IF(AND(H45>0,K45>0),"Multiple Values!",IF(AND(F45>0,H45>0),"Multiple Values!",IF(F45>0,"Preferred Option",IF(H45>0,"2nd Option",IF(K45>0,"3rd Option","")))))) ->  | O45: =IF(ISBLANK(F45), "", (IF(E45="Natural gas", VLOOKUP(G45,NGConvert,2,FALSE),IF(E45="Fuel Oil", VLOOKUP(G45,FOConvert,2,FALSE),""))*F45)) ->  | P45: =IF(E45="Natural Gas", "Cubic Feet", IF(E45="Fuel Oil", "Gallons","")) ->  | Q45: =IF(ISBLANK(E45), "", VLOOKUP(E45,FuelFactors, 2, FALSE)) ->  | R45: =IF(H45>0, (VLOOKUP(I45,AreaConvert,2,FALSE)*H45), "") ->  | S45: =IF(ISBLANK(J45),"",((VLOOKUP((VLOOKUP(VLOOKUP(B45,LocationInfo,2,FALSE),CBECSTypes,2,FALSE)),CBECSFactors,IF(E45="Natural Gas",3,4),FALSE))*R45*J45/365)) ->  | T45: =IF(ISBLANK(K45), "", K45/VLOOKUP(E45,FuelCost,2,FALSE)) ->  | U45: =IF((F45+H45+K45)=0,"",IF(F45>0,O45,IF(J45>0,S45,IF(K45>0,T45,"")))*Q45) -> 
M109: =IF(AND(F109>0,K109>0),"Multiple Values!",IF(AND(H109>0,K109>0),"Multiple Values!",IF(AND(F109>0,H109>0),"Multiple Values!",IF(F109>0,"Preferred Option",IF(H109>0,"2nd Option",IF(K109>0,"3rd Option","")))))) ->  | O109: =IF(ISBLANK(F109), "", (IF(E109="Natural gas", VLOOKUP(G109,NGConvert,2,FALSE),IF(E109="Fuel Oil", VLOOKUP(G109,FOConvert,2,FALSE),""))*F109)) ->  | P109: =IF(E109="Natural Gas", "Cubic Feet", IF(E109="Fuel Oil", "Gallons","")) ->  | Q109: =IF(ISBLANK(E109), "", VLOOKUP(E109,FuelFactors, 2, FALSE)) ->  | R109: =IF(H109>0, (VLOOKUP(I109,AreaConvert,2,FALSE)*H109), "") ->  | S109: =IF(ISBLANK(J109),"",((VLOOKUP((VLOOKUP(VLOOKUP(B109,LocationInfo,2,FALSE),CBECSTypes,2,FALSE)),CBECSFactors,IF(E109="Natural Gas",3,4),FALSE))*R109*J109/365)) ->  | T109: =IF(ISBLANK(K109), "", K109/VLOOKUP(E109,FuelCost,2,FALSE)) ->  | U109: =IF((F109+H109+K109)=0,"",IF(F109>0,O109,IF(J109>0,S109,IF(K109>0,T109,"")))*Q109) -> 

Sheet 4-Fuel
B2: Click for Checklist | D2: Go to EAR | I2: Required field | K2: Input not required
B4: ='1-Production Info'!C10& " Fuel" -> Fuel | W4: Instructions
B6: How many hybrid vehicles did you use? | E6: Comments | X6: 1. General Fuel Questions: Select Yes or No from the dropdowns to identify if you used hybrid vehicles or enforced the no-idling policy on your set. Enter comments about your production fuel use (optional)
B8: Did you enforce the "No-Idling" polIcy on your set? | X8: 2. Equipment Type: Select an equipment type from the dropdown list in column B. If the equipment type is unknown or you would like to enter information for multiple types of equipment, select “Other"
N9: Status: | O9: =IF(ISERROR(V13),"Data Input Error",IF(V13<>SUM(V14:V16),"Multiple Options Entered",IF(V13>0,"Data Entered Correctly","Data Not Entered"))) -> Data Not Entered | X9: 3. From & End Date (optional): Enter the start and end date of the equipment fuel use information information into columns C and D, respectively
B10: Select equipment and fuel type. Dates and reason for use are optional. | G10: Enter all information for ONE option for each equipment and fuel type combination
B11: Equipment Type | C11: From Date (optional) | D11: End Date (optional) | E11: Reason for Use (Optional) | F11: Fuel Type | G11: PREFERRED OPTION | I11: Second Option | K11: Third Option | L11: Option Selected | N11: Fuel Calculations | U11: Emission Summary
G12: Fuel Use Amount | H12: Fuel Use Units | I12: Total Cost of Fuel (US$) | J12: Average US$ per gallon | K12: Miles Driven (Vehicles) | N12: Equipment Type | O12: Standard Fuel Use Amount (gal) | P12: Fuel EF (kg CO2/gal) | Q12: Fuel Use - Cost Est. (Gallons) | R12: Fuel Use - Miles Est. (Gallons) | S12: CO2 emissions (kg) | T12: Fuel Use - All | U12: Emissions | V12: kg CO2 | X12: 4. Reason for Use (optional): select the reason for the equipment use (e.g., personal, production) from the dropdown list in column E
L13: =IF(AND(G13>0,K13>0),"Multiple Entered!",IF(AND(I13>0,K13>0),"Multiple Entered!",IF(AND(G13>0,I13>0),"Multiple Entered!",IF(G13>0,"Preferred Option",IF(I13>0,"2nd Option",IF(K13>0,"3rd Option","")))))) ->  | N13: =IF(ISNA(VLOOKUP(B13,EquipmentTypes,2,FALSE)),"",(VLOOKUP(B13,EquipmentTypes,2,FALSE))) ->  | O13: =IF(ISBLANK(G13), "", (VLOOKUP(H13,FuelUnitsConvert, 2,FALSE)*G13)) ->  | P13: =IF(ISBLANK(F13), "", VLOOKUP(F13,FuelFactors,2,FALSE)) ->  | Q13: =IF(ISBLANK(I13), "", I13/(IF(ISBLANK(J13),VLOOKUP(F13,FuelCost,2,FALSE),J13))) ->  | R13: =IF(K13>0, K13/VLOOKUP(B13, MPG, 2, FALSE), "") ->  | S13: =IF(L13<>"", IF(G13>0,O13,IF(I13>0,Q13, IF(K13>0,R13,"")))*P13, "") ->  | T13: =IF(ISNUMBER(O13),O13,IF(ISNUMBER(Q13),Q13,IF(ISNUMBER(R13),R13,""))) ->  | U13: Total | V13: =SUM(S:S) -> 0 | X13: 5. Fuel Type: Select the type of fuel used for the equipment from the dropdown list in column F
L14: =IF(AND(G14>0,K14>0),"Multiple Entered!",IF(AND(I14>0,K14>0),"Multiple Entered!",IF(AND(G14>0,I14>0),"Multiple Entered!",IF(G14>0,"Preferred Option",IF(I14>0,"2nd Option",IF(K14>0,"3rd Option","")))))) ->  | Q14: =IF(ISBLANK(I14), "", I14/(IF(ISBLANK(J14),VLOOKUP(F14,FuelCost,2,FALSE),J14))) ->  | S14: =IF(L14<>"", IF(G14>0,O14,IF(I14>0,Q14, IF(K14>0,R14,"")))*P14, "") ->  | T14: =IF(ISNUMBER(O14),O14,IF(ISNUMBER(Q14),Q14,IF(ISNUMBER(R14),R14,""))) ->  | U14: Preferred Option (fuel use) | V14: =SUMIF(G:G, ">0",S:S ) -> 0 | X14: 6. Enter data for ONE option for Fuel Use:
U15: 2nd Option (cost) | V15: =SUMIF(I:I, ">0",S:S ) -> 0 | Y15: 6.1 Preferred Option- Actual Fuel Use: Enter the actual fuel use in column G and select the associated units (e.g., gallons) from the dropdown list in column H
U16: 3rd Option (miles) | V16: =SUMIF(K:K, ">0",S:S ) -> 0
Y19: 6.2 Second Option- Cost: Enter the total cost of the equipment fuel in US dollars in column I. Enter the average cost per gallon of the fuel in column J. If the average cost is unknown, the following links have regional cost information:
Y24: Gasoline: | Z24: http://www.eia.doe.gov/oil_gas/petroleum/data_publications/wrgp/mogas_home_page.html
Y26: Diesel: | Z26: http://tonto.eia.doe.gov/oog/info/wohdp/diesel.asp
Y27: Alternative Fuels: | Z27: http://www.altfuelprices.com/
Y29: 6.3 Third Option- Distance: This option applies only to vehicles. Enter the total miles driven for the selected vehicle type
L39: =IF(AND(G39>0,K39>0),"Multiple Entered!",IF(AND(I39>0,K39>0),"Multiple Entered!",IF(AND(G39>0,I39>0),"Multiple Entered!",IF(G39>0,"Preferred Option",IF(I39>0,"2nd Option",IF(K39>0,"3rd Option","")))))) ->  | N39: =IF(ISNA(VLOOKUP(B39,EquipmentTypes,2,FALSE)),"",(VLOOKUP(B39,EquipmentTypes,2,FALSE))) ->  | O39: =IF(ISBLANK(G39), "", (VLOOKUP(H39,FuelUnitsConvert, 2,FALSE)*G39)) ->  | P39: =IF(ISBLANK(F39), "", VLOOKUP(F39,FuelFactors,2,FALSE)) ->  | Q39: =IF(ISBLANK(I39), "", I39/(IF(ISBLANK(J39),VLOOKUP(F39,FuelCost,2,FALSE),J39))) ->  | R39: =IF(K39>0, K39/VLOOKUP(B39, MPG, 2, FALSE), "") ->  | S39: =IF(L39<>"", IF(G39>0,O39,IF(I39>0,Q39, IF(K39>0,R39,"")))*P39, "") ->  | T39: =IF(ISNUMBER(O39),O39,IF(ISNUMBER(Q39),Q39,IF(ISNUMBER(R39),R39,""))) -> 
L103: =IF(AND(G103>0,K103>0),"Multiple Entered!",IF(AND(I103>0,K103>0),"Multiple Entered!",IF(AND(G103>0,I103>0),"Multiple Entered!",IF(G103>0,"Preferred Option",IF(I103>0,"2nd Option",IF(K103>0,"3rd Option","")))))) ->  | N103: =IF(ISNA(VLOOKUP(B103,EquipmentTypes,2,FALSE)),"",(VLOOKUP(B103,EquipmentTypes,2,FALSE))) ->  | O103: =IF(ISBLANK(G103), "", (VLOOKUP(H103,FuelUnitsConvert, 2,FALSE)*G103)) ->  | P103: =IF(ISBLANK(F103), "", VLOOKUP(F103,FuelFactors,2,FALSE)) ->  | Q103: =IF(ISBLANK(I103), "", I103/(IF(ISBLANK(J103),VLOOKUP(F103,FuelCost,2,FALSE),J103))) ->  | R103: =IF(K103>0, K103/VLOOKUP(B103, MPG, 2, FALSE), "") ->  | S103: =IF(L103<>"", IF(G103>0,O103,IF(I103>0,Q103, IF(K103>0,R103,"")))*P103, "") ->  | T103: =IF(ISNUMBER(O103),O103,IF(ISNUMBER(Q103),Q103,IF(ISNUMBER(R103),R103,""))) -> 

Sheet 5-Hotels-Housing
B2: Click for Checklist | C2: Go to EAR | E2: Required field | G2: Input not required
B4: ='1-Production Info'!C10& " Hotels & Housing" -> Hotels & Housing | T4: Instructions
B6: Did you choose a hotel because it is considered "green"? | E6: Comments | K6: Status: | L6: =IF(ISERROR(S12),"Data Input Error",IF(S12>0,"Data Entered Correctly","Data Not Entered")) -> Data Not Entered | U6: 1. General Hotel & Housing Questions: Select Yes or No from the dropdown to identify if you choose a hotel because it is considered “green.” Enter comments about your production hotel & housing use (optional)
B9: Select the room type and location (city is optional). Enter the number of rooms (for hotels only) and number of nights stayed at the hotel or house. (Option 1) | K9: Hotels & Housing Calculations | R9: Emission Summary
B10: Or enter the total number of nights (Option 2) | F10: Option 1 | H10: Option 2
B11: Room Type | C11: City (Optional) | D11: Country | E11: State/Province | F11: Number of Rooms (for hotels only) | G11: Number of Nights | H11: Total Number of Nights | K11: StatesList | L11: EF (kg CO2/kWh) | M11: kWh/year | N11: Room-Nights (years) (Option 1) | O11: Total Nights (years) (Option 2) | P11: CO2 emissions (kg) | R11: Emissions | S11: kg CO2 | U11: 2. Room Type: Select a room or house type from the drop down list in column B
K12: =IF(OR(D12="USA", D12="Canada", D12= "Australia"), "StatesList", "") ->  | L12: =IF(ISBLANK(D12),"",IF(OR(D12="USA",D12="Australia",D12="Canada"),VLOOKUP(CONCATENATE(D12,E12),ElecFactor,5,FALSE),VLOOKUP(D12,ElecFactor,5,FALSE))) ->  | M12: =IF(ISTEXT(B12),VLOOKUP(B12, HotelFactors, 4, FALSE),"") ->  | N12: =IF(ISBLANK(B12),"",IF(H12>0,1,IF(OR(B12="Apartment/Condo", B12 = "Average House", B12= "Large House"),G12,G12*F12)/365)) ->  | O12: =IF(ISBLANK(B12),"",IF(F12+G12>0,1,H12/365)) ->  | P12: =IF(AND(ISBLANK(B12), ISBLANK(G12)), "", L12*M12*N12*O12) ->  | R12: Total | S12: =SUM(P:P) -> 0 | U12: 3. Hotel/Housing Location: -Enter the hotel or housing city into column C (optional) -Select the country from the dropdown list in column D -Select the state or province from column E (if required)
K13: =IF(OR(D13="USA", D13="Canada", D13= "Australia"), "StatesList", "") ->  | N13: =IF(ISBLANK(B13),"",IF(H13>0,1,IF(OR(B13="Apartment/Condo", B13 = "Average House", B13= "Large House"),G13,G13*F13)/365)) ->  | O13: =IF(ISBLANK(B13),"",IF(F13+G13>0,1,H13/365)) ->  | P13: =IF(AND(ISBLANK(B13), ISBLANK(G13)), "", L13*M13*N13*O13) -> 
U16: 4. Number of Rooms: (for hotels only) Enter the number of rooms rented at the hotel in column F
U19: 4. Enter data for ONE Option for Hotels/Houses:
V20: 4.1 Option 1- Nights and Rooms: Enter the number of rooms rented at the hotel in column F. Enter the number of rooms in column G.
V23: 4.2 Second Option- Total Nights: Enter the total number of nights into Column H
V26: Housing Type Key
K36: =IF(OR(D36="USA", D36="Canada", D36= "Australia"), "StatesList", "") ->  | L36: =IF(ISBLANK(D36),"",IF(OR(D36="USA",D36="Australia",D36="Canada"),VLOOKUP(CONCATENATE(D36,E36),ElecFactor,5,FALSE),VLOOKUP(D36,ElecFactor,5,FALSE))) ->  | M36: =IF(ISTEXT(B36),VLOOKUP(B36, HotelFactors, 4, FALSE),"") ->  | N36: =IF(ISBLANK(B36),"",IF(H36>0,1,IF(OR(B36="Apartment/Condo", B36 = "Average House", B36= "Large House"),G36,G36*F36)/365)) ->  | O36: =IF(ISBLANK(B36),"",IF(F36+G36>0,1,H36/365)) ->  | P36: =IF(AND(ISBLANK(B36), ISBLANK(G36)), "", L36*M36*N36*O36) -> 
K100: =IF(OR(D100="USA", D100="Canada", D100= "Australia"), "StatesList", "") ->  | L100: =IF(ISBLANK(D100),"",IF(OR(D100="USA",D100="Australia",D100="Canada"),VLOOKUP(CONCATENATE(D100,E100),ElecFactor,5,FALSE),VLOOKUP(D100,ElecFactor,5,FALSE))) ->  | M100: =IF(ISTEXT(B100),VLOOKUP(B100, HotelFactors, 4, FALSE),"") ->  | N100: =IF(ISBLANK(B100),"",IF(H100>0,1,IF(OR(B100="Apartment/Condo", B100 = "Average House", B100= "Large House"),G100,G100*F100)/365)) ->  | O100: =IF(ISBLANK(B100),"",IF(F100+G100>0,1,H100/365)) ->  | P100: =IF(AND(ISBLANK(B100), ISBLANK(G100)), "", L100*M100*N100*O100) -> 

Sheet 6-Commercial Air Travel
B2: Click for Checklist | D2: Go to EAR | F2: Required field | H2: Input not required
B4: ='1-Production Info'!C10& " Commercial Air Travel" -> Commercial Air Travel | T4: Instructions
B6: Comments | U6: 1. General Commercial Air Travel Information: Enter comments about commercial air travel for your production (optional)
M8: Status: | N8: =IF(ISERROR(S12),"Data Input Error",IF(S12<>SUM(S13:S14),"Multiple Options Entered",IF(S12>0,"Data Entered Correctly","Data Not Entered"))) -> Data Not Entered | U8: 2. Enter data for ONE Option for Commercial Air Travel Information:
B9: Enter the information for ONE option for air travel. Departure and arrival locations are optional. | V9: 2.1 Preferred Option- Flights by Route:
B10: PREFERRED OPTION | G10: Second Option | I10: Third Option | K10: Option Selected | M10: Commercial Flight Calculations | R10: Emission Summary | V10: If known, enter the departure and arrival airport information into columns B and C, respectively Enter the total number of individual one-way trips for all people flown on this leg in column D. A round trip is equal to two trips. For example, if 5 cast members travel round trip from LAX to JFK 3 times, the number of trips equals 30 (5 x 2 x 3). Multiple trips on the same route can be entered on separate rows, as long as the number of trips is correct. Enter the one way flight distance of the route in column E and select the associated units from column F (e.g., LAX to JFK = 2500 land miles)
B11: Departure Airport Code/City (if known) | C11: Arrival Airport Code/City (if known) | D11: # of Trips on this Route (Total the number of individual one-way trips for all people. Round-trip = 2 trips) | E11: One Way Flight Distance | F11: Flight Distance Units | G11: Total Commerical Flight Distance | H11: Flight Distance Units | M11: Total Distance (miles) | N11: Trip Classification | O11: EF (kgCO2/passenger mile) | P11: CO2 emissions (kg) | R11: Emissions | S11: kg CO2
K12: =IF(AND(D12>0,I12>0),"Multiple Values!",IF(AND(G12>0,I12>0),"Multiple Values!",IF(AND(D12>0,G12>0),"Multiple Values!",IF(D12>0,"Preferred Option",IF(G12>0,"2nd Option",IF(I12>0,"Option 3","")))))) ->  | M12: =IF(E12>0,(VLOOKUP(F12,FlightDistanceConversion,2,FALSE)*E12*D12),IF(G12>0,(VLOOKUP(H12,FlightDistanceConversion,2,FALSE)*G12),"")) ->  | N12: =IF(K12="Multiple Values!", "Mult Values",IF(E12>0,IF(E12<ShortMax,"Short",IF(E12<MedMax,"Medium","Long")),IF(G12>0,"Average",""))) ->  | O12: =IF(K12<>"",VLOOKUP(N12, CommAirFactors, 2, FALSE),"") ->  | P12: =IF(K12<>"",M12*O12,"") ->  | R12: Total | S12: =SUM(P:P) -> 0
P13: =IF(K13<>"",M13*O13,"") ->  | R13: Preferred Option (flight type) | S13: =SUMIF(E:E, ">0",P:P ) -> 0
R14: 2nd Option (total miles) | S14: =SUMIF(G:G, ">0",P:P ) -> 0
V18: Multiple trips on the same route can be entered on separate rows, as long as the number of trips is correct. Webflier's flight distance calculator can be found at:
V21: http://www.webflyer.com/travel/mileage_calculator/
V22: 2.2 Second Option- Total Flight Distance: Enter the total commercial flight distance (in passenger miles) for the production into column G and the associated units into column H. (If more than one person is on the same flight, the total passenger miles would be the distance traveled by passenger one plus the distance traveled by passenger two)
K44: =IF(AND(D44>0,I44>0),"Multiple Values!",IF(AND(G44>0,I44>0),"Multiple Values!",IF(AND(D44>0,G44>0),"Multiple Values!",IF(D44>0,"Preferred Option",IF(G44>0,"2nd Option",IF(I44>0,"Option 3","")))))) ->  | M44: =IF(E44>0,(VLOOKUP(F44,FlightDistanceConversion,2,FALSE)*E44*D44),IF(G44>0,(VLOOKUP(H44,FlightDistanceConversion,2,FALSE)*G44),"")) ->  | N44: =IF(K44="Multiple Values!", "Mult Values",IF(E44>0,IF(E44<ShortMax,"Short",IF(E44<MedMax,"Medium","Long")),IF(G44>0,"Average",""))) ->  | O44: =IF(K44<>"",VLOOKUP(N44, CommAirFactors, 2, FALSE),"") -> 
K76: =IF(AND(D76>0,I76>0),"Multiple Values!",IF(AND(G76>0,I76>0),"Multiple Values!",IF(AND(D76>0,G76>0),"Multiple Values!",IF(D76>0,"Preferred Option",IF(G76>0,"2nd Option",IF(I76>0,"Option 3","")))))) ->  | M76: =IF(E76>0,(VLOOKUP(F76,FlightDistanceConversion,2,FALSE)*E76*D76),IF(G76>0,(VLOOKUP(H76,FlightDistanceConversion,2,FALSE)*G76),"")) ->  | N76: =IF(K76="Multiple Values!", "Mult Values",IF(E76>0,IF(E76<ShortMax,"Short",IF(E76<MedMax,"Medium","Long")),IF(G76>0,"Average",""))) ->  | O76: =IF(K76<>"",VLOOKUP(N76, CommAirFactors, 2, FALSE),"") ->  | P76: =IF(K76<>"",M76*O76,"") -> 
K140: =IF(AND(D140>0,I140>0),"Multiple Values!",IF(AND(G140>0,I140>0),"Multiple Values!",IF(AND(D140>0,G140>0),"Multiple Values!",IF(D140>0,"Preferred Option",IF(G140>0,"2nd Option",IF(I140>0,"Option 3","")))))) ->  | M140: =IF(E140>0,(VLOOKUP(F140,FlightDistanceConversion,2,FALSE)*E140*D140),IF(G140>0,(VLOOKUP(H140,FlightDistanceConversion,2,FALSE)*G140),"")) ->  | N140: =IF(K140="Multiple Values!", "Mult Values",IF(E140>0,IF(E140<ShortMax,"Short",IF(E140<MedMax,"Medium","Long")),IF(G140>0,"Average",""))) ->  | O140: =IF(K140<>"",VLOOKUP(N140, CommAirFactors, 2, FALSE),"") ->  | P140: =IF(K140<>"",M140*O140,"") -> 

Sheet 7-Charter and Heli Flights
B2: Click for Checklist | D2: Go to EAR | F2: Required field | H2: Input not required
B4: ='1-Production Info'!C10& " Charter & Helicopter Flights" -> Charter & Helicopter Flights | T4: Instructions
B6: Comments | K6: Status: | L6: =IF(ISERROR(S12),"Data Input Error",IF(S12<>SUM(S13:S15),"Multiple Options Entered",IF(S12>0,"Data Entered Correctly","Data Not Entered"))) -> Data Not Entered | U6: 1. General Charter and Helicopter Flight Information: Enter comments about charter and helicopter air travel for your production (optional)
U8: 2. Plane Information: Select the plane type from the dropdown list in column B (required) and enter the plane model in column C (optional)
B9: Select the plane type. Model type is optional. | D9: Enter all information for ONE option
B10: Plane Type | C10: Model (if known) | D10: PREFERRED OPTION | F10: Second Option | G10: Third Option | I10: Option Selected | K10: Charter Flight Calculations | R10: Emission Summary | U10: 3. Enter data for ONE Option for Chartered and Helicopter Flights:
D11: Fuel Use Amount | E11: Fuel Use Units | F11: Total Hours Flown | G11: Total Distance Flown | H11: Flight Units | K11: Standard Fuel Use (gal) | L11: Fuel EF (kg/gallon) | M11: Fuel Use - Hours Est. (gal) | N11: Standard Distance (miles) | O11: Distance Fuel Use (gal) | P11: CO2 emissions (kg) | R11: Emissions | S11: kg CO2 | V11: 3.1 Preferred Option- Actual Fuel Use: Enter the actual fuel used for the plane type selected in column D and select the associated units (e.g., gallons) from the dropdown list in column E
I12: =IF(AND(D12>0,F12>0),"Multiple Values!",IF(AND(G12>0,F12>0),"Multiple Values!",IF(AND(D12>0,G12>0),"Multiple Values!",IF(D12>0,"Preferred Option",IF(G12>0,"Third Option",IF(F12>0,"Second Option","")))))) ->  | K12: =IF(ISBLANK(D12), "", VLOOKUP(E12, FuelUnitsConvert, 2, FALSE)*D12) ->  | L12: =IF(ISBLANK(B12), "", VLOOKUP(VLOOKUP(B12,AirFactors,2,FALSE),FuelFactors,2,FALSE)) ->  | M12: =IF(F12>0, VLOOKUP(B12, AirFactors, 3, FALSE)*F12, "") ->  | N12: =IF(G12>0, VLOOKUP(H12, FlightDistanceConversion, 2, FALSE)*G12, "") ->  | O12: =IF(G12>0, N12/VLOOKUP(B12, AirFactors, 4, FALSE), "") ->  | P12: =IF((D12+F12+G12)=0,"",IF(D12>0,K12,IF(F12>0,M12,IF(G12>0,O12,"")))*L12) ->  | R12: Total | S12: =SUM(P:P) -> 0 | V12: 3.2 Second Option- Hours Flown: Enter the total hours flown by the selected plane type in column F
I13: =IF(AND(D13>0,F13>0),"Multiple Values!",IF(AND(G13>0,F13>0),"Multiple Values!",IF(AND(D13>0,G13>0),"Multiple Values!",IF(D13>0,"Preferred Option",IF(G13>0,"Third Option",IF(F13>0,"Second Option","")))))) ->  | K13: =IF(ISBLANK(D13), "", VLOOKUP(E13, FuelUnitsConvert, 2, FALSE)*D13) ->  | L13: =IF(ISBLANK(B13), "", VLOOKUP(VLOOKUP(B13,AirFactors,2,FALSE),FuelFactors,2,FALSE)) ->  | M13: =IF(F13>0, VLOOKUP(B13, AirFactors, 3, FALSE)*F13, "") ->  | O13: =IF(G13>0, N13/VLOOKUP(B13, AirFactors, 4, FALSE), "") ->  | P13: =IF((D13+F13+G13)=0,"",IF(D13>0,K13,IF(F13>0,M13,IF(G13>0,O13,"")))*L13) ->  | R13: Preferred Option (fuel use) | S13: =SUMIF(D:D, ">0",P:P ) -> 0
R14: 2nd Option (hours flown) | S14: =SUMIF(M:M, ">0",P:P ) -> 0 | V14: 3.3 Third Option- Distance: Enter the total distance flown by the selected plane type in column G and select the associated units (e.g. miles) from the dropdown list in column H
R15: 3rd Option (disntance flown) | S15: =SUMIF(O:O, ">0",P:P ) -> 0
U20: Plane Type Key
I35: =IF(AND(D35>0,F35>0),"Multiple Values!",IF(AND(G35>0,F35>0),"Multiple Values!",IF(AND(D35>0,G35>0),"Multiple Values!",IF(D35>0,"Preferred Option",IF(G35>0,"Third Option",IF(F35>0,"Second Option","")))))) ->  | K35: =IF(ISBLANK(D35), "", VLOOKUP(E35, FuelUnitsConvert, 2, FALSE)*D35) ->  | L35: =IF(ISBLANK(B35), "", VLOOKUP(VLOOKUP(B35,AirFactors,2,FALSE),FuelFactors,2,FALSE)) ->  | M35: =IF(F35>0, VLOOKUP(B35, AirFactors, 3, FALSE)*F35, "") ->  | N35: =IF(G35>0, VLOOKUP(H35, FlightDistanceConversion, 2, FALSE)*G35, "") ->  | O35: =IF(G35>0, N35/VLOOKUP(B35, AirFactors, 4, FALSE), "") ->  | P35: =IF((D35+F35+G35)=0,"",IF(D35>0,K35,IF(F35>0,M35,IF(G35>0,O35,"")))*L35) -> 
I99: =IF(AND(D99>0,F99>0),"Multiple Values!",IF(AND(G99>0,F99>0),"Multiple Values!",IF(AND(D99>0,G99>0),"Multiple Values!",IF(D99>0,"Preferred Option",IF(G99>0,"Third Option",IF(F99>0,"Second Option","")))))) ->  | K99: =IF(ISBLANK(D99), "", VLOOKUP(E99, FuelUnitsConvert, 2, FALSE)*D99) ->  | L99: =IF(ISBLANK(B99), "", VLOOKUP(VLOOKUP(B99,AirFactors,2,FALSE),FuelFactors,2,FALSE)) ->  | M99: =IF(F99>0, VLOOKUP(B99, AirFactors, 3, FALSE)*F99, "") ->  | N99: =IF(G99>0, VLOOKUP(H99, FlightDistanceConversion, 2, FALSE)*G99, "") ->  | O99: =IF(G99>0, N99/VLOOKUP(B99, AirFactors, 4, FALSE), "") ->  | P99: =IF((D99+F99+G99)=0,"",IF(D99>0,K99,IF(F99>0,M99,IF(G99>0,O99,"")))*L99) -> 

Sheet EAR Metrics
X1: Interface to select quadrant: only can select options with checkmarks
C2: Click for Checklist | D2: Go to EAR | F2: Required field | H2: Input not required | L2: DO NOT DELETE THESE CELLS, USED IN VBA (ENVIRON)
C3: ='1-Production Info'!D8& "Other Environmental Activity Metrics" -> Other Environmental Activity Metrics | N3: active_ear
C5: Select your production's Environmental Activity Metrics | G5: Choose 4 metrics to include on the EAR | M5: Active EAR | N5: Dropdown | O5: EAR Lookup | Q5: EAR | R5: Group | S5: All: | T5: =IFERROR(IF((IFERROR(SUM(M17:R51,L64:O65,M67:M71,O67:O70,S62:T68,M94:O99,Q113:Q116,N55:N58,P55:P57,P85,M85:M89),"Data input error"))=0, "Data not entered", "Data entered correctly"),"Data input error") -> Data not entered
C6: Environmental Activity | D6: Include (select X) | E6: Additional Rows? | F6: Lookup | G6: Select from Dropdown Menus. Reports on "EAR" tab.* | L6: =IF(M6="",0,1) -> 0 | M6: =IF(D7="X",A7,"") ->  | N6: =IF(ISNA(VLOOKUP(1,$L$6:$M$11,2,FALSE)),"",VLOOKUP(1,$L$6:$M$11,2,FALSE)) ->  | O6: =IF($N6<>"",VLOOKUP($N6,$A$7:$F$12,6,FALSE),"") ->  | Q6: Waste | R6: Group 4
A7: Waste | C7: Waste: Landfill, Compost and Recycling | F7: W | G7: Quadrant 1 | H7: Quadrant 2 | L7: =IF(M7="","",MAX($L$6:L6)+1) ->  | N7: =IF(ISNA(VLOOKUP(2,$L$6:$M$11,2,FALSE)),"",VLOOKUP(2,$L$6:$M$11,2,FALSE)) ->  | Q7: Donations | R7: Group 5
A8: Drinking Water | C8: Drinking Water (bottles/jugs) | F8: DW | L8: =IF(M8="","",MAX($L$6:L7)+1) ->  | N8: =IF(ISNA(VLOOKUP(3,$L$6:$M$11,2,FALSE)),"",VLOOKUP(3,$L$6:$M$11,2,FALSE)) ->  | Q8: Drinking Water | R8: Group 2
A9: Fuel Savings | C9: Fuel Savings (e.g. biodiesel/hybrids) | F9: F | G9: Quadrant 3 | H9: Quadrant 4 | L9: =IF(M9="","",MAX($L$6:L8)+1) ->  | N9: =IF(ISNA(VLOOKUP(4,$L$6:$M$11,2,FALSE)),"",VLOOKUP(4,$L$6:$M$11,2,FALSE)) ->  | Q9: Fuel Savings | R9: Group 9
A10: Donations | C10: Donations (e.g., food, set materials) | F10: Don | L10: =IF(M10="","",MAX($L$6:L9)+1) ->  | N10: =IF(ISNA(VLOOKUP(5,$L$6:$M$11,2,FALSE)),"",VLOOKUP(5,$L$6:$M$11,2,FALSE)) ->  | Q10: Plywood | R10: Group 8
A11: Recycled Paper | C11: Recycled Paper Content | F11: P | L11: =IF(M11="","",MAX($L$6:L10)+1) ->  | N11: =IF(ISNA(VLOOKUP(6,$L$6:$M$11,2,FALSE)),"",VLOOKUP(6,$L$6:$M$11,2,FALSE)) ->  | Q11: Recycled Paper | R11: Group 16
A12: Plywood | C12: Lauan/Meranti Plywood | F12: Ply | G12: *Only active metrics ("X" in Column D) are selectable.
A14: W | C14: Waste | L14: Waste Calculations | T14: Waste Totals/Diversion Rate
A15: W | C15: Waste Type & Disposal | D15: PREFERRED OPTION: Weight | F15: Second Option: Volume | I15: Third Option | L15: Waste Type | M15: Standard Waste Amount (lb) | N15: Waste - Volume Est. (Cubic yards) | O15: Waste density (lb/cubic yard) | P15: Waste Weight - Volume Est. (pounds) | Q15: Waste- Cost Est. | R15: Waste total (lbs) | S15: =IFERROR(IF(SUM(M17:Q51)=0,"No Data Entered",IF(SUM(M17:Q51)>0,"Data Entered Correctly","Data Input Error")), "Data Input Error") -> No Data Entered | T15: Diverted? | U15: Waste Category | V15: Category for Graph | W15: Total (lbs)
A16: W | D16: Waste Weight | E16: Units | F16: Number of containers | G16: Size | H16: Units | I16: Cost ($)
A17: W | C17: Waste to Landfill | L17: =C17 -> Waste to Landfill | M17: =IF(ISBLANK(D17), "", (VLOOKUP(E17,WasteConversions, 2,FALSE)*D17)) ->  | N17: =IF(ISBLANK(F17), "", (VLOOKUP(H17,WasteVolConvert, 2,FALSE)*F17*G17)) ->  | O17: =IF(ISBLANK(F17), "", (VLOOKUP(C17,WasteConvert, 2,FALSE))) ->  | P17: =IF(ISBLANK(F17),"",N17*O17) ->  | Q17: =IF(ISBLANK(I17),"",(I17/(VLOOKUP(C17,WasteConvert,3,FALSE)))) ->  | R17: =IF(ISNUMBER(M17),M17,IF(ISNUMBER(P17),P17,Q17)) ->  | T17: N | U17: Waste to Landfill | V17: Waste to LF | W17: =SUMIF($L$17:$L$41,U17,$R$17:$R$41) -> 0
A18: W | C18: Construction Material to Landfill | L18: Construction Material to Landfill | T18: N | U18: Construction Material to Landfill | V18: Const. Mtl to LF | W18: =SUMIF($L$17:$L$41,U18,$R$17:$R$41) -> 0
A19: W | C19: Polystyrene Foam to Landfill | L19: Polystyrene Foam to Landfill | T19: N | U19: Polystyrene Foam to Landfill | V19: PS Foam to LF | W19: =SUMIF($L$17:$L$41,U19,$R$17:$R$41) -> 0
A20: W | C20: Mixed Recycled | L20: Mixed Recycled | T20: Y | U20: =L20 -> Mixed Recycled | V20: Mix Rec. | W20: 0
A21: W | C21: Metal Recycling | L21: Metal Recycling | T21: Y | U21: Metal Recycling | V21: Metal Rec. | W21: =SUMIF($L$17:$L$41,U21,$R$17:$R$41) -> 0
A22: W | C22: Recycled Construction Material | L22: Recycled Construction Material | T22: Y | U22: Recycled Construction Material | V22: Rec. Const. Mtl | W22: 0
A23: W | C23: Other Recycled | L23: Other Recycled | T23: Y | U23: Other Recycled | V23: Other Rec. | W23: 0
A24: W | C24: Compost | L24: Compost | T24: Y | U24: Compost | V24: Compost | W24: 0
A25: WA | C25: Select "X" in Cell E7 for additional waste types. Add values below as necessary. | L25: =C25 -> Select "X" in Cell E7 for additional waste types. Add values below as necessary. | M25: =IF(ISBLANK(D25), "", (VLOOKUP(E25,WasteConversions, 2,FALSE)*D25)) ->  | N25: =IF(ISBLANK(F25), "", (VLOOKUP(H25,WasteVolConvert, 2,FALSE)*F25*G25)) ->  | O25: =IF(ISBLANK(F25), "", (VLOOKUP(C25,WasteConvert, 2,FALSE))) ->  | P25: =IF(ISBLANK(F25),"",N25*O25) ->  | Q25: =IF(ISBLANK(I25),"",(I25/(VLOOKUP(C25,WasteConvert,3,FALSE)))) ->  | R25: =IF(ISNUMBER(M25),M25,IF(ISNUMBER(P25),P25,Q25)) ->  | U25: Total Waste | W25: =SUM(W17:W24) -> 0
A26: WA | L26: 0 | U26: Diversion rate | W26: =SUMIF(T17:T24, "Y", W17:W24)/W25 -> 
A27: WA | L27: 0
A28: WA | L28: 0
A29: WA | L29: 0
A30: WA | L30: 0
A31: WA | L31: 0
A32: WA | L32: 0
A33: WA | L33: 0
A34: WA | L34: 0
A35: WA | L35: 0
A36: WA | L36: 0
A37: WA | L37: 0
A38: WA | L38: 0
A39: WA | L39: 0
A40: WA | L40: 0
A41: WA | L41: 0
A42: W | C42: Comments | L42: =C42 -> Comments | M42: =IF(ISBLANK(D42), "", (VLOOKUP(E42,WasteConversions, 2,FALSE)*D42)) ->  | N42: =IF(ISBLANK(F42), "", (VLOOKUP(H42,WasteVolConvert, 2,FALSE)*F42*G42)) ->  | O42: =IF(ISBLANK(F42), "", (VLOOKUP(C42,WasteConvert, 2,FALSE))) ->  | P42: =IF(ISBLANK(F42),"",N42*O42) ->  | Q42: =IF(ISBLANK(I42),"",(I42/(VLOOKUP(C42,WasteConvert,3,FALSE)))) ->  | R42: =IF(ISNUMBER(M42),M42,IF(ISNUMBER(P42),P42,Q42)) -> 
A43: W | C43: enter comments on the EAR metrics page | X43: =IFERROR(VLOOKUP($U43, $U$17:$W$24, 4, FALSE), "") -> 
A44: W | X44: =IFERROR(VLOOKUP($U44, $U$17:$W$24, 4, FALSE), "") -> 
A45: W | X45: =IFERROR(VLOOKUP($U45, $U$17:$W$24, 4, FALSE), "") -> 
A46: W | X46: =IFERROR(VLOOKUP($U46, $U$17:$W$24, 4, FALSE), "") -> 
A47: W | X47: =IFERROR(VLOOKUP($U47, $U$17:$W$24, 4, FALSE), "") -> 
A48: W
A49: W
A50: W
A51: W
A52: W
A53: DW
A54: DW | C54: Drinking Water | L54: Drinking Water Calculations
A55: DW | C55: Drinking Water Container | D55: Number | E55: Total Cost ($) | F55: Comments | L55: Bottles Used | N55: =IF(ISNUMBER(D56),D56,IF(ISNUMBER(E56),ROUND(E56/WaterBottleCost,0), 0)) -> 0 | O55: Bottle Cost: | P55: =IF(ISNUMBER(E56),E56,IF(ISNUMBER(D56),D56*WaterBottleCost,"")) ->  | Q55: Entered Jug Cost | R55: =IFERROR(E57/D57, 0) -> 0 | S55: =IF((P58 = 0), "No data Entered", "Data Entered Correctly") -> No data Entered
A56: DW | C56: 0.5L Plastic water bottles (not cases) | F56: enter comments on the EAR metrics page | L56: Bottles Saved | N56: =IF(OR(ISNUMBER(D57), ISNUMBER(E57)), ROUNDUP(IF(ISNUMBER(D57),H20BottleperJug*D57,IF(ISNUMBER(E57),E57/JugCost*H20BottleperJug,"")),1), "") ->  | O56: Jug Cost: | P56: =IF(ISNUMBER(E57),E57,IF(ISNUMBER(D57),D57*JugCost,0)) -> 0 | Q56: Entered Water bottle cost | R56: =IFERROR(E56/D56, 0) -> 0
A57: DW | C57: 5 gallon jugs | L57: Bottle Cost Savings: | N57: =IFERROR(IF(EnteredH20BottleCost>0, BottlesSaved*EnteredH20BottleCost, BottlesSaved*WaterBottleCost), "") ->  | O57: Reusable Cost: | P57: =IF(ISNUMBER(E58),E58,IF(ISNUMBER(D58),D58*ReuseWaterCost,0)) -> 0 | Q57: 0.5L Bottles per Jug: | R57: 40
A58: DW | C58: Reusable bottles | L58: Net Cost Saving | N58: =IFERROR(N57-P56-P57, "") ->  | P58: =SUM(N55:N58,P55:P57) -> 0
A59: DW | M59: Drinking Water
A60: FS
A61: FS | C61: Fossil Fuel (Gasoline & Diesel) Savings | L61: Fuel Saving Calculations | R61: Fuel Type | S61: Gallons Saved | T61: MTCO2 Saved
A62: FS | C62: Hybrid Vehicles | D62: Fuel Use obtained from "Fuel Tab" (Gal) | E62: PREFERRED OPTION | G62: Second Option | H62: Third Option | Q62: Hybrids | R62: Gasoline | S62: =SUM(O64:O65) -> 0 | T62: =VLOOKUP(R62, FuelFactors, 2, FALSE)*S62/1000 -> 0
A63: FS | E63: Hybrid Fuel Use Amount | F63: Fuel Use Units | G63: Hybrid Distance Driven (miles) | H63: Total Cost of Hybrid Fuel (US$) | I63: Average US$ per gallon | L63: Standard Fuel Use Amount (gal) | M63: Fuel Use - Miles Est. (Gallons) | N63: Fuel Use - Cost Est. (Gallons) | O63: Gal Saved | P63: =IFERROR(IF(SUM(L64:O65,O67:O70,M67:M71) = 0, "No Data Entered", "Data Entered Correctly"), "Data Input Error") -> No Data Entered | Q63: Biodiesel | R63: Diesel Fuel | S63: =SUM(M67:M71) -> 0 | T63: =VLOOKUP(R63, FuelFactors, 2, FALSE)*S63/1000 -> 0
A64: FS | C64: Hybrid SUVs | D64: =SUMIF('4-Fuel'!$B$13:$B$150,'EAR Metrics'!C64,'4-Fuel'!$T$13:$T$150) -> 0 | L64: =IF(ISBLANK(E64), "", (VLOOKUP(F64,FuelUnitsConvert, 2,FALSE)*E64)) ->  | M64: =IF(G64>0,G64/VLOOKUP(C64, MPG, 2, FALSE), "") ->  | N64: =IF(ISBLANK(H64), "", H64/(IF(ISBLANK(I64),VLOOKUP("Gasoline",FuelCost,2,FALSE),I64))) ->  | O64: =IF(D64>0, D64, SUM(L64:N64))*HybridSUV -> 0 | P64: Hybrid SUV | Q64: Electric Cars | R64: =IF(F67=0, FuelEFs!$A$6, F67) -> Gasoline | S64: =O67 -> 0 | T64: =IF((D67>0),VLOOKUP(R64, FuelFactors, 2, FALSE)*S64/1000,0) -> 0
A65: FS | C65: Hybrid Cars | D65: =SUMIF('4-Fuel'!$B$13:$B$38,'EAR Metrics'!C65,'4-Fuel'!$T$13:$T$38) -> 0 | L65: =IF(ISBLANK(E65), "", (VLOOKUP(F65,FuelUnitsConvert, 2,FALSE)*E65)) ->  | M65: =IF(G65>0,G65/VLOOKUP(C65, MPG, 2, FALSE), "") ->  | N65: =IF(ISBLANK(H65), "", H65/(IF(ISBLANK(I65),VLOOKUP("Gasoline",FuelCost,2,FALSE),I65))) ->  | O65: =IF(D65>0, D65, SUM(L65:N65))*HybridCar -> 0 | P65: Hybrid Cars | Q65: Solar | R65: =IF(F68=0, FuelEFs!$A$6, F68) -> Gasoline | S65: =O68 -> 0 | T65: =IF((D68>0),VLOOKUP(R65, FuelFactors, 2, FALSE)*S65/1000,0) -> 0
A66: FS | C66: Other Fuel Savings | D66: Amount Saved | E66: Units | F66: Fuel Type | H66: Biodiesel | I66: Amount Used (gal) | L66: Biodiesel | M66: Gal Diesel Saved | O66: Gal Saved | Q66: Grid Tie In | R66: =IF(F69=0, FuelEFs!$A$6, F69) -> Gasoline | S66: =O69 -> 0 | T66: =IF((D69>0),VLOOKUP(R66, FuelFactors, 2, FALSE)*S66/1000,0) -> 0
A67: FS | C67: Electric Cars | G67: Biodiesel values obtained from the "Fuel" tab | H67: Biodiesel (B100) | I67: =SUMIF('4-Fuel'!$F$13:$F$150,'EAR Metrics'!H67,'4-Fuel'!$T$13:$T$150) -> 0 | L67: Biodiesel (B100) | M67: =I67 -> 0 | N67: Electric Cars | O67: =IF((D67>0), D67*VLOOKUP(E67,FuelUnitsConvert, 2,FALSE),0) -> 0 | Q67: Other | R67: =IF(F70=0, FuelEFs!$A$6, F70) -> Gasoline | S67: =O70 -> 0 | T67: =IF((D70>0),VLOOKUP(R67, FuelFactors, 2, FALSE)*S67/1000,0) -> 0
A68: FS | C68: Solar | H68: B99 | I68: =SUMIF('4-Fuel'!$F$13:$F$38,'EAR Metrics'!H68,'4-Fuel'!$T$13:$T$38) -> 0 | L68: B99 | M68: =I68*0.99 -> 0 | N68: Solar | O68: =IF((D68>0), D68*VLOOKUP(E68,FuelUnitsConvert, 2,FALSE), 0) -> 0 | Q68: Total | S68: =SUM(S62:S67) -> 0 | T68: =SUM(T62:T67) -> 0
A69: FS | C69: Electric grid tie in | H69: B40 | I69: =SUMIF('4-Fuel'!$F$13:$F$38,'EAR Metrics'!H69,'4-Fuel'!$T$13:$T$38) -> 0 | L69: B40 | M69: =I69*0.4 -> 0 | N69: Electric grid tie in | O69: =IF((D69>0), D69*VLOOKUP(E69,FuelUnitsConvert, 2,FALSE), 0) -> 0
A70: FS | C70: Other | H70: B20 | I70: =SUMIF('4-Fuel'!$F$13:$F$38,'EAR Metrics'!H70,'4-Fuel'!$T$13:$T$38) -> 0 | L70: B20 | M70: =I70*0.2 -> 0 | N70: Other | O70: =IF((D70>0), D70*VLOOKUP(E70,FuelUnitsConvert, 2,FALSE), 0) -> 0
A71: FS | C71: Other fuel description: | H71: B5 | I71: =SUMIF('4-Fuel'!$F$13:$F$38,'EAR Metrics'!H71,'4-Fuel'!$T$13:$T$38) -> 0 | L71: B5 | M71: =I71*0.05 -> 0
A72: FS | C72: Comments
A73: FS | C73: enter comments on the EAR metrics page
A74: FS
A75: FS
A76: FS
A77: FS
A78: FS
A79: FS
A80: FS
A81: FS
A82: Don
A83: Don | C83: Donations | L83: Donation Calculations | O83: =IF(SUM(D85:D89) = 0, "No Data Entered", "Data Entered Correctly") -> No Data Entered | Q83: =IF(DollarDonations = "", "", "Your production donated worth of materials") -> 
A84: Don | C84: Type of Donation | D84: Number | E84: Units | F84: Value ($) | G84: Comments | N84: meals | O84: =IF(ISBLANK(D85), "",ROUND( D85*VLOOKUP(E85,WasteConversions, 2, FALSE)/P84, 0)) ->  | P84: 1.3
A85: Don | C85: Food | G85: enter comments on the EAR metrics page | L85: =IF(D85>0,1,) -> 0 | M85: =L85 -> 0 | N85: =IF(ISBLANK(D85), "", CONCATENATE(O84, " meals")) ->  | P85: =IF(SUM(F85:F89)=0, "", SUM(F85:F89)) ->  | Q85: 1 | R85: =IFERROR(VLOOKUP(Q85,DonList, 2, FALSE), "") -> 
A86: Don | C86: Set dressing/props | L86: =IF(D86>0,1,) -> 0 | M86: =L86+M85 -> 0 | N86: =IF(ISBLANK(D86),"",CONCATENATE(C86,": ",D86," ",E86,"")) ->  | P86: Total Donations | Q86: 2 | R86: =IFERROR(VLOOKUP(Q86,DonList, 2, FALSE), "") -> 
A87: Don | C87: Wardrobe | L87: =IF(D87>0,1,) -> 0 | M87: =L87+M86 -> 0 | N87: =IF(ISBLANK(D87),"",CONCATENATE(C87,": ",D87," ",E87,"")) ->  | Q87: 3 | R87: =IFERROR(VLOOKUP(Q87,DonList, 2, FALSE), "") -> 
A88: Don | C88: Construction Material | L88: =IF(D88>0,1,) -> 0 | M88: =L88+M87 -> 0 | N88: =IF(ISBLANK(D88),"",CONCATENATE(C88,": ",D88," ",E88,"")) ->  | Q88: 4 | R88: =IFERROR(VLOOKUP(Q88,DonList, 2, FALSE), "") -> 
A89: Don | C89: Other | L89: =IF(D89>0,1,) -> 0 | M89: =L89+M88 -> 0 | N89: =IF(ISBLANK(D89),"",CONCATENATE(C89,": ",D89," ",E89,"")) ->  | Q89: 5 | R89: =IFERROR(VLOOKUP(Q89,DonList, 2, FALSE), "") -> 
A90: Don
A91: P
A92: P | C92: Recycled Paper Content | L92: Recycled Paper Calculations
A93: P | C93: Percent Recycled Content | D93: Number of Reams | E93: Enter the number of Reams used of the associated percent recycled content paper | L93: Type | M93: Virgin | N93: Recycled | O93: Total
A94: P | C94: 0 | L94: 0 | M94: =$D94*(1-C94) -> 0 | N94: =$D94*(C94) -> 0 | O94: =SUM(M94:N94) -> 0 | P94: =IF(SUM(M94:O98) >0, "Data Entered Correctly", "No Data Entered") -> No Data Entered
A95: P | C95: 0.3 | L95: 0.3 | M95: =$D95*(1-C95) -> 0 | N95: =$D95*(C95) -> 0 | O95: 0
A96: P | C96: 0.5 | L96: 0.5 | M96: =$D96*(1-C96) -> 0 | N96: =$D96*(C96) -> 0 | O96: 0
A97: P | C97: 0.7 | L97: 0.7 | M97: =$D97*(1-C97) -> 0 | N97: =$D97*(C97) -> 0 | O97: 0
A98: P | C98: 1 | L98: 1 | M98: =$D98*(1-C98) -> 0 | N98: =$D98*(C98) -> 0 | O98: 0 | P98: Trees | Q98: =N99*TreesperReam -> 0
A99: P | C99: Comments | L99: Total | M99: =SUM(M94:M98) -> 0 | N99: =SUM(N94:N98) -> 0 | O99: 0 | P99: Trees per Ream | Q99: =1/16.67 -> 0.0599880024 | R99: http://conservatree.org/learn/EnviroIssues/TreeStats.shtml
A100: P | C100: enter comments on the EAR metrics page
A101: P
A102: P
A103: P
A104: P
A105: P
A106: P
A107: P
A108: P
A109: P
A110: Ply | C110: Lauan / Meranti Plywood
A111: Ply | C111: Lauan / Meranti Plywood Type | D111: Option 1: Number of Sheets & Dimensions | H111: Option 2: Total BF | I111: Description | L111: Plywood Calculations
A112: Ply | D112: Number of Sheets | E112: Length (feet) | F112: Width (feet) | G112: Thickness (inches) | H112: Total board feet | L112: Plywood Type | M112: Volumn (in3) | N112: Board Feet | O112: Plywood Type List (long name) | P112: Short Name (for graph) | Q112: Board Feet
A113: Ply | C113: Lauan/Meranti- non certified | I113: N/A | L113: =C113 -> Lauan/Meranti- non certified | M113: =E113*12*F113*12*G113*D113 -> 0 | N113: =IF((H113>0), H113, M113/boardfoot) -> 0 | O113: Lauan/Meranti- non certified | P113: Non-certified | Q113: =SUMIF($L$113:$L$131,O113,$N$113:$N$131) -> 0
A114: Ply | C114: Lauan/Meranti - FSC | I114: N/A | L114: =C114 -> Lauan/Meranti - FSC | M114: =E114*12*F114*12*G114*D114 -> 0 | N114: =IF((H114>0), H114, M114/boardfoot) -> 0 | O114: Lauan/Meranti - FSC | P114: FSC | Q114: =SUMIF($L$113:$L$131,O114,$N$113:$N$131) -> 0
A115: Ply | C115: Lauan Alternative | L115: =C115 -> Lauan Alternative | M115: =E115*12*F115*12*G115*D115 -> 0 | N115: =IF((H115>0), H115, M115/boardfoot) -> 0 | O115: =L115 -> Lauan Alternative | P115: Alternative | Q115: =SUMIF($L$113:$L$131,O115,$N$113:$N$131) -> 0
A116: Ply | C116: Select "X" in Cell E12 to add additional lines. Enter additional values and sizes below, as necessary | M116: =E116*12*F116*12*G116*D116 -> 0 | N116: =M116/boardfoot -> 0
A117: Ply | O117: Repurposed Walls | P117: Repurp. Walls | Q117: =N133 -> 0
A118: Ply Add | L118: =C118 -> 0 | M118: =E118*12*F118*12*G118*D118 -> 0 | N118: =IF((H118>0), H118, M118/boardfoot) -> 0
A119: Ply Add | L119: =C119 -> 0 | M119: =E119*12*F119*12*G119*D119 -> 0 | N119: 0
A120: Ply Add | L120: =C120 -> 0 | M120: =E120*12*F120*12*G120*D120 -> 0 | N120: 0
A121: Ply Add | L121: 0 | M121: 0 | N121: 0
A122: Ply Add | L122: 0 | M122: 0 | N122: 0
A123: Ply Add | L123: 0 | M123: 0 | N123: 0
A124: Ply Add | L124: 0 | M124: 0 | N124: 0
A125: Ply Add | L125: 0 | M125: 0 | N125: 0
A126: Ply Add | L126: 0 | M126: 0 | N126: 0
A127: Ply Add | L127: 0 | M127: 0 | N127: 0
A128: Ply Add | L128: 0 | M128: 0 | N128: 0
A129: Ply Add | L129: 0 | M129: 0 | N129: 0
A130: Ply Add | L130: 0 | M130: 0 | N130: 0
A131: Ply Add | L131: 0 | M131: 0 | N131: 0
A132: Ply | C132: Repurposed Walls | D132: Number of Walls | E132: Percent of total production L/M plywood. | H132: Enter the percent of total production L/M plywood obtained from Repurposed walls | L132: Total Non Wall | N132: =SUM(N113:N131) -> 0 | P132: =IF(SUM(Q113:Q117)>0, "Data Entered Correctly", "No Data Entered") -> No Data Entered
A133: Ply | L133: Repurposed Walls | N133: =N134-N132 -> 0
A134: Ply | C134: Comments | L134: Total | N134: =N132/(1-E133) -> 0
A135: Ply | C135: enter comments on the EAR metrics page | L135: board foot | M135: 144 | N135: in3 | O135: http://www.engineeringtoolbox.com/board-foot-d_1453.html
A136: Ply
A137: Ply
A138: Ply
A139: Ply
A140: Ply
A141: Ply
A142: Ply
A143: Ply
C145: Additional Measures or Challenges
C146: Comments: These comments will appear on the first page of the EAR
C147: Enter comments on the EAR Metrics page.
Y158: Values for graphs-- Filtered to Remove 0s
Y159: Waste | Z159: Value
Y160: =V17 -> Waste to LF | Z160: 0
Y161: Const. Mtl to LF | Z161: 0
Y162: PS Foam to LF | Z162: 0
Y163: Mix Rec. | Z163: 0
Y164: Metal Rec. | Z164: 0
Y165: Rec. Const. Mtl | Z165: 0
Y166: Other Rec. | Z166: 0
Y167: Compost | Z167: 0
Y168: =V25 -> 0
Y169: Fossil Fuel | Z169: Amount
Y170: =Q62 -> Hybrids | Z170: =T62 -> 0
Y171: Biodiesel | Z171: 0
Y172: Electric Cars | Z172: 0
Y173: Solar | Z173: 0
Y174: Grid Tie In | Z174: 0
Y175: Other | Z175: 0
Y177: Plywood | Z177: Amount
Y178: =P113 -> Non-certified | Z178: 0
Y179: FSC | Z179: 0
Y180: Alternative | Z180: 0
Y181: 0 | Z181: 0
Y182: Repurp. Walls | Z182: 0
Y184: Paper | Z184: Amount
Y185: Virgin | Z185: =M99 -> 0
Y186: Recycled | Z186: =N99 -> 0

Sheet EAR
Z1: Total CO2 MT | AA1: =TotalCO2MT -> 0
Z2: Norm Graph Label | AA2: =CONCATENATE("CO2 per ",IF(Type="Film","Shooting Day","Episode")) -> CO2 per Episode
Z3: Homes | AA3: =IF(ISERROR(TotalCO2MT*homesperMTCO2),"", TotalCO2MT*homesperMTCO2) -> 0 | AE3: W | AL3: DON
Z4: Vehicles | AA4: =IF(ISERROR(TotalCO2MT*vehiclesperMTCO2), "", TotalCO2MT*vehiclesperMTCO2) -> 0
Z5: Trees | AA5: =IF(ISERROR(TotalCO2MT*treesperMTCO2), "", ROUND(TotalCO2MT*treesperMTCO2, -1)) -> 0
Z6: GalGas | AA6: =IF(ISERROR(TotalCO2MT*gallonsperMTCO2), "", ROUND(TotalCO2MT*gallonsperMTCO2,-1)) -> 0
AE23: DW | AL23: P
Z44: ='EAR Metrics'!N86 ->  | AE44: F | AL44: PLY
Z45: ='EAR Metrics'!N87 -> 
Z46: ='EAR Metrics'!N88 -> 
Z47: ='EAR Metrics'!N89 -> 
A55: *NOTE: Add EAR comments on the "EAR Metrics" worksheet

Sheet Summary
A1: Benchmark | H1: Total CO2 (MTCO2) | J1: Summary CO2 (MTCO2) | N1: Utility Breakout | P1: Air Breakout | R1: Electricity Details | Y1: Heat Details | AB1: Fuel Details | AE1: Com Air Details | AG1: Chart Air Details | AJ1: Waste | AS1: Drinking Water | AV1: Fuel Savings | BJ1: Donations | CA1: Recycled Paper Content | CJ1: L/M Plywood (board feet) | CO1: EAR
A2: Type | B2: Name | C2: Category | D2: =IF(A3="Film", "Shooting Days", IF(A3 = "TV","Episodes", "Type Not Entered")) -> Type Not Entered | E2: Region | F2: Start Date | G2: End Date | H2: Total Footprint (MTCO2e) | I2: =CONCATENATE("CO2 per ",IF(Type="Film Production","Shooting day",IF(Type="TV Production","episode"))) -> CO2 per FALSE | J2: Total Utilities | K2: Total Fuel CO2 | L2: Total Air Travel | M2: Total Housing | N2: Total Electric MTCO2 | O2: Total Heat MTCO2 | P2: Total Com Air MTCO2 | Q2: Chart Air Total MTCO2 | R2: Total kWh | S2: Entered kWh | T2: SqFt kWh | U2: Cost Kwh | V2: Entered Electric MTCO2 | W2: SqFt Electricity MTCO2 | X2: Cost Electric MTCO2 | Y2: Entered Heat MTCO2 | Z2: SqFt Heat MTCO2 | AA2: Cost Heat MTCO2 | AB2: Fuel use MTCO2 | AC2: Fuel Cost MTCO2 | AD2: Fuel miles MTCO2 | AE2: Com Air Flight Type MTCO2 | AF2: Com Air Total Miles MTCO2 | AG2: Chart Air Fuel Use MTCO2 | AH2: Chart Air Miles MTCO2 | AI2: Chart Air Distance MTCO2 | AJ2: Total Waste (pounds) | AK2: Diversion Rate | AL2: Waste to Landfill (pounds) | AM2: Construction Material to Landfill (pounds) | AN2: Polystyrene Foam to Landfill (pounds) | AO2: Metal Recycling (pounds) | AP2: Recycled Construction Material (pounds) | AQ2: Other Recycled (pounds) | AR2: Compost (pounds) | AS2: Bottles Used | AT2: Bottle saved | AU2: Cost Savings | AV2: Total Fuel Savings (MTCO2) | AW2: Total Fuel Savings (Gallons) | AX2: Hybrids-MTCO2 | AY2: Biodiesel-MTCO2 | AZ2: Electric Cars-MTCO2 | BA2: Solar-MTCO2 | BB2: Grid Tie In MTCO2 | BC2: Other - MTCO2 | BD2: Hybrids- gal | BE2: Biodiesel - gal | BF2: Electric Cars- gal | BG2: Solar-gal | BH2: Grid Tie In-gal | BI2: Other-gal | BJ2: Total $ | BK2: Meals | BL2: Food- Amount | BM2: Food Units | BN2: Food $ | BO2: Set dressing/props- Amount | BP2: Set dressing/props- Units | BQ2: Set dressing/props- Cost | BR2: Wardrobe-Amount | BS2: Wardrobe-Units | BT2: Wardrobe-$ | BU2: Construction Material- Amount | BV2: Construction Material- Units | BW2: Construction Material- $ | BX2: Other-Amount | BY2: Other-Units | BZ2: Other-Cost | CA2: Total Reams | CB2: Total Virgin (reams) | CC2: Total Recycled (Reams) | CD2: Trees Saved | CE2: 0% (reams) | CF2: 30% (reams) | CG2: 50% (reams) | CH2: 70% (reams) | CI2: 100% (reams) | CJ2: Lauan/Meranti- non certified | CK2: Lauan/Meranti - FSC | CL2: Non Lauan Ply/Other -REMOVED | CM2: Lauan Alternative | CN2: Repurposed walls | CO2: Version
A3: =IF(Type="TV Production","TV",IF(Type="Film Production","Film","Not Selected")) -> Not Selected | B3: =Name -> 0 | C3: =IF(A3="Film", '1-Production Info'!C11, IF(A3 = "TV", '1-Production Info'!C12, "Not Entered")) -> Not Entered | D3: =IF(A3="Film", '1-Production Info'!E11, IF(A3 = "TV", '1-Production Info'!E12, "Not Entered")) -> Not Entered | E3: =IF(A3="Film",'1-Production Info'!G11, IF(A3 = "TV", '1-Production Info'!G12, "Not Entered")) -> Not Entered | F3: ='1-Production Info'!E10 -> 00:00:00 | G3: ='1-Production Info'!G10 -> 00:00:00 | H3: =SUM(J3:M3) -> 0 | I3: =IFERROR(H3/D3, "Not Entered") -> Not Entered | J3: =N3+O3 -> 0 | K3: =FuelAll/1000 -> 0 | L3: =P3+Q3 -> 0 | M3: =HouseAll/1000 -> 0 | N3: =EleCO2/1000 -> 0 | O3: =HeatAll/1000 -> 0 | P3: =ComAirTotal/1000 -> 0 | Q3: =ChartAirTotal/1000 -> 0 | R3: =kwhAll -> 0 | S3: =kwh1O -> 0 | T3: =kWh2O -> 0 | U3: =kWh3O -> 0 | V3: =EleCO21/1000 -> 0 | W3: =EleCO22/1000 -> 0 | X3: =EleCO23/1000 -> 0 | Y3: =HeatO1/1000 -> 0 | Z3: =HeatO2/1000 -> 0 | AA3: =HeatO3/1000 -> 0 | AB3: =Fuel1/1000 -> 0 | AC3: =Fuel2/1000 -> 0 | AD3: =Fuel3/1000 -> 0 | AE3: =ComAirO1/1000 -> 0 | AF3: =ComAirO2/1000 -> 0 | AG3: =ChartAir1/1000 -> 0 | AH3: =ChartAir2/1000 -> 0 | AI3: =ChartAir3/1000 -> 0 | AJ3: ='EAR Metrics'!W25 -> 0 | AK3: =IFERROR(WasteDiversion, "Error/not entered") -> Error/not entered | AL3: ='EAR Metrics'!W17 -> 0 | AM3: ='EAR Metrics'!W18 -> 0 | AN3: ='EAR Metrics'!W19 -> 0 | AO3: ='EAR Metrics'!W21 -> 0 | AP3: ='EAR Metrics'!W22 -> 0 | AQ3: ='EAR Metrics'!W23 -> 0 | AR3: ='EAR Metrics'!W24 -> 0 | AS3: =BottlesUsed -> 0 | AT3: =BottlesSaved ->  | AU3: =WaterCostSavings ->  | AV3: =FuelCO2Saved -> 0 | AW3: =FuelGalSaved -> 0 | AX3: ='EAR Metrics'!T62 -> 0 | AY3: ='EAR Metrics'!T63 -> 0 | AZ3: ='EAR Metrics'!T64 -> 0 | BA3: ='EAR Metrics'!T65 -> 0 | BB3: ='EAR Metrics'!T66 -> 0 | BC3: ='EAR Metrics'!T67 -> 0 | BD3: ='EAR Metrics'!S62 -> 0 | BE3: ='EAR Metrics'!S63 -> 0 | BF3: ='EAR Metrics'!S64 -> 0 | BG3: ='EAR Metrics'!S65 -> 0 | BH3: ='EAR Metrics'!S66 -> 0 | BI3: ='EAR Metrics'!S67 -> 0 | BJ3: =DollarDonations ->  | BK3: ='EAR Metrics'!O84 ->  | BL3: ='EAR Metrics'!D85 -> 0 | BM3: ='EAR Metrics'!E85 -> 0 | BN3: ='EAR Metrics'!F85 -> 0 | BO3: ='EAR Metrics'!D86 -> 0 | BP3: ='EAR Metrics'!E86 -> 0 | BQ3: ='EAR Metrics'!F86 -> 0 | BR3: ='EAR Metrics'!D87 -> 0 | BS3: ='EAR Metrics'!E87 -> 0 | BT3: ='EAR Metrics'!F87 -> 0 | BU3: ='EAR Metrics'!D88 -> 0 | BV3: ='EAR Metrics'!E88 -> 0 | BW3: ='EAR Metrics'!F88 -> 0 | BX3: ='EAR Metrics'!D89 -> 0 | BY3: ='EAR Metrics'!E89 -> 0 | BZ3: ='EAR Metrics'!F89 -> 0 | CA3: =TotalPaper -> 0 | CB3: ='EAR Metrics'!M99 -> 0 | CC3: ='EAR Metrics'!N99 -> 0 | CD3: =TreesSaved -> 0 | CE3: ='EAR Metrics'!D94 -> 0 | CF3: ='EAR Metrics'!D95 -> 0 | CG3: ='EAR Metrics'!D96 -> 0 | CH3: ='EAR Metrics'!D97 -> 0 | CI3: ='EAR Metrics'!D98 -> 0 | CJ3: ='EAR Metrics'!Q113 -> 0 | CK3: ='EAR Metrics'!Q114 -> 0 | CM3: ='EAR Metrics'!Q115 -> 0 | CN3: ='EAR Metrics'!Q117 -> 0 | CO3: ='Intro & Checklist'!D1 -> Version 3.3.0M

Sheet Megan tasks (hidden)
A1: Task No. | B1: Worksheet | C1: Task for Megan | D1: Comments by Megan | E1: Status | F1: Date | G1: QC? (CN Comments) | H1: Follow-Up | I1: Date
A2: 1 | B2: ALL (Workbook Open Event) | C2: Workbook open settings- remind me what these do? Open specific worksheets for admin users?-- see details Below (Permissions) | D2: This sets up workbook every time it opens to a certain page and protection/show/hide. It gives clean tool. See "ReadMe" for passwords. Note I updated tab names below to match actual. See "Workbook Open" under Workbook module in VBA. | E2: Complete | F2: 2013-12-18 | G2: 1. I would like to delete worksheet 8-Practices and Procurement-- I couldn't find this VBA module? Can we discuss what this does again? 2. I would like the Summary and Settings worksheets to not hide if a user enters an admin password. 3. All worksheets should be protected. The yellow cells in Settings should be unprotected (I did this). I think the other sheets should already be set to the right protections. 4. Leave the EAR unprotected for now while lauren finishes it up, but that will be protected eventually. | H2: 1. I deleted Worksheet 8 and updated VBA Module. VBA Module is under ThisWorkbook (Workbook_Open) since this is an Event Handler (these are always under corresponding "Microsoft Excel Object"). 2. See what I did for now (prompt) 3. Please update the table below where you listed requested protections. (Starting A12), especially if you want to re-name any tabs (per Introduction) 4. Protected EAR since Lauren done, what about EAR Metrics? | I2: 2014-01-08
A3: 2 | B3: 1- Production Info | C3: Add a radio button or dropdown? for "Film Production" or "TV Production". If TV selected, hide Film rows. If radio selected, hide TV rows. (listed in Column A) | D3: Added Row with Dropdown. Key on top is confusing, required vs. non-required, but there is a third type. Should there be a key item for "Optional information" (white)? VBA is in Worksheet (Event Handler), right click "View Code" on tab name. | E3: Complete | F3: 2013-12-30 | G3: Can you not show the "Please update production site" pop up if something is already selected? Functionality looks good. | H3: If not working, make sure that "Application.EnableEvents = True" (close and open workbook to reactivate) | I3: 2014-01-08
A4: 3 | B4: EAR metrics | C4: Check boxes with EAR options. Only show rows for sections checked | D4: Note there are broken calculations on this tab, can those be updated or removed (tables to right)? Did "X" cells since easier. Note this sheet is unprotected, so the user could hide/unhide rows themselves but I do a check when leaving the page to make sure the right rows are showing. OK to go with static row numbers as they are, or do you need to accomodate for inserting rows? Currently does the former. | E4: Complete | F4: 2013-12-31 | G4: Looks good. Broken calculations are updated or noted (e.g., "Data Input Error" OK to go with static row numbers. We will protect this sheet except for the specific data entry rows. | H4: OK No Further Changes | I4: 2014-01-08
A5: 4 | B5: EAR Metrics | C5: button/checkbox to add rows for Wadd and PlyAdd | D5: OK added. Can you remind me what these rows represent? Optional/added rows? | E5: Complete | F5: 2013-12-31 | G5: This looks good. This is for users to enter extra rows of information if they want to put the same waste/plywood type with different units. | H5: OK No Further Changes | I5: 2014-01-08
A6: 5 | B6: EAR Metrics | C6: Interface to select quadrants for EAR reports- only allow checked items in dropdown. Items can be selected more than once. Anything checked with an "X" can be selected from dropdown | D6: Clear value if selected and X --> "". Pull quadrants from EAR tab. Goes into quadrant on EAR tab. | E6: Complete | F6: 2013-12-31 | G6: Looks good. | H6: OK No Further Changes | I6: 2014-01-08
A7: 5a | B7: EAR | C7: Set location of EAR Report in appropriate quadrant (partial task for next week) | D7: Updated size and location of quadrants so clean fit/alignment.--> Megan, a graphics person is working on this, all you will need to do is move the text/graphics to the right place, please wait on this task until we discuss | E7: Complete | F7: 2014-01-09 | G7: I think you should be able to group the whole panel (this can be done ahead of time) and move it to the selected quadrant spot? | H7: Completed, note the panels map to CELL addresses: N11, S11, N31, S31, Also Updated to Delete Groups if Copied Over Previously (Should Only Ever be One Group per Panel Now) | I7: 2014-01-10
A8: 6 | B8: Refresh button | C8: Reset all sheets to initial settings (no data entered) | D8: Set up a message box to "ask" user before making change, in case they don't know what button is. See VBA Module "Refresh". Confirm these are the appropriate resets. PS I don't know how to make the text boxes fancy graphics like you do, can you show me or do so for the "Refresh" button? | E8: Complete | F8: 2014-01-03 | G8: I added clear values for the EAR values. This looks good. | H8: OK No Further Changes | I8: 2014-01-08
A9: 7 | B9: Settings | C9: Hide "index" rows if corresponding setting not equal to "yes" (see columns J through L) if this is easier to do as checkboxes, that's fine too-- whatever works for you. | D9: See updates, I also used text to show the cell values that are changing, don’t delete any cells. Note the macro loops through rows 14-44 looking for triggers, we can always change this range. | E9: Complete | F9: 2014-01-02 | G9: I moved some things around-- I updated the text and the references, and all seems to work. Can you please give it a quick check to make sure I didn't screw anything up. | H9: OK No Further Changes (Note I made column A text white, still need text there but invisible) | I9: 2014-01-08
A10: 8 | B10: Protection issues | C10: see email on 1/23 with details of small errors
A13: NOTE: THE TAB NAMES MUST MATCH LISTING BELOW (do not rename without notifying Megan)
A14: Permissions | B14: Read-Write | C14: Protection | D14: Assumptions
A15: Intro & Checklist | B15: All | C15: Unprotected
A16: 1-Production Info | B16: All | C16: Protect
A17: 2-Electricity | B17: All | C17: Protect
A18: 3-Nat Gas & Heating Oil | B18: All | C18: Protect
A19: 4-Fuel | B19: All | C19: Protect
A20: 5-Hotels-Housing | B20: All | C20: Protect
A21: 6-Commercial Air Travel | B21: All | C21: Protect
A22: 7-Charter and Heli Flights | B22: All | C22: Protect
A23: Summary | B23: Admin | C23: Protect | D23: Unhide and Unprotect if Admin Enters Password: environ
A24: Settings | B24: Admin | C24: Protect | D24: Unhide and Unprotect if Admin Enters Password: environ
A25: EAR Metrics | B25: All | C25: Protect
A26: EAR | B26: All | C26: Protected
A27: Megan tasks | B27: All (TEMPORARY UNHIDE) | C27: Unprotected
A28: All others | B28: Hidden | C28: Protect
A31: WILL HIDE WHEN DONE CODING

Sheet Settings
B1: =CONCATENATE(Name, " EAR Settings") -> EAR Settings
K2: Hide associated Row index not set to "Yes"
B3: Production Information
B4: =Type -> 0 | C4: =IF(Type="Film Production",FilmCat,IF(Type="TV Production",TVCat,"Data Error")) -> Data Error | J4: $C$9 | K4: NetCO2BM1 | L4: Net Benchmark 1 | M4: =C9 -> No
B5: Location: | C5: =Region -> Not Entered | J5: $C$11 | K5: NetCO2BM2 | L5: Net Benchmark 2 | M5: =C11 -> No
B6: =IF(Type="Film Production","Number of Shooting Days:", IF(Type="TV Production","Number of Episodes:","Data Error")) -> Data Error | C6: =IF(Type="Film production",NumberShootDays,IF(Type="TV production",NumEpisodes,"Data Error")) -> Data Error | J6: $C$14 | K6: NormCO2BM1 | L6: Norm Benchmark 1 | M6: =C14 -> No
J7: $C$16 | K7: NormCO2BM2 | L7: Norm Benchmark 2 | M7: =C16 -> No
B8: Carbon Footprint Goals/Benchmark Options | J8: $C$13 | K8: NormGoal | L8: NormGoal | M8: =C13 -> No
B9: Include Net Benchmark 1? | C9: No | J9: $C$33 | K9: WasteBM | L9: WasteBenchmark | M9: =C33 -> No
A10: NetCO2BM1 | B10: Net Benchmark 1 Name: | C10: Ave Med Prod. | J10: $C$35 | K10: WasteGoal | L10: WasteGoal | M10: =C35 -> No
B11: Include Net Benchmark 2? | C11: No | J11: $C$47 | K11: H20BM | L11: H20 Benchmark | M11: =C47 -> No
A12: NetCO2BM2 | B12: Net Benchmark 2 Name: | C12: Studio | J12: $C$49 | K12: H20Goal | L12: H20 Goal | M12: =C49 -> No
B13: Include Norm Goal? | C13: No | J13: $C$55 | K13: PaperBM | L13: Paper Benchmark | M13: =C55 -> No
B14: Include Norm Benchmark 1? | C14: No | J14: $C$57 | K14: PaperGoal | L14: Paper Goal | M14: =C57 -> No
A15: NormCO2BM1 | B15: Norm Benchmark 1 Name: | C15: Ave Med Prod.
B16: Include Net Benchmark 2? | C16: No
A17: NormCO2BM2 | B17: Norm Benchmark 2 Name: | C17: Studio
B19: Net CO2 Emissions Benchmarks
C20: Utilities | D20: Fuel | E20: Air | F20: Housing | G20: Total
B21: =Name -> 0 | C21: =Utilities -> 0 | D21: =Fuel -> 0 | E21: =Air -> 0 | F21: =Housing -> 0 | G21: =TotalCO2MT -> 0
A22: NetCO2BM1 | B22: =C10 -> Ave Med Prod. | C22: 105 | D22: 50 | E22: 170 | F22: 60 | G22: =SUM(C22:F22) -> 385
A23: NetCO2BM2 | B23: =C12 -> Studio | C23: 85 | D23: 45 | E23: 175 | F23: 55 | G23: =SUM(C23:F23) -> 360
B25: Intensity Emissions Benchmarks | C25: used for goal | D25: =CONCATENATE("CO2 per ",IF(Type="Film Production","Shooting Day",IF(Type="TV Production","Episode"))) -> CO2 per FALSE | E25: used for goal
B26: =Name -> 0 | D26: =TotalCO2MT/NormFactor -> 
A27: NormCO2BM1 | B27: =C15 -> Ave Med Prod. | D27: 6.5
A28: NormCO2BM2 | B28: =C17 -> Studio | D28: 6.4
A29: NormGoal | B29: Goal | C29: =D29 -> 6 | D29: 6 | E29: =C29 -> 6 | J29: =IF(Type="Film Production","Shooting Day",IF(Type="TV Production","Episode")) -> FALSE | K29: used for graph label
B32: Waste Benchmarks
B33: Include Waste Div. Benchmark? | C33: No
A34: WasteBM | B34: Waste Benchmark Name: | C34: Studio
B35: Include Waste Benchmark Goal? | C35: No
C37: Diversion Rate
B38: =Name -> 0 | C38: =WasteDiversion -> 
A39: WasteBM | B39: =C34 -> Studio | C39: 0.4 | J39: =IF(C33="Yes", CONCATENATE(B39,": ",C39*100, "%"), "") -> 
A40: WasteGoal | B40: Goal | C40: 0.5 | J40: =IF(C35="Yes", CONCATENATE(B40, ": ", 100*C40, "%"), "") -> 
B42: Water Bottle Settings/Benchmarks
B44: Estimated Cost per 0.5L Bottle: | C44: 1.29
B45: Estimated Cost per Jug: | C45: 30
B46: Estimated Cost per Reusable Bottle: | C46: 12
B47: Include H20 Bottle Benchmark? | C47: No
A48: H20BM | B48: H20 Bottle Benchmark Name: | C48: Benchmark
B49: Include H20 Bottle Goal? | C49: No
A50: H20BM | B50: =C48 -> Benchmark | C50: 2000 | J50: =IF(C47="Yes", CONCATENATE(B50,": ",C50), "") -> 
A51: H20Goal | B51: Goal | C51: 1000 | J51: =IF(C49="No", "", CONCATENATE(B51, ": ", C51)) -> 
B53: Recycled Paper Benchmarks
B55: Include Paper Benchmark? | C55: No
A56: PaperBM | B56: Paper Benchmark Name: | C56: Benchmark
B57: Include Paper Goal? | C57: No
A58: PaperBM | B58: =C56 -> Benchmark | C58: 600 | J58: =IF(C55="Yes", CONCATENATE(B58,": ",C58), "") -> 
A59: PaperGoal | B59: Goal | C59: 200 | J59: =IF(C57="No", "", CONCATENATE(B59, ": ", C59)) -> 

Sheet Results (hidden)
C2: ="Carbon Footprint of "&'1-Production Info'!C10 -> Carbon Footprint of | L2: Carbon Footprint Results
L3: Utilities
D4: Emission Source | E4: Metric Tons CO2 | F4: Percent Contribution | L4: Fu
D5: Electricity | E5: =IF(ISERROR('2-Electricity'!U14/1000), "Data Error", ('2-Electricity'!U14/1000)) -> 0 | F5: =IF(AND(ISNUMBER($E$10), $E$10>0), E5/$E$10, "") -> 
D6: Natural Gas & Heating Oil | E6: =IF(ISERROR('3-Nat Gas & Heating Oil'!X12/1000), "Data Error", '3-Nat Gas & Heating Oil'!X12/1000) -> 0 | F6: =IF(AND(ISNUMBER($E$10), $E$10>0), E6/$E$10, "") ->  | L6: Shooting Days | M6: 30
D7: Fuel Use | E7: =IF(ISERROR('4-Fuel'!V13/1000), "Data Error", ('4-Fuel'!V13/1000)) -> 0 | F7: =IF(AND(ISNUMBER($E$10), $E$10>0), E7/$E$10, "") ->  | M7: Production | N7: Benchmark 1 | O7: Benchmark 2 | P7: Goal
D8: Air Travel | E8: =IF(OR(ISERROR('6-Commercial Air Travel'!S12), ISERROR('7-Charter and Heli Flights'!S12)), "Data Error", ('6-Commercial Air Travel'!S12+'7-Charter and Heli Flights'!S12)/1000) -> 0 | F8: =IF(AND(ISNUMBER($E$10), $E$10>0), E8/$E$10, "") ->  | L8: Utilities | M8: =IF(ISERROR('2-Electricity'!U14/1000), "Data Error", ('2-Electricity'!U14/1000))+IF(ISERROR('3-Nat Gas & Heating Oil'!X12/1000), "Data Error", '3-Nat Gas & Heating Oil'!X12/1000) -> 0 | N8: =M8*1.1 -> 0 | O8: =M8*0.9 -> 0
D9: Hotels-Housing | E9: =IF(ISERROR('5-Hotels-Housing'!S12/1000), "Data Error", ('5-Hotels-Housing'!S12/1000)) -> 0 | F9: =IF(AND(ISNUMBER($E$10), $E$10>0), E9/$E$10, "") ->  | L9: Fuel Use | M9: =IF(ISERROR('4-Fuel'!V13/1000), "Data Error", ('4-Fuel'!V13/1000)) -> 0 | N9: =M9*1.1 -> 0 | O9: =M9*0.9 -> 0
D10: Total | E10: =IF(OR(E5="Data Error", E6="Data Error", E7="Data Error", E8="Data Error", E9="Data Error"), "Data Error",SUM(E5:E9)) -> 0 | F10: =IF(AND(ISNUMBER($E$10), E15>0), E10/$E$10, "") ->  | L10: Air Travel | M10: =IF(OR(ISERROR('6-Commercial Air Travel'!S12), ISERROR('7-Charter and Heli Flights'!S12)), "Data Error", ('6-Commercial Air Travel'!S12+'7-Charter and Heli Flights'!S12)/1000) -> 0 | N10: =M10*1.1 -> 0 | O10: =M10*0.9 -> 0
L11: Hotels/Housing | M11: =IF(ISERROR('5-Hotels-Housing'!S12/1000), "Data Error", ('5-Hotels-Housing'!S12/1000)) -> 0 | N11: =M11*1.1 -> 0 | O11: =M11*0.9 -> 0
L12: Total | M12: =SUM(M8:M11) -> 0 | N12: =M12*1.1 -> 0 | O12: =M12*0.9 -> 0
C13: CO2 Emissions from this | M13: Production | N13: Benchmark 1 | O13: Benchmark 2 | P13: Goal
C14: production are equivalent to*: | L14: Norm 1 | M14: 0 | N14: 0 | O14: 0 | P14: 1
L15: Normalized | M15: =M12/M6 -> 0 | N15: =M15*1.1 -> 0 | O15: =M15*0.9 -> 0 | P15: 1
C16: Annual energy use from | L16: Norm 2 | M16: 0 | N16: 0 | O16: 0 | P16: 1
C17: =IF(ISERROR(E10*homesperMTCO2),"", E10*homesperMTCO2) -> 0 | D17: homes
C19: Annual emissions from
C20: =IF(ISERROR(E10*vehiclesperMTCO2), "", E10*vehiclesperMTCO2) -> 0 | D20: vehicles
C22: =IF(ISERROR(E10*treesperMTCO2), "", ROUND(E10*treesperMTCO2, -1)) -> 0 | D22: trees | L22: Top of page: Production name and Total carbon footprint; Primary Location, Category of Film or Television production.
D23: grown for 10 years | L23: Carbon Footprint Results:
L24: Bar chart with net results summarized in the following categories:
C25: =IF(ISERROR(E10*gallonsperMTCO2), "", ROUND(E10*gallonsperMTCO2,-1)) -> 0 | D25: gallons | L25: · Utilities (Electricity, Natural Gas & Heating Oil)
D26: of gasoline | L26: · Fuel
L27: · Air Travel (Commercial and Charter)
L28: · Hotels/Housing
L29: Bar chart with production footprint normalized results (per shooting day or per episode)
L30: Carbon Equivalencies & associated graphics | M30: Text box in which users can add additional measures/challenges
L31: · Annual energy use from X homes
L32: · Annual emissions from X vehicles
L33: · X trees grown for 10 years
L34: · X gallons of gasoline
C45: *Based on EPA Greenhouse Gas Equivalencies Calculator: http://www.epa.gov/cleanenergy/energy-resources/calculator.html
T59: Waste | U59: Water

Sheet Sheet1 (hidden)

Sheet Lookups (hidden)
A1: Area_Units | B1: AreaConvert | C1: HeatFuel | D1: NG_Units | E1: NGConvert | F1: FO_Units | G1: FOConvert | H1: Equipment | I1: EquipmentType | J1: Reason | K1: Fuel_Units | L1: FuelUnitsConvert | M1: VehicleFuels | N1: EquipmentFuels | O1: Countries | P1: States | Q1: CANProvinces | R1: AusState | S1: FuelOpt3Units | T1: DistanceUnits | U1: DistanceConvert | V1: FlightDistanceUnits | W1: FlightDistanceConversion | X1: FlightClass | Y1: PlaneTypes | Z1: RoomTypes | AA1: WasteUnits | AC1: Procurement | AD1: WoodTypes | AE1: PaperTypes | AF1: Water Types | AG1: PaintTypes | AH1: PaperUnits | AI1: VolUnits | AJ1: EventTypes | AK1: CBECType | AL1: =IF(ISBLANK('1-Production Info'!B20), 1, '1-Production Info'!B20) -> 1 | AM1: FilmCategories | AN1: TVCategories | AO1: Locations | AP1: WasteTypes | AQ1: WasteDensity (lb per cubic yard) | AR1: WasteCost ($/lb) | AS1: PlyTypes | AT1: WasteWeight | AU1: WasteConversions | AV1: WasteVol | AW1: WasteVolConversion | AX1: Bottles | AY1: Check
A2: square feet | B2: 1 | C2: Fuel Oil | D2: cubic feet | E2: 1 | F2: gallons | G2: 1 | H2: Cars | I2: Vehicle | J2: Personal | K2: gallons | L2: 1 | M2: Gasoline | N2: Gasoline | O2: USA | P2: AK | Q2: Alberta | R2: New South Wales | S2: miles | T2: miles | U2: 1 | V2: land miles | W2: 1 | X2: First | Y2: Chartered Commercial Jet | Z2: Economy Hotel | AA2: pounds | AC2: Wood | AD2: Lauan/Meranti- non certified | AE2: Recycled white | AF2: Bottled water | AG2: Low VOC | AH2: Reams | AI2: Gallons | AJ2: On Location | AK2: Office ....................... | AL2: =IF(ISBLANK('1-Production Info'!B21), 1, '1-Production Info'!B21) -> 1 | AM2: Digital | AN2: ½ Hour Scripted, single camera | AO2: West Coast US | AP2: Waste to Landfill | AQ2: =AT23 -> 450 | AR2: =45/2000 -> 0.0225 | AS2: Lauan/Meranti- non certified | AT2: lbs | AU2: 1 | AV2: Cubic yard bins | AW2: 1 | AX2: Bottles per jug | AY2: X
A3: square meters | B3: 10.7639104 | C3: Natural Gas | D3: cubic meters | E3: =1/0.028317 -> 35.3144754 | F3: liters | G3: 0.264172052 | H3: Motorcycles | I3: Vehicle | J3: Production | K3: liters | L3: 0.264172052 | M3: Diesel Fuel | N3: Diesel Fuel | O3: Canada | P3: AL | Q3: British Columbia | R3: Australian Capital Teritory | S3: hours | T3: kilometers | U3: 0.621371192 | V3: kilometers | W3: 0.621371192 | X3: Business | Y3: Large Private Jet | Z3: Midscale Hotel | AA3: kilograms | AC3: Paper | AD3: Lauan/Meranti - FSC | AE3: Recycled color | AF3: 5 gallon bottles | AG3: No VOC | AH3: Cases | AI3: Liters | AJ3: Office | AK3: Office ....................... | AL3: =IF(ISBLANK('1-Production Info'!B22), 1, '1-Production Info'!B22) -> 1 | AM3: Micro | AN3: ½ hour scripted, multi-camera | AO3: Southern US | AP3: Construction Material to Landfill | AQ3: =AT24 -> 484 | AR3: =45/2000 -> 0.0225 | AS3: Lauan/Meranti - FSC | AT3: kgs | AU3: =1/0.453592 -> 2.20462442 | AV3: Gallon containers | AW3: =1/201.974026 -> 0.004951131687 | AX3: Cost per jug
A4: square yards | B4: 9 | D4: Btu | E4: =1/1028 -> 0.0009727626459 | F4: Btu | G4: =1/138698 -> 7.209909299e-06 | H4: Buses | I4: Vehicle | J4: Rental | K4: std cubic feet | L4: =1/134.71 -> 0.007423353871 | M4: Biodiesel (B100) | N4: Kerosene | O4: United Kingdom | P4: AR | Q4: Manitoba | R4: Victoria | V4: nautical miles | W4: 1.1516 | X4: Economy Plus | Y4: Small Private Jet | Z4: Upscale Hotel | AA4: metric tons | AC4: Paint | AD4: Non Lauan Ply/Other | AE4: Virgin white | AJ4: Warehouse | AK4: Warehouse and Storage ........ | AL4: =IF(ISBLANK('1-Production Info'!B23), 1, '1-Production Info'!B23) -> 1 | AM4: Small | AN4: 1 Hour scripted drama | AO4: Other US | AP4: Polystyrene Foam to Landfill | AQ4: 50.56665 | AR4: 0.0225 | AS4: Lauan Alternative | AT4: tons | AU4: =2000 -> 2000 | AX4: Cost per bottle
A5: acres | B5: 43560 | D5: Megajoules | E5: =1/1.0846 -> 0.9219988936 | F5: Megajoules | G5: =1/146.33 -> 0.006833868653 | H5: Vans, Pickups, SUVs | I5: Vehicle | J5: Other | M5: B5 | N5: RFO (Ships) | O5: Australia | P5: AZ | Q5: Labrador | R5: Queensland | X5: Economy | Y5: Helicopter | Z5: Luxury Hotel | AA5: tons | AC5: Ahesives | AD5: Ply Alternative | AE5: Virgin color | AJ5: Stage(s) | AK5: Warehouse and Storage ........ | AL5: =IF(ISBLANK('1-Production Info'!B24), 1, '1-Production Info'!B24) -> 1 | AM5: Medium | AN5: Animated | AO5: Canada | AP5: Mixed Recycled | AQ5: 117.98885 | AR5: 0.0225 | AT5: metric tons | AU5: =1/0.00045359237 -> 2204.622622
H6: Trucks (<18 wheel) | I6: Vehicle | K6: Fuel_UnitsPropane | M6: B20 | N6: Propane | O6: Albania | P6: CA | Q6: New Brunswick | R6: South Australia | X6: Unknown | Z6: Apartment/Condo | AC6: Glass | AD6: Recycled | AL6: =IF(ISBLANK('1-Production Info'!B25), 1, '1-Production Info'!B25) -> 1 | AM6: Large | AN6: Reality/Variety | AO6: UK/Europe | AP6: Metal Recycling | AQ6: 340 | AR6: 0.0225
H7: 18 Wheelers | I7: Vehicle | K7: gallons | L7: =L2 -> 1 | M7: B40 | N7: Fuel Oil | O7: Algeria | P7: CO | Q7: Newfoundland | R7: Western Australia | Z7: Average House | AC7: Water | AD7: Wood alternative | AL7: =IF(ISBLANK('1-Production Info'!B26), 1, '1-Production Info'!B26) -> 1 | AM7: Tentpole | AN7: Movie of the Week | AO7: Other International | AP7: Recycled Construction Material | AQ7: 484 | AR7: 0.0225
H8: All Vehicles | I8: Vehicle | K8: liters | L8: =L3 -> 0.264172052 | M8: B99 | N8: Biodiesel (B100) | O8: Angola | P8: CT | Q8: Nova Scotia | R8: Tasmaian | Z8: Large House | AC8: Styrofoam | AD8: Other | AL8: =IF(ISBLANK('1-Production Info'!B27), 1, '1-Production Info'!B27) -> 1 | AN8: Pilot Presentation | AO8: Multiple | AP8: Other Recycled | AQ8: 356.7701642 | AR8: 0.0225
H9: Hybrid SUVs | I9: Vehicle | K9: kilograms | L9: =1/L15 -> 0.5358458418 | M9: Ethanol (E100) | N9: B5 | O9: Argentina | P9: DC | Q9: Ontario | R9: Northern Territory | AC9: Other "Green" Purchases | AL9: =IF(ISBLANK('1-Production Info'!B28), 1, '1-Production Info'!B28) -> 1 | AN9: Daytime Drama | AP9: Compost | AQ9: 264.632135 | AR9: 0.0225
H10: Hybrid Cars | I10: Vehicle | M10: E85 | N10: B20 | O10: Armenia | P10: DE | Q10: Prince Edward Island | AL10: =IF(ISBLANK('1-Production Info'!B29), 1, '1-Production Info'!B29) -> 1
H11: Boat | I11: Equipment | M11: LNG | N11: B40 | O11: Australia | P11: FL | Q11: Quebec | AL11: =IF(ISBLANK('1-Production Info'!B30), 1, '1-Production Info'!B30) -> 1
H12: Generator | I12: Equipment | M12: LPG | N12: B99 | O12: Austria | P12: GA | Q12: Saskatchewan | AL12: =IF(ISBLANK('1-Production Info'!B31), 1, '1-Production Info'!B31) -> 1
H13: Cooking Equipment | I13: Equipment | K13: Propkgperm3 | L13: 493 | M13: CNG | N13: E100 | O13: Azerbaijan | P13: HI | Q13: Yukon | AL13: =IF(ISBLANK('1-Production Info'!B32), 1, '1-Production Info'!B32) -> 1
H14: Lift | I14: Equipment | K14: galperm3 | L14: 264.172 | N14: E85 | O14: Bahrain | P14: IA | Q14: Northwest Territories | AL14: =IF(ISBLANK('1-Production Info'!B33), 1, '1-Production Info'!B33) -> 1
H15: Other | I15: Equipment | K15: Propkgpergal | L15: =L13/L14 -> 1.866208379 | N15: LNG | O15: Bangladesh | P15: ID | Q15: Nunavut | AL15: =IF(ISBLANK('1-Production Info'!B34), 1, '1-Production Info'!B34) -> 1
K16: kg/lt | L16: =L9/L8 -> 2.028397167 | N16: LPG | O16: Belarus | P16: IL | AL16: =IF(ISBLANK('1-Production Info'!B35), 1, '1-Production Info'!B35) -> 1 | AQ16: http://www.calrecycle.ca.gov/wastechar/DispRate.htm
N17: CNG | O17: Belgium | P17: IN | AL17: =IF(ISBLANK('1-Production Info'!B36), 1, '1-Production Info'!B36) -> 1 | AQ17: http://www.deq.state.ms.us/mdeq.nsf/page/Recycling_MaterialDensityandVolumeConversion?OpenDocument
O18: Benin | P18: KS | AL18: =IF(ISBLANK('1-Production Info'!B37), 1, '1-Production Info'!B37) -> 1 | AP18: Polystreme foam | AQ18: 0.03g/cm³ | AR18: http://www.engineeringtoolbox.com/density-solids-d_1265.html
O19: Bolivia | P19: KY | AL19: =IF(ISBLANK('1-Production Info'!B38), 1, '1-Production Info'!B38) -> 1 | AP19: Compost (assume food) | AR19: http://www.wrap.org.uk/sites/files/wrap/Bulk%20Density%20Summary%20Report%20-%20Jan2010.pdf
O20: Bosnia and Herzegovina | P20: LA | AL20: =IF(ISBLANK('1-Production Info'!B39), 1, '1-Production Info'!B39) -> 1 | AP20: Co-mingled: Plastic bottles, news & pams, cardboard, mixed cans and glass Co-mingled: Plastic bottles, news & pams, cardboard, mixed cans and glass | AQ20: 405 kg/m3
O21: Botswana | P21: MA | AL21: =IF(ISBLANK('1-Production Info'!B40), 1, '1-Production Info'!B40) -> 1 | AV21: 1.685555
O22: Brazil | P22: MD | AL22: =IF(ISBLANK('1-Production Info'!B41), 1, '1-Production Info'!B41) -> 1 | AP22: Category | AQ22: Reference Classification | AR22: original value | AS22: original units | AT22: WasteDensity (lb per cubic yard)
O23: Brunei Darussalam | P23: ME | AL23: =IF(ISBLANK('1-Production Info'!B42), 1, '1-Production Info'!B42) -> 1 | AP23: Waste to Landfill | AQ23: Ave Commercial/Industrial | AR23: 450 | AS23: pounds/yd3 | AT23: =AR23 -> 450 | AU23: http://www.epa.gov/osw/conserve/tools/recmeas/docs/guide_b.pdf
O24: Bulgaria | P24: MI | AL24: =IF(ISBLANK('1-Production Info'!B43), 1, '1-Production Info'!B43) -> 1 | AP24: Construction Material to Landfill | AQ24: C&D Debris | AR24: 484 | AS24: pounds/yd3 | AT24: =AR24 -> 484 | AU24: http://www.dep.state.fl.us/waste/quick_topics/publications/shw/recycling/candd/cdconversionformula.pdf
O25: Cambodia | P25: MN | AL25: =IF(ISBLANK('1-Production Info'!B44), 1, '1-Production Info'!B44) -> 1 | AP25: Polystyrene Foam to Landfill | AQ25: Foam | AR25: 30 | AS25: kg/m3 | AT25: =AR25*$AV$21 -> 50.56665 | AU25: http://www.epa.vic.gov.au/business
O26: Cameroon | P26: MO | AL26: =IF(ISBLANK('1-Production Info'!B45), 1, '1-Production Info'!B45) -> 1 | AP26: Mixed Recycled | AQ26: Co-mingled: Plastic bottles, news & pams, cardboard and mixed cans | AR26: 70 | AS26: kg/m3 | AT26: =AR26*$AV$21 -> 117.98885 | AU26: http://www.wrap.org.uk/sites/files/wrap/Bulk%20Density%20Summary%20Report%20-%20Jan2010.pdf
O27: Canada | P27: MS | AL27: =IF(ISBLANK('1-Production Info'!B46), 1, '1-Production Info'!B46) -> 1 | AP27: Metal Recycling | AQ27: Ave Aluminum can (compacted manually) | AR27: =(250+430)/2 -> 340 | AS27: pounds/yd3 | AT27: 340 | AU27: http://www.epa.gov/osw/conserve/tools/recmeas/docs/guide_b.pdf
O28: Chile | P28: MT | AL28: =IF(ISBLANK('1-Production Info'!B47), 1, '1-Production Info'!B47) -> 1 | AP28: Recycled Construction Material | AQ28: C&D Debris | AR28: 484 | AT28: =AR28 -> 484 | AU28: http://www.wastediversion.org/files/managed/Document/230/Weight
O29: China (including Hong Kong) | P29: NC | AL29: =IF(ISBLANK('1-Production Info'!B48), 1, '1-Production Info'!B48) -> 1 | AP29: Other Recycled | AQ29: Ave excluding foam | AT29: =AVERAGE(AT23:AT24,AT26:AT28,AT30) -> 356.7701642
O30: Taiwan, China | P30: ND | AL30: =IF(ISBLANK('1-Production Info'!B49), 1, '1-Production Info'!B49) -> 1 | AP30: Compost | AQ30: Food and garden | AR30: 157 | AS30: kg/m3 | AT30: =AR30*$AV$21 -> 264.632135 | AU30: http://www.wrap.org.uk/sites/files/wrap/Bulk%20Density%20Summary%20Report%20-%20Jan2010.pdf
O31: Colombia | P31: NE | AL31: =IF(ISBLANK('1-Production Info'!B50), 1, '1-Production Info'!B50) -> 1
O32: Congo | P32: NH | AL32: =IF(ISBLANK('1-Production Info'!B51), 1, '1-Production Info'!B51) -> 1
O33: Costa Rica | P33: NJ | AL33: =IF(ISBLANK('1-Production Info'!B52), 1, '1-Production Info'!B52) -> 1
O34: Côte d'Ivoire | P34: NM | AL34: =IF(ISBLANK('1-Production Info'!B53), 1, '1-Production Info'!B53) -> 1
O35: Croatia | P35: NV | AL35: =IF(ISBLANK('1-Production Info'!B54), 1, '1-Production Info'!B54) -> 1
O36: Cuba | P36: NY | AL36: =IF(ISBLANK('1-Production Info'!B55), 1, '1-Production Info'!B55) -> 1
O37: Cyprus | P37: OH | AL37: =IF(ISBLANK('1-Production Info'!B56), 1, '1-Production Info'!B56) -> 1
O38: Czech Republic | P38: OK | AL38: =IF(ISBLANK('1-Production Info'!B57), 1, '1-Production Info'!B57) -> 1
O39: Dem. People's Republic of Korea | P39: OR | AL39: =IF(ISBLANK('1-Production Info'!B58), 1, '1-Production Info'!B58) -> 1
O40: Democratic Republic of Congo | P40: PA | AL40: =IF(ISBLANK('1-Production Info'!B59), 1, '1-Production Info'!B59) -> 1
O41: Denmark | P41: Puerto Rico | AL41: =IF(ISBLANK('1-Production Info'!B60), 1, '1-Production Info'!B60) -> 1
O42: Dominican Republic | P42: RI | AL42: =IF(ISBLANK('1-Production Info'!B61), 1, '1-Production Info'!B61) -> 1
O43: Ecuador | P43: SC | AL43: =IF(ISBLANK('1-Production Info'!B62), 1, '1-Production Info'!B62) -> 1
O44: Egypt | P44: SD | AL44: =IF(ISBLANK('1-Production Info'!B63), 1, '1-Production Info'!B63) -> 1
O45: El Salvador | P45: TN | AL45: =IF(ISBLANK('1-Production Info'!B64), 1, '1-Production Info'!B64) -> 1
O46: Eritrea | P46: TX | AL46: =IF(ISBLANK('1-Production Info'!B65), 1, '1-Production Info'!B65) -> 1
O47: Estonia | P47: UT | AL47: =IF(ISBLANK('1-Production Info'!B66), 1, '1-Production Info'!B66) -> 1
O48: Ethiopia | P48: VA | AL48: =IF(ISBLANK('1-Production Info'!B67), 1, '1-Production Info'!B67) -> 1
O49: Finland | P49: VT | AL49: =IF(ISBLANK('1-Production Info'!B68), 1, '1-Production Info'!B68) -> 1
O50: France | P50: WA | AL50: =IF(ISBLANK('1-Production Info'!B69), 1, '1-Production Info'!B69) -> 1
O51: FYR of Macedonia | P51: WI | AL51: =IF(ISBLANK('1-Production Info'!B70), 1, '1-Production Info'!B70) -> 1
O52: Gabon | P52: WV | AL52: =IF(ISBLANK('1-Production Info'!B71), 1, '1-Production Info'!B71) -> 1
O53: Georgia | P53: WY | AL53: =IF(ISBLANK('1-Production Info'!B72), 1, '1-Production Info'!B72) -> 1
O54: Germany | AL54: =IF(ISBLANK('1-Production Info'!B73), 1, '1-Production Info'!B73) -> 1
O55: Ghana | AL55: =IF(ISBLANK('1-Production Info'!B74), 1, '1-Production Info'!B74) -> 1
O56: Gibraltar | Q56: *Note: make sure lists match named ranges and the all of the country names correspond to the list of countried on the ElectricityEFs page | AL56: =IF(ISBLANK('1-Production Info'!B75), 1, '1-Production Info'!B75) -> 1
O57: Greece | AL57: =IF(ISBLANK('1-Production Info'!B76), 1, '1-Production Info'!B76) -> 1
O58: Guatemala | AL58: =IF(ISBLANK('1-Production Info'!B77), 1, '1-Production Info'!B77) -> 1
O59: Haiti | AL59: =IF(ISBLANK('1-Production Info'!B78), 1, '1-Production Info'!B78) -> 1
O60: Honduras | AL60: =IF(ISBLANK('1-Production Info'!B79), 1, '1-Production Info'!B79) -> 1
O61: Hong Kong, China | AL61: =IF(ISBLANK('1-Production Info'!B80), 1, '1-Production Info'!B80) -> 1
O62: Hungary | AL62: =IF(ISBLANK('1-Production Info'!B81), 1, '1-Production Info'!B81) -> 1
O63: Iceland | AL63: =IF(ISBLANK('1-Production Info'!B82), 1, '1-Production Info'!B82) -> 1
O64: India | AL64: =IF(ISBLANK('1-Production Info'!B83), 1, '1-Production Info'!B83) -> 1
O65: Indonesia | AL65: =IF(ISBLANK('1-Production Info'!B84), 1, '1-Production Info'!B84) -> 1
O66: Iraq | AL66: =IF(ISBLANK('1-Production Info'!B85), 1, '1-Production Info'!B85) -> 1
O67: Ireland | AL67: =IF(ISBLANK('1-Production Info'!B86), 1, '1-Production Info'!B86) -> 1
O68: Islamic Republic of Iran | AL68: =IF(ISBLANK('1-Production Info'!B87), 1, '1-Production Info'!B87) -> 1
O69: Israel | AL69: =IF(ISBLANK('1-Production Info'!B88), 1, '1-Production Info'!B88) -> 1
O70: Italy | AL70: =IF(ISBLANK('1-Production Info'!B89), 1, '1-Production Info'!B89) -> 1
O71: Jamaica | AL71: =IF(ISBLANK('1-Production Info'!B90), 1, '1-Production Info'!B90) -> 1
O72: Japan | AL72: =IF(ISBLANK('1-Production Info'!B91), 1, '1-Production Info'!B91) -> 1
O73: Jordan | AL73: =IF(ISBLANK('1-Production Info'!B92), 1, '1-Production Info'!B92) -> 1
O74: Kazakhstan | AL74: =IF(ISBLANK('1-Production Info'!B93), 1, '1-Production Info'!B93) -> 1
O75: Kenya | AL75: =IF(ISBLANK('1-Production Info'!B94), 1, '1-Production Info'!B94) -> 1
O76: Korea | AL76: =IF(ISBLANK('1-Production Info'!B95), 1, '1-Production Info'!B95) -> 1
O77: Kuwait | AL77: =IF(ISBLANK('1-Production Info'!B96), 1, '1-Production Info'!B96) -> 1
O78: Kyrgyzstan | AL78: =IF(ISBLANK('1-Production Info'!B97), 1, '1-Production Info'!B97) -> 1
O79: Latvia | AL79: =IF(ISBLANK('1-Production Info'!B98), 1, '1-Production Info'!B98) -> 1
O80: Lebanon | AL80: =IF(ISBLANK('1-Production Info'!B99), 1, '1-Production Info'!B99) -> 1
O81: Libyan Arab Jamahiriya | AL81: =IF(ISBLANK('1-Production Info'!B100), 1, '1-Production Info'!B100) -> 1
O82: Lithuania | AL82: =IF(ISBLANK('1-Production Info'!B101), 1, '1-Production Info'!B101) -> 1
O83: Luxembourg | AL83: =IF(ISBLANK('1-Production Info'!B102), 1, '1-Production Info'!B102) -> 1
O84: Malaysia | AL84: =IF(ISBLANK('1-Production Info'!B103), 1, '1-Production Info'!B103) -> 1
O85: Malta | AL85: =IF(ISBLANK('1-Production Info'!B104), 1, '1-Production Info'!B104) -> 1
O86: Mexico
O87: Middle East
O88: Mongolia
O89: Morocco
O90: Mozambique
O91: Myanmar
O92: Namibia
O93: Nepal
O94: Netherlands
O95: Netherlands Antilles
O96: New Zealand
O97: Nicaragua
O98: Nigeria
O99: Norway
O100: Oman
O101: Other Africa
O102: Other Asia
O103: Other Latin America
O104: Pakistan
O105: Panama
O106: Paraguay
O107: China (mainland)
O108: Peru
O109: Philippines
O110: Poland
O111: Portugal
O112: Qatar
O113: Republic of Moldova
O114: Romania
O115: Russian Federation
O116: Saudi Arabia
O117: Senegal
O118: Serbia
O119: Singapore
O120: Slovak Republic
O121: Slovenia
O122: South Africa
O123: Spain
O124: Sri Lanka
O125: Sudan
O126: Sweden
O127: Switzerland
O128: Syrian Arab Republic
O129: Tajikistan
O130: Thailand
O131: Togo
O132: Trinidad and Tobago
O133: Tunisia
O134: Turkey
O135: Turkmenistan
O136: Ukraine
O137: United Arab Emirates
O138: United Kingdom
O139: United Republic of Tanzania
O140: Uruguay
O141: Uzbekistan
O142: Venezuela
O143: Vietnam
O144: Yemen
O145: Zambia
O146: Zimbabwe

Sheet ElectricityEFs (hidden)
A1: ElectricityCode | B1: Country | C1: State/Province | D1: lb/MWh | E1: kg CO2 per kWh | F1: Reference | N1: http://www.eia.doe.gov/cneaf/electricity/epa/epat7p4.html#_ftn1
A2: Albania | B2: Albania | E2: 0.0111746 | F2: Greenhouse Gas Protocol Initiative, Emission Factors from Cross-sector Tools, Versions 1.3, August 2012. “Electricity Other Countries” worksheet
A3: Algeria | B3: Algeria | E3: 0.5759669 | F3: Greenhouse Gas Protocol Initiative, Emission Factors from Cross-sector Tools, Versions 1.3, August 2012. “Electricity Other Countries” worksheet
A4: Angola | B4: Angola | E4: 0.2374497 | F4: Greenhouse Gas Protocol Initiative, Emission Factors from Cross-sector Tools, Versions 1.3, August 2012. “Electricity Other Countries” worksheet
A5: Argentina | B5: Argentina | E5: 0.3553111 | F5: Greenhouse Gas Protocol Initiative, Emission Factors from Cross-sector Tools, Versions 1.3, August 2012. “Electricity Other Countries” worksheet
A6: Armenia | B6: Armenia | E6: 0.108001 | F6: Greenhouse Gas Protocol Initiative, Emission Factors from Cross-sector Tools, Versions 1.3, August 2012. “Electricity Other Countries” worksheet
A7: Australia | B7: Australia | E7: 0.852931 | F7: Greenhouse Gas Protocol Initiative, Emission Factors from Cross-sector Tools, Versions 1.3, August 2012. “Electricity Other Countries” worksheet
A8: Austria | B8: Austria | E8: 0.163232 | F8: Greenhouse Gas Protocol Initiative, Emission Factors from Cross-sector Tools, Versions 1.3, August 2012. “Electricity Other Countries” worksheet
A9: Azerbaijan | B9: Azerbaijan | E9: 0.4434248 | F9: Greenhouse Gas Protocol Initiative, Emission Factors from Cross-sector Tools, Versions 1.3, August 2012. “Electricity Other Countries” worksheet
A10: Bahrain | B10: Bahrain | E10: 0.6648702 | F10: Greenhouse Gas Protocol Initiative, Emission Factors from Cross-sector Tools, Versions 1.3, August 2012. “Electricity Other Countries” worksheet
A11: Bangladesh | B11: Bangladesh | E11: 0.5852873 | F11: Greenhouse Gas Protocol Initiative, Emission Factors from Cross-sector Tools, Versions 1.3, August 2012. “Electricity Other Countries” worksheet
A12: Belarus | B12: Belarus | E12: 0.3023302 | F12: Greenhouse Gas Protocol Initiative, Emission Factors from Cross-sector Tools, Versions 1.3, August 2012. “Electricity Other Countries” worksheet
A13: Belgium | B13: Belgium | E13: 0.217893 | F13: Greenhouse Gas Protocol Initiative, Emission Factors from Cross-sector Tools, Versions 1.3, August 2012. “Electricity Other Countries” worksheet
A14: Benin | B14: Benin | E14: 0.7250079 | F14: Greenhouse Gas Protocol Initiative, Emission Factors from Cross-sector Tools, Versions 1.3, August 2012. “Electricity Other Countries” worksheet
A15: Bolivia | B15: Bolivia | E15: 0.3933051 | F15: Greenhouse Gas Protocol Initiative, Emission Factors from Cross-sector Tools, Versions 1.3, August 2012. “Electricity Other Countries” worksheet
A16: Bosnia and Herzegovina | B16: Bosnia and Herzegovina | E16: 0.7759654 | F16: Greenhouse Gas Protocol Initiative, Emission Factors from Cross-sector Tools, Versions 1.3, August 2012. “Electricity Other Countries” worksheet
A17: Botswana | B17: Botswana | E17: 2.0632523 | F17: Greenhouse Gas Protocol Initiative, Emission Factors from Cross-sector Tools, Versions 1.3, August 2012. “Electricity Other Countries” worksheet
A18: Brazil | B18: Brazil | E18: 0.0641278 | F18: Greenhouse Gas Protocol Initiative, Emission Factors from Cross-sector Tools, Versions 1.3, August 2012. “Electricity Other Countries” worksheet
A19: Brunei Darussalam | B19: Brunei Darussalam | E19: 0.7552254 | F19: Greenhouse Gas Protocol Initiative, Emission Factors from Cross-sector Tools, Versions 1.3, August 2012. “Electricity Other Countries” worksheet
A20: Bulgaria | B20: Bulgaria | E20: 0.4634469 | F20: Greenhouse Gas Protocol Initiative, Emission Factors from Cross-sector Tools, Versions 1.3, August 2012. “Electricity Other Countries” worksheet
A21: Cambodia | B21: Cambodia | E21: 1.1509245 | F21: Greenhouse Gas Protocol Initiative, Emission Factors from Cross-sector Tools, Versions 1.3, August 2012. “Electricity Other Countries” worksheet
A22: Cameroon | B22: Cameroon | E22: 0.2426807 | F22: Greenhouse Gas Protocol Initiative, Emission Factors from Cross-sector Tools, Versions 1.3, August 2012. “Electricity Other Countries” worksheet
A23: Canada | B23: Canada | E23: 0.167232 | F23: Greenhouse Gas Protocol Initiative, Emission Factors from Cross-sector Tools, Versions 1.3, August 2012. “Electricity Other Countries” worksheet
A24: Chile | B24: Chile | E24: 0.37282 | F24: Greenhouse Gas Protocol Initiative, Emission Factors from Cross-sector Tools, Versions 1.3, August 2012. “Electricity Other Countries” worksheet
A25: China (including Hong Kong) | B25: China (including Hong Kong)-IEA | E25: 0.7427455 | F25: Greenhouse Gas Protocol Initiative, Emission Factors from Cross-sector Tools, Versions 1.3, August 2012. “Electricity Other Countries” worksheet
A26: Taiwan, China | B26: Taiwan, China | E26: 0.6347819 | F26: Greenhouse Gas Protocol Initiative, Emission Factors from Cross-sector Tools, Versions 1.3, August 2012. “Electricity Other Countries” worksheet
A27: Colombia | B27: Colombia | E27: 0.1752714 | F27: Greenhouse Gas Protocol Initiative, Emission Factors from Cross-sector Tools, Versions 1.3, August 2012. “Electricity Other Countries” worksheet
A28: Congo | B28: Congo | E28: 0.2068295 | F28: Greenhouse Gas Protocol Initiative, Emission Factors from Cross-sector Tools, Versions 1.3, August 2012. “Electricity Other Countries” worksheet
A29: Costa Rica | B29: Costa Rica | E29: 0.0398111 | F29: Greenhouse Gas Protocol Initiative, Emission Factors from Cross-sector Tools, Versions 1.3, August 2012. “Electricity Other Countries” worksheet
A30: Côte d'Ivoire | B30: Côte d'Ivoire | E30: 0.4263982 | F30: Greenhouse Gas Protocol Initiative, Emission Factors from Cross-sector Tools, Versions 1.3, August 2012. “Electricity Other Countries” worksheet
A31: Croatia | B31: Croatia | E31: 0.2833877 | F31: Greenhouse Gas Protocol Initiative, Emission Factors from Cross-sector Tools, Versions 1.3, August 2012. “Electricity Other Countries” worksheet
A32: Cuba | B32: Cuba | E32: 0.7515392 | F32: Greenhouse Gas Protocol Initiative, Emission Factors from Cross-sector Tools, Versions 1.3, August 2012. “Electricity Other Countries” worksheet
A33: Cyprus | B33: Cyprus | E33: 0.7442724 | F33: Greenhouse Gas Protocol Initiative, Emission Factors from Cross-sector Tools, Versions 1.3, August 2012. “Electricity Other Countries” worksheet
A34: Czech Republic | B34: Czech Republic | E34: 0.514253 | F34: Greenhouse Gas Protocol Initiative, Emission Factors from Cross-sector Tools, Versions 1.3, August 2012. “Electricity Other Countries” worksheet
A35: Dem. People's Republic of Korea | B35: Dem. People's Republic of Korea | E35: 0.4988643 | F35: Greenhouse Gas Protocol Initiative, Emission Factors from Cross-sector Tools, Versions 1.3, August 2012. “Electricity Other Countries” worksheet
A36: Democratic Republic of Congo | B36: Democratic Republic of Congo | E36: 0.0029338 | F36: Greenhouse Gas Protocol Initiative, Emission Factors from Cross-sector Tools, Versions 1.3, August 2012. “Electricity Other Countries” worksheet
A37: Denmark | B37: Denmark | E37: 0.302749 | F37: Greenhouse Gas Protocol Initiative, Emission Factors from Cross-sector Tools, Versions 1.3, August 2012. “Electricity Other Countries” worksheet
A38: Dominican Republic | B38: Dominican Republic | E38: 0.5905356 | F38: Greenhouse Gas Protocol Initiative, Emission Factors from Cross-sector Tools, Versions 1.3, August 2012. “Electricity Other Countries” worksheet
A39: Ecuador | B39: Ecuador | E39: 0.2896443 | F39: Greenhouse Gas Protocol Initiative, Emission Factors from Cross-sector Tools, Versions 1.3, August 2012. “Electricity Other Countries” worksheet
A40: Egypt | B40: Egypt | E40: 0.4655347 | F40: Greenhouse Gas Protocol Initiative, Emission Factors from Cross-sector Tools, Versions 1.3, August 2012. “Electricity Other Countries” worksheet
A41: El Salvador | B41: El Salvador | E41: 0.3187825 | F41: Greenhouse Gas Protocol Initiative, Emission Factors from Cross-sector Tools, Versions 1.3, August 2012. “Electricity Other Countries” worksheet
A42: Eritrea | B42: Eritrea | E42: 0.6715864 | F42: Greenhouse Gas Protocol Initiative, Emission Factors from Cross-sector Tools, Versions 1.3, August 2012. “Electricity Other Countries” worksheet
A43: Estonia | B43: Estonia | E43: 0.703853 | F43: Greenhouse Gas Protocol Initiative, Emission Factors from Cross-sector Tools, Versions 1.3, August 2012. “Electricity Other Countries” worksheet
A44: Ethiopia | B44: Ethiopia | E44: 0.1183091 | F44: Greenhouse Gas Protocol Initiative, Emission Factors from Cross-sector Tools, Versions 1.3, August 2012. “Electricity Other Countries” worksheet
A45: Finland | B45: Finland | E45: 0.205405 | F45: Greenhouse Gas Protocol Initiative, Emission Factors from Cross-sector Tools, Versions 1.3, August 2012. “Electricity Other Countries” worksheet
A46: France | B46: France | E46: 0.089851 | F46: Greenhouse Gas Protocol Initiative, Emission Factors from Cross-sector Tools, Versions 1.3, August 2012. “Electricity Other Countries” worksheet
A47: FYR of Macedonia | B47: FYR of Macedonia | E47: 0.7099036 | F47: Greenhouse Gas Protocol Initiative, Emission Factors from Cross-sector Tools, Versions 1.3, August 2012. “Electricity Other Countries” worksheet
A48: Gabon | B48: Gabon | E48: 0.3221375 | F48: Greenhouse Gas Protocol Initiative, Emission Factors from Cross-sector Tools, Versions 1.3, August 2012. “Electricity Other Countries” worksheet
A49: Georgia | B49: Georgia | E49: 0.128642 | F49: Greenhouse Gas Protocol Initiative, Emission Factors from Cross-sector Tools, Versions 1.3, August 2012. “Electricity Other Countries” worksheet
A50: Germany | B50: Germany | E50: 0.430496 | F50: Greenhouse Gas Protocol Initiative, Emission Factors from Cross-sector Tools, Versions 1.3, August 2012. “Electricity Other Countries” worksheet
A51: Ghana | B51: Ghana | E51: 0.1865319 | F51: Greenhouse Gas Protocol Initiative, Emission Factors from Cross-sector Tools, Versions 1.3, August 2012. “Electricity Other Countries” worksheet
A52: Gibraltar | B52: Gibraltar | E52: 0.7395172 | F52: Greenhouse Gas Protocol Initiative, Emission Factors from Cross-sector Tools, Versions 1.3, August 2012. “Electricity Other Countries” worksheet
A53: Greece | B53: Greece | E53: 0.722399 | F53: Greenhouse Gas Protocol Initiative, Emission Factors from Cross-sector Tools, Versions 1.3, August 2012. “Electricity Other Countries” worksheet
A54: Guatemala | B54: Guatemala | E54: 0.349108 | F54: Greenhouse Gas Protocol Initiative, Emission Factors from Cross-sector Tools, Versions 1.3, August 2012. “Electricity Other Countries” worksheet
A55: Haiti | B55: Haiti | E55: 0.5471248 | F55: Greenhouse Gas Protocol Initiative, Emission Factors from Cross-sector Tools, Versions 1.3, August 2012. “Electricity Other Countries” worksheet
A56: Honduras | B56: Honduras | E56: 0.344323 | F56: Greenhouse Gas Protocol Initiative, Emission Factors from Cross-sector Tools, Versions 1.3, August 2012. “Electricity Other Countries” worksheet
A57: Hong Kong, China | B57: Hong Kong, China | E57: 0.7629724 | F57: Greenhouse Gas Protocol Initiative, Emission Factors from Cross-sector Tools, Versions 1.3, August 2012. “Electricity Other Countries” worksheet
A58: Hungary | B58: Hungary | E58: 0.30206 | F58: Greenhouse Gas Protocol Initiative, Emission Factors from Cross-sector Tools, Versions 1.3, August 2012. “Electricity Other Countries” worksheet
A59: Iceland | B59: Iceland | E59: 0.000424 | F59: Greenhouse Gas Protocol Initiative, Emission Factors from Cross-sector Tools, Versions 1.3, August 2012. “Electricity Other Countries” worksheet
A60: India | B60: India | E60: 0.9514059 | F60: Greenhouse Gas Protocol Initiative, Emission Factors from Cross-sector Tools, Versions 1.3, August 2012. “Electricity Other Countries” worksheet
A61: Indonesia | B61: Indonesia | E61: 0.7456904 | F61: Greenhouse Gas Protocol Initiative, Emission Factors from Cross-sector Tools, Versions 1.3, August 2012. “Electricity Other Countries” worksheet
A62: Iraq | B62: Iraq | E62: 0.6840861 | F62: Greenhouse Gas Protocol Initiative, Emission Factors from Cross-sector Tools, Versions 1.3, August 2012. “Electricity Other Countries” worksheet
A63: Ireland | B63: Ireland | E63: 0.465239 | F63: Greenhouse Gas Protocol Initiative, Emission Factors from Cross-sector Tools, Versions 1.3, August 2012. “Electricity Other Countries” worksheet
A64: Islamic Republic of Iran | B64: Islamic Republic of Iran | E64: 0.6299627 | F64: Greenhouse Gas Protocol Initiative, Emission Factors from Cross-sector Tools, Versions 1.3, August 2012. “Electricity Other Countries” worksheet
A65: Israel | B65: Israel | E65: 0.694883 | F65: Greenhouse Gas Protocol Initiative, Emission Factors from Cross-sector Tools, Versions 1.3, August 2012. “Electricity Other Countries” worksheet
A66: Italy | B66: Italy | E66: 0.386411 | F66: Greenhouse Gas Protocol Initiative, Emission Factors from Cross-sector Tools, Versions 1.3, August 2012. “Electricity Other Countries” worksheet
A67: Jamaica | B67: Jamaica | E67: 0.5444594 | F67: Greenhouse Gas Protocol Initiative, Emission Factors from Cross-sector Tools, Versions 1.3, August 2012. “Electricity Other Countries” worksheet
A68: Japan | B68: Japan | E68: 0.414709 | F68: Greenhouse Gas Protocol Initiative, Emission Factors from Cross-sector Tools, Versions 1.3, August 2012. “Electricity Other Countries” worksheet
A69: Jordan | B69: Jordan | E69: 0.580548 | F69: Greenhouse Gas Protocol Initiative, Emission Factors from Cross-sector Tools, Versions 1.3, August 2012. “Electricity Other Countries” worksheet
A70: Kazakhstan | B70: Kazakhstan | E70: 0.4800584 | F70: Greenhouse Gas Protocol Initiative, Emission Factors from Cross-sector Tools, Versions 1.3, August 2012. “Electricity Other Countries” worksheet
A71: Kenya | B71: Kenya | E71: 0.3949455 | F71: Greenhouse Gas Protocol Initiative, Emission Factors from Cross-sector Tools, Versions 1.3, August 2012. “Electricity Other Countries” worksheet
A72: Korea | B72: Korea | E72: 0.497699 | F72: Greenhouse Gas Protocol Initiative, Emission Factors from Cross-sector Tools, Versions 1.3, August 2012. “Electricity Other Countries” worksheet
A73: Kuwait | B73: Kuwait | E73: 0.8696052 | F73: Greenhouse Gas Protocol Initiative, Emission Factors from Cross-sector Tools, Versions 1.3, August 2012. “Electricity Other Countries” worksheet
A74: Kyrgyzstan | B74: Kyrgyzstan | E74: 0.0809661 | F74: Greenhouse Gas Protocol Initiative, Emission Factors from Cross-sector Tools, Versions 1.3, August 2012. “Electricity Other Countries” worksheet
A75: Latvia | B75: Latvia | E75: 0.1530742 | F75: Greenhouse Gas Protocol Initiative, Emission Factors from Cross-sector Tools, Versions 1.3, August 2012. “Electricity Other Countries” worksheet
A76: Lebanon | B76: Lebanon | E76: 0.7166724 | F76: Greenhouse Gas Protocol Initiative, Emission Factors from Cross-sector Tools, Versions 1.3, August 2012. “Electricity Other Countries” worksheet
A77: Libyan Arab Jamahiriya | B77: Libyan Arab Jamahiriya | E77: 0.8717842 | F77: Greenhouse Gas Protocol Initiative, Emission Factors from Cross-sector Tools, Versions 1.3, August 2012. “Electricity Other Countries” worksheet
A78: Lithuania | B78: Lithuania | E78: 0.1111529 | F78: Greenhouse Gas Protocol Initiative, Emission Factors from Cross-sector Tools, Versions 1.3, August 2012. “Electricity Other Countries” worksheet
A79: Luxembourg | B79: Luxembourg | E79: 0.384286 | F79: Greenhouse Gas Protocol Initiative, Emission Factors from Cross-sector Tools, Versions 1.3, August 2012. “Electricity Other Countries” worksheet
A80: Malaysia | B80: Malaysia | E80: 0.6486477 | F80: Greenhouse Gas Protocol Initiative, Emission Factors from Cross-sector Tools, Versions 1.3, August 2012. “Electricity Other Countries” worksheet
A81: Malta | B81: Malta | E81: 0.8504153 | F81: Greenhouse Gas Protocol Initiative, Emission Factors from Cross-sector Tools, Versions 1.3, August 2012. “Electricity Other Countries” worksheet
A82: Mexico | B82: Mexico | E82: 0.454983 | F82: Greenhouse Gas Protocol Initiative, Emission Factors from Cross-sector Tools, Versions 1.3, August 2012. “Electricity Other Countries” worksheet
A83: Middle East | B83: Middle East | E83: 0.6902583 | F83: Greenhouse Gas Protocol Initiative, Emission Factors from Cross-sector Tools, Versions 1.3, August 2012. “Electricity Other Countries” worksheet
A84: Mongolia | B84: Mongolia | E84: 0.5353523 | F84: Greenhouse Gas Protocol Initiative, Emission Factors from Cross-sector Tools, Versions 1.3, August 2012. “Electricity Other Countries” worksheet
A85: Morocco | B85: Morocco | E85: 0.6384446 | F85: Greenhouse Gas Protocol Initiative, Emission Factors from Cross-sector Tools, Versions 1.3, August 2012. “Electricity Other Countries” worksheet
A86: Mozambique | B86: Mozambique | E86: 0.0005033 | F86: Greenhouse Gas Protocol Initiative, Emission Factors from Cross-sector Tools, Versions 1.3, August 2012. “Electricity Other Countries” worksheet
A87: Myanmar | B87: Myanmar | E87: 0.1958467 | F87: Greenhouse Gas Protocol Initiative, Emission Factors from Cross-sector Tools, Versions 1.3, August 2012. “Electricity Other Countries” worksheet
A88: Namibia | B88: Namibia | E88: 0.2369013 | F88: Greenhouse Gas Protocol Initiative, Emission Factors from Cross-sector Tools, Versions 1.3, August 2012. “Electricity Other Countries” worksheet
A89: Nepal | B89: Nepal | E89: 0.0043431 | F89: Greenhouse Gas Protocol Initiative, Emission Factors from Cross-sector Tools, Versions 1.3, August 2012. “Electricity Other Countries” worksheet
A90: Netherlands | B90: Netherlands | E90: 0.374485 | F90: Greenhouse Gas Protocol Initiative, Emission Factors from Cross-sector Tools, Versions 1.3, August 2012. “Electricity Other Countries” worksheet
A91: Netherlands Antilles | B91: Netherlands Antilles | E91: 0.7068983 | F91: Greenhouse Gas Protocol Initiative, Emission Factors from Cross-sector Tools, Versions 1.3, August 2012. “Electricity Other Countries” worksheet
A92: New Zealand | B92: New Zealand | E92: 0.166503 | F92: Greenhouse Gas Protocol Initiative, Emission Factors from Cross-sector Tools, Versions 1.3, August 2012. “Electricity Other Countries” worksheet
A93: Nicaragua | B93: Nicaragua | E93: 0.5058123 | F93: Greenhouse Gas Protocol Initiative, Emission Factors from Cross-sector Tools, Versions 1.3, August 2012. “Electricity Other Countries” worksheet
A94: Nigeria | B94: Nigeria | E94: 0.4157342 | F94: Greenhouse Gas Protocol Initiative, Emission Factors from Cross-sector Tools, Versions 1.3, August 2012. “Electricity Other Countries” worksheet
A95: Norway | B95: Norway | E95: 0.017288 | F95: Greenhouse Gas Protocol Initiative, Emission Factors from Cross-sector Tools, Versions 1.3, August 2012. “Electricity Other Countries” worksheet
A96: Oman | B96: Oman | E96: 0.8424879 | F96: Greenhouse Gas Protocol Initiative, Emission Factors from Cross-sector Tools, Versions 1.3, August 2012. “Electricity Other Countries” worksheet
A97: Other Africa | B97: Other Africa | E97: 0.4944978 | F97: Greenhouse Gas Protocol Initiative, Emission Factors from Cross-sector Tools, Versions 1.3, August 2012. “Electricity Other Countries” worksheet
A98: Other Asia | B98: Other Asia | E98: 0.2680725 | F98: Greenhouse Gas Protocol Initiative, Emission Factors from Cross-sector Tools, Versions 1.3, August 2012. “Electricity Other Countries” worksheet
A99: Other Latin America | B99: Other Latin America | E99: 0.2489089 | F99: Greenhouse Gas Protocol Initiative, Emission Factors from Cross-sector Tools, Versions 1.3, August 2012. “Electricity Other Countries” worksheet
A100: Pakistan | B100: Pakistan | E100: 0.4577247 | F100: Greenhouse Gas Protocol Initiative, Emission Factors from Cross-sector Tools, Versions 1.3, August 2012. “Electricity Other Countries” worksheet
A101: Panama | B101: Panama | E101: 0.3021739 | F101: Greenhouse Gas Protocol Initiative, Emission Factors from Cross-sector Tools, Versions 1.3, August 2012. “Electricity Other Countries” worksheet
A102: Paraguay | B102: Paraguay | E102: 0 | F102: Greenhouse Gas Protocol Initiative, Emission Factors from Cross-sector Tools, Versions 1.3, August 2012. “Electricity Other Countries” worksheet
A103: China (mainland) | B103: China (mainland) | E103: 0.7425689 | F103: Greenhouse Gas Protocol Initiative, Emission Factors from Cross-sector Tools, Versions 1.3, August 2012. “Electricity Other Countries” worksheet
A104: Peru | B104: Peru | E104: 0.2363066 | F104: Greenhouse Gas Protocol Initiative, Emission Factors from Cross-sector Tools, Versions 1.3, August 2012. “Electricity Other Countries” worksheet
A105: Philippines | B105: Philippines | E105: 0.4781595 | F105: Greenhouse Gas Protocol Initiative, Emission Factors from Cross-sector Tools, Versions 1.3, August 2012. “Electricity Other Countries” worksheet
A106: Poland | B106: Poland | E106: 0.640198 | F106: Greenhouse Gas Protocol Initiative, Emission Factors from Cross-sector Tools, Versions 1.3, August 2012. “Electricity Other Countries” worksheet
A107: Portugal | B107: Portugal | E107: 0.368238 | F107: Greenhouse Gas Protocol Initiative, Emission Factors from Cross-sector Tools, Versions 1.3, August 2012. “Electricity Other Countries” worksheet
A108: Qatar | B108: Qatar | E108: 0.4940089 | F108: Greenhouse Gas Protocol Initiative, Emission Factors from Cross-sector Tools, Versions 1.3, August 2012. “Electricity Other Countries” worksheet
A109: Republic of Moldova | B109: Republic of Moldova | E109: 0.4000984 | F109: Greenhouse Gas Protocol Initiative, Emission Factors from Cross-sector Tools, Versions 1.3, August 2012. “Electricity Other Countries” worksheet
A110: Romania | B110: Romania | E110: 0.4143538 | F110: Greenhouse Gas Protocol Initiative, Emission Factors from Cross-sector Tools, Versions 1.3, August 2012. “Electricity Other Countries” worksheet
A111: Russian Federation | B111: Russian Federation | E111: 0.317404 | F111: Greenhouse Gas Protocol Initiative, Emission Factors from Cross-sector Tools, Versions 1.3, August 2012. “Electricity Other Countries” worksheet
A112: Saudi Arabia | B112: Saudi Arabia | E112: 0.7572325 | F112: Greenhouse Gas Protocol Initiative, Emission Factors from Cross-sector Tools, Versions 1.3, August 2012. “Electricity Other Countries” worksheet
A113: Senegal | B113: Senegal | E113: 0.6144503 | F113: Greenhouse Gas Protocol Initiative, Emission Factors from Cross-sector Tools, Versions 1.3, August 2012. “Electricity Other Countries” worksheet
A114: Serbia | B114: Serbia | E114: 0.6803266 | F114: Greenhouse Gas Protocol Initiative, Emission Factors from Cross-sector Tools, Versions 1.3, August 2012. “Electricity Other Countries” worksheet
A115: Singapore | B115: Singapore | E115: 0.5188568 | F115: Greenhouse Gas Protocol Initiative, Emission Factors from Cross-sector Tools, Versions 1.3, August 2012. “Electricity Other Countries” worksheet
A116: Slovak Republic | B116: Slovak Republic | E116: 0.221716 | F116: Greenhouse Gas Protocol Initiative, Emission Factors from Cross-sector Tools, Versions 1.3, August 2012. “Electricity Other Countries” worksheet
A117: Slovenia | B117: Slovenia | E117: 0.316025 | F117: Greenhouse Gas Protocol Initiative, Emission Factors from Cross-sector Tools, Versions 1.3, August 2012. “Electricity Other Countries” worksheet
A118: South Africa | B118: South Africa | E118: 0.9259049 | F118: Greenhouse Gas Protocol Initiative, Emission Factors from Cross-sector Tools, Versions 1.3, August 2012. “Electricity Other Countries” worksheet
A119: Spain | B119: Spain | E119: 0.298784 | F119: Greenhouse Gas Protocol Initiative, Emission Factors from Cross-sector Tools, Versions 1.3, August 2012. “Electricity Other Countries” worksheet
A120: Sri Lanka | B120: Sri Lanka | E120: 0.4601088 | F120: Greenhouse Gas Protocol Initiative, Emission Factors from Cross-sector Tools, Versions 1.3, August 2012. “Electricity Other Countries” worksheet
A121: Sudan | B121: Sudan | E121: 0.3555958 | F121: Greenhouse Gas Protocol Initiative, Emission Factors from Cross-sector Tools, Versions 1.3, August 2012. “Electricity Other Countries” worksheet
A122: Sweden | B122: Sweden | E122: 0.043135 | F122: Greenhouse Gas Protocol Initiative, Emission Factors from Cross-sector Tools, Versions 1.3, August 2012. “Electricity Other Countries” worksheet
A123: Switzerland | B123: Switzerland | E123: 0.039934 | F123: Greenhouse Gas Protocol Initiative, Emission Factors from Cross-sector Tools, Versions 1.3, August 2012. “Electricity Other Countries” worksheet
A124: Syrian Arab Republic | B124: Syrian Arab Republic | E124: 0.6408914 | F124: Greenhouse Gas Protocol Initiative, Emission Factors from Cross-sector Tools, Versions 1.3, August 2012. “Electricity Other Countries” worksheet
A125: Tajikistan | B125: Tajikistan | E125: 0.0292264 | F125: Greenhouse Gas Protocol Initiative, Emission Factors from Cross-sector Tools, Versions 1.3, August 2012. “Electricity Other Countries” worksheet
A126: Thailand | B126: Thailand | E126: 0.5133809 | F126: Greenhouse Gas Protocol Initiative, Emission Factors from Cross-sector Tools, Versions 1.3, August 2012. “Electricity Other Countries” worksheet
A127: Togo | B127: Togo | E127: 0.2015714 | F127: Greenhouse Gas Protocol Initiative, Emission Factors from Cross-sector Tools, Versions 1.3, August 2012. “Electricity Other Countries” worksheet
A128: Trinidad and Tobago | B128: Trinidad and Tobago | E128: 0.7188074 | F128: Greenhouse Gas Protocol Initiative, Emission Factors from Cross-sector Tools, Versions 1.3, August 2012. “Electricity Other Countries” worksheet
A129: Tunisia | B129: Tunisia | E129: 0.5380795 | F129: Greenhouse Gas Protocol Initiative, Emission Factors from Cross-sector Tools, Versions 1.3, August 2012. “Electricity Other Countries” worksheet
A130: Turkey | B130: Turkey | E130: 0.479929 | F130: Greenhouse Gas Protocol Initiative, Emission Factors from Cross-sector Tools, Versions 1.3, August 2012. “Electricity Other Countries” worksheet
A131: Turkmenistan | B131: Turkmenistan | E131: 0.7894524 | F131: Greenhouse Gas Protocol Initiative, Emission Factors from Cross-sector Tools, Versions 1.3, August 2012. “Electricity Other Countries” worksheet
A132: Ukraine | B132: Ukraine | E132: 0.373955 | F132: Greenhouse Gas Protocol Initiative, Emission Factors from Cross-sector Tools, Versions 1.3, August 2012. “Electricity Other Countries” worksheet
A133: United Arab Emirates | B133: United Arab Emirates | E133: 0.6312455 | F133: Greenhouse Gas Protocol Initiative, Emission Factors from Cross-sector Tools, Versions 1.3, August 2012. “Electricity Other Countries” worksheet
A134: United Kingdom | B134: United Kingdom | E134: 0.449501 | F134: Greenhouse Gas Protocol Initiative, Emission Factors from Cross-sector Tools, Versions 1.3, August 2012. “Electricity Other Countries” worksheet
A135: United Republic of Tanzania | B135: United Republic of Tanzania | E135: 0.2812221 | F135: Greenhouse Gas Protocol Initiative, Emission Factors from Cross-sector Tools, Versions 1.3, August 2012. “Electricity Other Countries” worksheet
A136: United States | B136: United States | E136: 0.50817 | F136: Greenhouse Gas Protocol Initiative, Emission Factors from Cross-sector Tools, Versions 1.3, August 2012. “Electricity Other Countries” worksheet
A137: Uruguay | B137: Uruguay | E137: 0.2531788 | F137: Greenhouse Gas Protocol Initiative, Emission Factors from Cross-sector Tools, Versions 1.3, August 2012. “Electricity Other Countries” worksheet
A138: Uzbekistan | B138: Uzbekistan | E138: 0.4614759 | F138: Greenhouse Gas Protocol Initiative, Emission Factors from Cross-sector Tools, Versions 1.3, August 2012. “Electricity Other Countries” worksheet
A139: Venezuela | B139: Venezuela | E139: 0.1985978 | F139: Greenhouse Gas Protocol Initiative, Emission Factors from Cross-sector Tools, Versions 1.3, August 2012. “Electricity Other Countries” worksheet
A140: Vietnam | B140: Vietnam | E140: 0.3841034 | F140: Greenhouse Gas Protocol Initiative, Emission Factors from Cross-sector Tools, Versions 1.3, August 2012. “Electricity Other Countries” worksheet
A141: Yemen | B141: Yemen | E141: 0.6304537 | F141: Greenhouse Gas Protocol Initiative, Emission Factors from Cross-sector Tools, Versions 1.3, August 2012. “Electricity Other Countries” worksheet
A142: Zambia | B142: Zambia | E142: 0.0032466 | F142: Greenhouse Gas Protocol Initiative, Emission Factors from Cross-sector Tools, Versions 1.3, August 2012. “Electricity Other Countries” worksheet
A143: Zimbabwe | B143: Zimbabwe | E143: 0.6189509 | F143: Greenhouse Gas Protocol Initiative, Emission Factors from Cross-sector Tools, Versions 1.3, August 2012. “Electricity Other Countries” worksheet
A144: =CONCATENATE(B144,C144) -> Taiwan | B144: Taiwan | E144: 0.612 | F144: Greenhouse Gas Protocol Initiative, Emission Factors from Cross-sector Tools, Versions 1.3, August 2012. “Electricity China and Taiwan” worksheet. [Note: CO2e/kWh].
A145: =CONCATENATE(B145,C145) -> USAAK | B145: USA | C145: AK | D145: 1126.2477 | E145: =D145*0.45359237/1000 -> 0.5108573635 | F145: eGRID2012 Version 1.0, eGRID2012V1_0_year09_DATA.xls, “ST09” worksheet, State annual CO2 output emission rate (lb/MWh)
A146: USAAL | B146: USA | C146: AL | D146: 1040.8062 | E146: =D146*0.45359237/1000 -> 0.472101751 | F146: eGRID2012 Version 1.0, eGRID2012V1_0_year09_DATA.xls, “ST09” worksheet, State annual CO2 output emission rate (lb/MWh)
A147: USAAR | B147: USA | C147: AR | D147: 1112.5946 | E147: 0.5046644215 | F147: eGRID2012 Version 1.0, eGRID2012V1_0_year09_DATA.xls, “ST09” worksheet, State annual CO2 output emission rate (lb/MWh)
A148: USAAZ | B148: USA | C148: AZ | D148: 1084.6279 | E148: 0.4919789397 | F148: eGRID2012 Version 1.0, eGRID2012V1_0_year09_DATA.xls, “ST09” worksheet, State annual CO2 output emission rate (lb/MWh)
A149: USACA | B149: USA | C149: CA | D149: 556.4388 | E149: 0.2523963941 | F149: eGRID2012 Version 1.0, eGRID2012V1_0_year09_DATA.xls, “ST09” worksheet, State annual CO2 output emission rate (lb/MWh)
A150: USACO | B150: USA | C150: CO | D150: 1736.7395 | E150: 0.7877717859 | F150: eGRID2012 Version 1.0, eGRID2012V1_0_year09_DATA.xls, “ST09” worksheet, State annual CO2 output emission rate (lb/MWh)
A151: USACT | B151: USA | C151: CT | D151: 576.7997 | E151: 0.2616319429 | F151: eGRID2012 Version 1.0, eGRID2012V1_0_year09_DATA.xls, “ST09” worksheet, State annual CO2 output emission rate (lb/MWh)
A152: USADC | B152: USA | C152: DC | D152: 2484.6913 | E152: 1.127037015 | F152: eGRID2012 Version 1.0, eGRID2012V1_0_year09_DATA.xls, “ST09” worksheet, State annual CO2 output emission rate (lb/MWh)
A153: USADE | B153: USA | C153: DE | D153: 1795.3275 | E153: 0.8143468557 | F153: eGRID2012 Version 1.0, eGRID2012V1_0_year09_DATA.xls, “ST09” worksheet, State annual CO2 output emission rate (lb/MWh)
A154: USAFL | B154: USA | C154: FL | D154: 1192.1794 | E154: 0.5407634795 | F154: eGRID2012 Version 1.0, eGRID2012V1_0_year09_DATA.xls, “ST09” worksheet, State annual CO2 output emission rate (lb/MWh)
A155: USAGA | B155: USA | C155: GA | D155: 1285.9481 | E155: 0.5832962464 | F155: eGRID2012 Version 1.0, eGRID2012V1_0_year09_DATA.xls, “ST09” worksheet, State annual CO2 output emission rate (lb/MWh)
A156: USAHI | B156: USA | C156: HI | D156: 1527.0773 | E156: 0.6926706117 | F156: eGRID2012 Version 1.0, eGRID2012V1_0_year09_DATA.xls, “ST09” worksheet, State annual CO2 output emission rate (lb/MWh)
A157: USAIA | B157: USA | C157: IA | D157: 1625.2988 | E157: 0.7372231347 | F157: eGRID2012 Version 1.0, eGRID2012V1_0_year09_DATA.xls, “ST09” worksheet, State annual CO2 output emission rate (lb/MWh)
A158: USAID | B158: USA | C158: ID | D158: 119.6862 | E158: 0.05428874711 | F158: eGRID2012 Version 1.0, eGRID2012V1_0_year09_DATA.xls, “ST09” worksheet, State annual CO2 output emission rate (lb/MWh)
A159: USAIL | B159: USA | C159: IL | D159: 1067.8363 | E159: 0.4843623981 | F159: eGRID2012 Version 1.0, eGRID2012V1_0_year09_DATA.xls, “ST09” worksheet, State annual CO2 output emission rate (lb/MWh)
A160: USAIN | B160: USA | C160: IN | D160: 2033.6314 | E160: 0.9224396864 | F160: eGRID2012 Version 1.0, eGRID2012V1_0_year09_DATA.xls, “ST09” worksheet, State annual CO2 output emission rate (lb/MWh)
A161: USAKS | B161: USA | C161: KS | D161: 1673.8714 | E161: 0.7592552954 | F161: eGRID2012 Version 1.0, eGRID2012V1_0_year09_DATA.xls, “ST09” worksheet, State annual CO2 output emission rate (lb/MWh)
A162: USAKY | B162: USA | C162: KY | D162: 2045.7462 | E162: 0.9279348673 | F162: eGRID2012 Version 1.0, eGRID2012V1_0_year09_DATA.xls, “ST09” worksheet, State annual CO2 output emission rate (lb/MWh)
A163: USALA | B163: USA | C163: LA | D163: 1128.269 | E163: 0.5117742097 | F163: eGRID2012 Version 1.0, eGRID2012V1_0_year09_DATA.xls, “ST09” worksheet, State annual CO2 output emission rate (lb/MWh)
A164: USAMA | B164: USA | C164: MA | D164: 1113.803 | E164: 0.5052125425 | F164: eGRID2012 Version 1.0, eGRID2012V1_0_year09_DATA.xls, “ST09” worksheet, State annual CO2 output emission rate (lb/MWh)
A165: USAMD | B165: USA | C165: MD | D165: 1231.9697 | E165: 0.558812056 | F165: eGRID2012 Version 1.0, eGRID2012V1_0_year09_DATA.xls, “ST09” worksheet, State annual CO2 output emission rate (lb/MWh)
A166: USAME | B166: USA | C166: ME | D166: 500.2535 | E166: 0.2269111707 | F166: eGRID2012 Version 1.0, eGRID2012V1_0_year09_DATA.xls, “ST09” worksheet, State annual CO2 output emission rate (lb/MWh)
A167: USAMI | B167: USA | C167: MI | D167: 1524.1292 | E167: 0.691333376 | F167: eGRID2012 Version 1.0, eGRID2012V1_0_year09_DATA.xls, “ST09” worksheet, State annual CO2 output emission rate (lb/MWh)
A168: USAMN | B168: USA | C168: MN | D168: 1396.8336 | E168: 0.6335930631 | F168: eGRID2012 Version 1.0, eGRID2012V1_0_year09_DATA.xls, “ST09” worksheet, State annual CO2 output emission rate (lb/MWh)
A169: USAMO | B169: USA | C169: MO | D169: 1807.5837 | E169: 0.8199061745 | F169: eGRID2012 Version 1.0, eGRID2012V1_0_year09_DATA.xls, “ST09” worksheet, State annual CO2 output emission rate (lb/MWh)
A170: USAMS | B170: USA | C170: MS | D170: 1102.6746 | E170: 0.5001647852 | F170: eGRID2012 Version 1.0, eGRID2012V1_0_year09_DATA.xls, “ST09” worksheet, State annual CO2 output emission rate (lb/MWh)
A171: USAMT | B171: USA | C171: MT | D171: 1438.6679 | E171: 0.6525687824 | F171: eGRID2012 Version 1.0, eGRID2012V1_0_year09_DATA.xls, “ST09” worksheet, State annual CO2 output emission rate (lb/MWh)
A172: USANC | B172: USA | C172: NC | D172: 1156.5443 | E172: 0.52459967 | F172: eGRID2012 Version 1.0, eGRID2012V1_0_year09_DATA.xls, “ST09” worksheet, State annual CO2 output emission rate (lb/MWh)
A173: USAND | B173: USA | C173: ND | D173: 2057.7382 | E173: 0.933374347 | F173: eGRID2012 Version 1.0, eGRID2012V1_0_year09_DATA.xls, “ST09” worksheet, State annual CO2 output emission rate (lb/MWh)
A174: USANE | B174: USA | C174: NE | D174: 1597.6723 | E174: 0.724691965 | F174: eGRID2012 Version 1.0, eGRID2012V1_0_year09_DATA.xls, “ST09” worksheet, State annual CO2 output emission rate (lb/MWh)
A175: USANH | B175: USA | C175: NH | D175: 600.7058 | E175: 0.2724755675 | F175: eGRID2012 Version 1.0, eGRID2012V1_0_year09_DATA.xls, “ST09” worksheet, State annual CO2 output emission rate (lb/MWh)
A176: USANJ | B176: USA | C176: NJ | D176: 549.6076 | E176: 0.2492978139 | F176: eGRID2012 Version 1.0, eGRID2012V1_0_year09_DATA.xls, “ST09” worksheet, State annual CO2 output emission rate (lb/MWh)
A177: USANM | B177: USA | C177: NM | D177: 1821.263 | E177: 0.8261110006 | F177: eGRID2012 Version 1.0, eGRID2012V1_0_year09_DATA.xls, “ST09” worksheet, State annual CO2 output emission rate (lb/MWh)
A178: USANV | B178: USA | C178: NV | D178: 1060.9214 | E178: 0.4812258522 | F178: eGRID2012 Version 1.0, eGRID2012V1_0_year09_DATA.xls, “ST09” worksheet, State annual CO2 output emission rate (lb/MWh)
A179: USANY | B179: USA | C179: NY | D179: 582.8531 | E179: 0.264377719 | F179: eGRID2012 Version 1.0, eGRID2012V1_0_year09_DATA.xls, “ST09” worksheet, State annual CO2 output emission rate (lb/MWh)
A180: USAOH | B180: USA | C180: OH | D180: 1780.8858 | E180: 0.8077962107 | F180: eGRID2012 Version 1.0, eGRID2012V1_0_year09_DATA.xls, “ST09” worksheet, State annual CO2 output emission rate (lb/MWh)
A181: USAOK | B181: USA | C181: OK | D181: 1494.9868 | E181: 0.6781146057 | F181: eGRID2012 Version 1.0, eGRID2012V1_0_year09_DATA.xls, “ST09” worksheet, State annual CO2 output emission rate (lb/MWh)
A182: USAOR | B182: USA | C182: OR | D182: 363.5069 | E182: 0.1648839563 | F182: eGRID2012 Version 1.0, eGRID2012V1_0_year09_DATA.xls, “ST09” worksheet, State annual CO2 output emission rate (lb/MWh)
A183: USAPA | B183: USA | C183: PA | D183: 1140.311 | E183: 0.517236369 | F183: eGRID2012 Version 1.0, eGRID2012V1_0_year09_DATA.xls, “ST09” worksheet, State annual CO2 output emission rate (lb/MWh)
A184: USARI | B184: USA | C184: RI | D184: 895.4978 | E184: 0.4061909694 | F184: eGRID2012 Version 1.0, eGRID2012V1_0_year09_DATA.xls, “ST09” worksheet, State annual CO2 output emission rate (lb/MWh)
A185: USASC | B185: USA | C185: SC | D185: 824.6229 | E185: 0.3740426556 | F185: eGRID2012 Version 1.0, eGRID2012V1_0_year09_DATA.xls, “ST09” worksheet, State annual CO2 output emission rate (lb/MWh)
A186: USASD | B186: USA | C186: SD | D186: 914.3409 | E186: 0.4147380558 | F186: eGRID2012 Version 1.0, eGRID2012V1_0_year09_DATA.xls, “ST09” worksheet, State annual CO2 output emission rate (lb/MWh)
A187: USATN | B187: USA | C187: TN | D187: 1071.5353 | E187: 0.4860402363 | F187: eGRID2012 Version 1.0, eGRID2012V1_0_year09_DATA.xls, “ST09” worksheet, State annual CO2 output emission rate (lb/MWh)
A188: USATX | B188: USA | C188: TX | D188: 1243.1931 | E188: 0.5639029046 | F188: eGRID2012 Version 1.0, eGRID2012V1_0_year09_DATA.xls, “ST09” worksheet, State annual CO2 output emission rate (lb/MWh)
A189: USAUT | B189: USA | C189: UT | D189: 1854.495 | E189: 0.8411847822 | F189: eGRID2012 Version 1.0, eGRID2012V1_0_year09_DATA.xls, “ST09” worksheet, State annual CO2 output emission rate (lb/MWh)
A190: USAVA | B190: USA | C190: VA | D190: 994.3965 | E190: 0.4510506652 | F190: eGRID2012 Version 1.0, eGRID2012V1_0_year09_DATA.xls, “ST09” worksheet, State annual CO2 output emission rate (lb/MWh)
A191: USAVT | B191: USA | C191: VT | D191: 2.1716 | E191: 0.0009850211907 | F191: eGRID2012 Version 1.0, eGRID2012V1_0_year09_DATA.xls, “ST09” worksheet, State annual CO2 output emission rate (lb/MWh)
A192: USAWA | B192: USA | C192: WA | D192: 286.4813 | E192: 0.1299457318 | F192: eGRID2012 Version 1.0, eGRID2012V1_0_year09_DATA.xls, “ST09” worksheet, State annual CO2 output emission rate (lb/MWh)
A193: USAWI | B193: USA | C193: WI | D193: 1514.0902 | E193: 0.6867797622 | F193: eGRID2012 Version 1.0, eGRID2012V1_0_year09_DATA.xls, “ST09” worksheet, State annual CO2 output emission rate (lb/MWh)
A194: USAWV | B194: USA | C194: WV | D194: 2010.5044 | E194: 0.9119494557 | F194: eGRID2012 Version 1.0, eGRID2012V1_0_year09_DATA.xls, “ST09” worksheet, State annual CO2 output emission rate (lb/MWh)
A195: USAWY | B195: USA | C195: WY | D195: 2116.3624 | E195: 0.9599658368 | F195: eGRID2012 Version 1.0, eGRID2012V1_0_year09_DATA.xls, “ST09” worksheet, State annual CO2 output emission rate (lb/MWh)
A196: USAPuerto Rico | B196: USA | C196: Puerto Rico | D196: 1891.57 | E196: 0.8580017193 | F196: The Climate Registry's 2013Default Emission Factors. Table 14.1 US Emission Factors by eGRIDSubregion. "US Territories (not an eGRID Region)" from Department of Energy Guidance on Voluntary Reporting of Greenhouse Gases, Form EIA-1605 (2007), Appendix F,
A197: CanadaAlberta | B197: Canada | C197: Alberta | E197: 0.734 | F197: National Inventory Report, 1990-2011: Greenhouse Gas Sources and Sinks in Canada Part 3, Table A13-10
A198: CanadaBritish Columbia | B198: Canada | C198: British Columbia | E198: 0.0111 | F198: National Inventory Report, 1990-2011: Greenhouse Gas Sources and Sinks in Canada Part 3, Table A13-11
A199: CanadaManitoba | B199: Canada | C199: Manitoba | E199: 0.00328 | F199: National Inventory Report, 1990-2011: Greenhouse Gas Sources and Sinks in Canada Part 3, Table A13-8
A200: CanadaLabrador | B200: Canada | C200: Labrador | E200: 0.0202 | F200: National Inventory Report, 1990-2011: Greenhouse Gas Sources and Sinks in Canada Part 3, Table A13-2
... 18 more rows

Sheet FuelEFs (hidden)
A1: Fuel | B1: EF | C1: Units | D1: TCR Fuel Name | E1: Reference
A2: Natural gas | B2: 0.05302 | C2: kg CO2/cubic foot | D2: Natural gas | E2: The Climate Registry's 2013 Default Emission Factors, Table 12.1 U.S. Default Factors for Calculating CO2 Emissions from Fossil Fuel and Biomass Combustion
A3: Fuel Oil | B3: 10.20648 | C3: kg CO2/gallon | D3: Distilate Fuel Oil No. 2 | E3: The Climate Registry's 2013 Default Emission Factors, Table 12.1 U.S. Default Factors for Calculating CO2 Emissions from Fossil Fuel and Biomass Combustion (Residual Fuel Oil No.2)
A4: Kerosene | B4: 10.152 | C4: kg CO2/gallon | D4: Kerosene | E4: The Climate Registry's 2013 Default Emission Factors, Table 12.1 U.S. Default Factors for Calculating CO2 Emissions from Fossil Fuel and Biomass Combustion
A5: Propane | B5: 5.59286 | C5: kg CO2/gallon | D5: Propane | E5: The Climate Registry's 2013 Default Emission Factors, Table 13.1 U.S. Default Factors for Transport Fuels
A6: Gasoline | B6: 8.78 | C6: kg CO2/gallon | D6: Gasoline | E6: The Climate Registry's 2013 Default Emission Factors, Table 13.1 U.S. Default Factors for Transport Fuels
A7: Diesel Fuel | B7: 10.21 | C7: kg CO2/gallon | D7: Diesel Fuel | E7: The Climate Registry's 2013 Default Emission Factors, Table 13.1 U.S. Default Factors for Transport Fuels
A8: Aviation Gasoline | B8: 8.31 | C8: kg CO2/gallon | D8: Aviation Gasoline | E8: The Climate Registry's 2013 Default Emission Factors, Table 13.1 U.S. Default Factors for Transport Fuels
A9: Jet Fuel | B9: 9.75 | C9: kg CO2/gallon | D9: Jet Fuel (Jet A or A-1) | E9: The Climate Registry's 2013 Default Emission Factors, Table 13.1 U.S. Default Factors for Transport Fuels
A10: Kerosene | B10: 10.15 | C10: kg CO2/gallon | D10: Kerosene | E10: The Climate Registry's 2013 Default Emission Factors, Table 13.1 U.S. Default Factors for Transport Fuels
A11: RFO (Ships) | B11: 11.27 | C11: kg CO2/gallon | D11: Residual Fuel Oil (#5,6) | E11: The Climate Registry's 2013 Default Emission Factors, Table 13.1 U.S. Default Factors for Transport Fuels (RFO #6)
A12: Biodiesel (B100) | B12: 9.45 | C12: kg CO2/gallon | D12: Biodiesel (B100)* | E12: The Climate Registry's 2013 Default Emission Factors, Table 13.1 U.S. Default Factors for Transport Fuels
A13: B5 | B13: =0.05*B12+0.95*B7 -> 10.172 | C13: kg CO2/gallon | E13: 5% x Biodiesel + 95% x Diesel
A14: B20 | B14: =0.2*B12+0.8*B7 -> 10.058 | C14: kg CO2/gallon | E14: 20% x Biodiesel + 80% x Diesel
A15: B40 | B15: =0.4*B12+0.6*B7 -> 9.906 | C15: kg CO2/gallon | E15: 40% x Biodiesel + 60% x Diesel
A16: B99 | B16: =0.99*B12+0.01*B7 -> 9.4576 | C16: kg CO2/gallon | E16: 99% x Biodiesel + 1% x Diesel
A17: Ethanol (E100) | B17: 5.75 | C17: kg CO2/gallon | D17: Ethanol (E100)* | E17: The Climate Registry's 2013 Default Emission Factors, Table 13.1 U.S. Default Factors for Transport Fuels
A18: E85 | B18: =0.85*B17+0.15*B6 -> 6.2045 | C18: kg CO2/gallon | E18: 85%x Ethanol +15% gasoline
A19: LNG | B19: 4.46 | C19: kg CO2/gallon | D19: Liquefied Natural Gas (LNG)* | E19: The Climate Registry's 2013 Default Emission Factors, Table 13.1 U.S. Default Factors for Transport Fuels
A20: LPG | B20: 5.789690238 | C20: kg CO2/gallon | D20: Liquefied Petroleum Gas (LPG)* | E20: The Climate Registry's 2013 Default Emission Factors, Table 13.1 U.S. Default Factors for Transport Fuels
A21: CNG | B21: =B2*134.71 -> 7.1423242 | C21: kg CO2/gallon equivalent* (converted from kg CO2/std cubic feet) | D21: Compressed Natural Gas (CNG) | E21: The Climate Registry's 2013 Default Emission Factors, Table 13.1 U.S. Default Factors for Transport Fuels
C24: *The National Institute of Standards and Technology reports the mass of one GGE as 5.660 pounds of natural gas . The density of natural gas is 23.8 cubic feet per pound according to the American Petroleum Institute . Thus, a GGE of natural gas is equivalent to 134.71 cubic feet.

Sheet CBECs (hidden)
B1: Electricity | C1: Natural Gas | D1: Fuel Oil
A2: Principal Building Activity | B2: per Square Foot (kWh) | C2: per Square Foot (cubic feet) | D2: per Square Foot (gallons)
A3: Education .................... | B3: 11 | C3: 36.9 | D3: 0.18 | F3: http://www.eia.doe.gov/emeu/cbecs/cbecs2003/detailed_tables_2003/detailed_tables_2003.html#enduse03
A4: Food Sales ................... | B4: 49.4 | C4: 50.2 | D4: Q
A5: Food Service ................. | B5: 38.4 | C5: 141.2 | D5: Q
A6: Health Care .................. | B6: 22.9 | C6: 92.5 | D6: 0.04
A7: Inpatient .................. | B7: 27.5 | C7: 109.8 | D7: 0.04
A8: Outpatient ................. | B8: 16.1 | C8: 50.2 | D8: Q
A9: Lodging ...................... | B9: 13.5 | C9: 48.9 | D9: 0.12
A10: Retail (Other Than Mall)...... | B10: 14.3 | C10: 30.9 | D10: Q
A11: Office ....................... | B11: 17.3 | C11: 31.8 | D11: 0.03
A12: Public Assembly .............. | B12: 12.5 | C12: 36.4 | D12: 0.22
A13: Public Order and Safety ...... | B13: 15.3 | C13: 43.7 | D13: Q
A14: Religious Worship ............ | B14: 4.9 | C14: 30.3 | D14: 0.29
A15: Service ...................... | B15: 11 | C15: 54.1 | D15: Q
A16: Warehouse and Storage ........ | B16: 7.6 | C16: 23.4 | D16: 0.05
A17: Other ........................ | B17: 22.5 | C17: 67.6 | D17: Q
A18: Vacant ....................... | B18: 2.4 | C18: 23 | D18: Q

Sheet Cost (hidden)
A1: Source | B1: $ per standard unit | C1: Standard Unit | D1: Year | E1: Reference
A2: Electricity | B2: 0.1188 | C2: kWh | D2: 2012 | E2: http://www.eia.doe.gov/emeu/steo/pub/
A3: Natural Gas | B3: 0.01066 | C3: cubic foot | D3: 2012 | E3: http://www.eia.doe.gov/emeu/steo/pub/
A4: Fuel Oil | B4: 3.76 | C4: gallon | D4: 2012 | E4: Heating Oil from http://www.eia.doe.gov/emeu/steo/pub/
A5: Gasoline | B5: 3.63 | C5: gallon | D5: 2012 | E5: http://www.eia.doe.gov/emeu/steo/pub/
A6: Diesel | B6: 2.46 | C6: gallon | D6: 2012 | E6: http://www.eia.doe.gov/emeu/steo/pub/
A7: Biodiesel (B100) | B7: =AVERAGE(4.9,5.04) -> 4.97 | C7: gallon | D7: 2013 | E7: Average of Min and Max Values from http://www.ams.usda.gov/mnreports/lswagenergy.pdf
A8: B5 | B8: =B7 -> 4.97 | C8: gallon | E8: assume same as B100
A9: B20 | B9: =B8 -> 4.97 | C9: gallon | E9: assume same as B100
A10: B40 | B10: =B9 -> 4.97 | C10: gallon | E10: assume same as B100
A11: B99 | B11: =B10 -> 4.97 | C11: gallon | E11: assume same as B100
A12: LPG | B12: =AVERAGE(4.29,1.93) -> 3.11 | C12: gallon | D12: 2013 | E12: Average Cost in Los Angeles from http://www.altfuelprices.com/
A13: CNG | B13: =AVERAGE(2.9,2.99) -> 2.945 | C13: gallon | D13: 2013 | E13: Average Cost in Los Angeles from http://www.altfuelprices.com/
A14: LNG | B14: =AVERAGE(2.2,2.19) -> 2.195 | C14: gallon | D14: 2013 | E14: Average Cost in Los Angeles from http://www.altfuelprices.com/
A15: Kerosene | B15: 3.843 | C15: gallon | D15: 2012 | E15: U.S. Price excluding taxes from http://www.eia.gov/dnav/pet/pet_sum_mkt_a_EPPK_PTG_dpgal_a.htm
A16: Residual Fuel Oil | B16: 1.729 | C16: gallon | D16: 2010 | E16: Average U.S. Sales to End Users excluding taxes from http://www.eia.gov/dnav/pet/pet_pri_resid_dcu_nus_a.htm
A17: Propane | B17: 2.484 | C17: gallon | D17: 2013 | E17: http://www.eia.gov/petroleum/heatingoilpropane/ | F17: Note: Steo no longer collects propane data. This is the only source for propane data, though only ~24 states collect data
A18: E85 | B18: =AVERAGE(3.69,3.49) -> 3.59 | C18: gallon | D18: 2013 | E18: Average Cost in Los Angeles from http://www.altfuelprices.com/
A19: Ethanol | B19: =AVERAGE(2.55,2.75) -> 2.65 | C19: gallon | D19: 2013 | E19: Average of Min and Max Values from http://www.ams.usda.gov/mnreports/lswagenergy.pdf

Sheet MPG (hidden)
A1: VehicleType | B1: Fuel Efficiency (mpg) | C1: US DOT classification | D1: Reference Classification | G1: Type | H1: Gas Saving Ratio
A2: Cars | B2: 23.6 | C2: Passenger Cars | D2: Cars- Ref 1, Page 2 | G2: Hybrid SUVs | H2: =(1-B2/B9) -> 0.3948717949
A3: Motorcycles | B3: 56.2 | C3: Motorcycles | D3: Motorcycles- Ref 2 | G3: Hybrid Cars | H3: =(1-B5/B8) -> 0.4166666667
A4: Buses | B4: 6 | C4: Buses | D4: Buses- Ref 3, Page 5
A5: Vans, Pickups, SUVs | B5: 17.5 | C5: Other 2-Axel 4 Tire vehicles | D5: Light Truck 2-Axel 4 Tire- Ref 1, Page 2
A6: Trucks (<18 wheel) | B6: 7.3 | C6: Single-Unit 2-axles 6-tire or more trucks | D6: Class 3-8 single-unit trucks, 2011- Ref 1, Page 131
A7: 18 Wheelers | B7: 5.8 | C7: Combination Trucks | D7: Class 7-8 combination trucks, 2011- Ref 1, Page 131
A8: Hybrid SUVs | B8: 30 | C8: Average of hybrid SUVs | D8: http://www.fueleconomy.gov/feg/hybrid_sbs_SUVs.shtml
A9: Hybrid Cars | B9: 39 | C9: Average of hybrid cars | D9: http://www.fueleconomy.gov/feg/hybrid_sbs_cars.shtml
A10: All Vehicles | B10: 23.8 | C10: All Motor Vehicles | D10: http://www.epa.gov/otaq/fetrends.htm
A12: Reference:
A13: 1-Transportation Energy Data Book: Edition 32 can be found online at: cta.ornl.gov/data
A14: 2-US Department of Transportation, Federal Highway Administration Office of Highway Policy Information, Highway Statistics 2007, December 2008, Table VM-1, Annual Vehicle Distance Traveled in Miles and Related Data-2007, Average miles traveled per gallon of fuel consumed accessed from http://www.fhwa.dot.gov/policyinformation/statistics/2007/
A15: 3-John Dunham & Associates (2010). Motorcoach Census 2011. A Benchmarking Study of the Size and Activity of the Motorcoach Industry in the United States and Canada in 2010. American Bus Association Foundation. Retrieved September 5, 2013 from http://www.buses.org/files/Foundation/Final_Motorcoach_Census_2011_7-3-2012.pdf.
B19: 1000 | C19: miles
B20: =B19/B2 -> 42.37288136 | C20: gal
B21: =B19/B9 -> 25.64102564 | C21: gal | D21: =B20-B21 -> 16.73185571
B22: =B20/B21 -> 1.652542373
B23: =B21/B20 -> 0.6051282051 | D23: =B20*(1-B23) -> 16.73185571
B25: 100 | C25: gal | D25: hybrid
B26: =B22*B25 -> 165.2542373 | C26: gal | D26: normal
B28: 8

Sheet AirTravel (hidden)
A1: Length Classification | B1: EF (kg CO2/passenger mile) | C1: Max Distance (miles) | D1: Total kg CO2 pkm* | E1: DEFRA Classification | G1: Plane Type | H1: Fuel Type | I1: Gallons per Hour | J1: miles per gallon | M1: Plane Type | N1: Model | O1: Gallons per Hour | P1: Reference
A2: Short | B2: =D2*$D$7 -> 0.2896685624 | C2: =463/D7 -> 287.694862 | D2: =109%*0.16513 -> 0.1799917 | E2: Domestic Average | G2: Chartered Commercial Jet | H2: jet fuel | I2: =ROUND(SUMIF(M:M, G2,O:O )/COUNTIF(M:M, G2), -1) -> 950 | J2: =ROUND(1/2.65,1) -> 0.4 | K2: Climate Leaders Table 4: Fuel Economy Values by Vehicle Type | M2: Chartered Commercial Jet | N2: 737-800 | O2: 850 | P2: http://www.seattlepi.com/business/368286_air25.html
A3: Medium | B3: =D3*$D$7 -> 0.1654020999 | C3: =1108/D7 -> 688.479281 | D3: =1.09*0.09429 -> 0.1027761 | E3: Short-Haul International Average | G3: Large Private Jet | H3: jet fuel | I3: =ROUND(SUMIF(M:M, G3,O:O )/COUNTIF(M:M, G3), -1) -> 440 | J3: =ROUND(1.3, 1) -> 1.3 | K3: http://www.ehow.com/about_5665316_private-suv-jet-fuel-cost.html | M3: Chartered Commercial Jet | N3: MD-80 | O3: 1050 | P3: http://www.seattlepi.com/business/368286_air25.html
A4: Long | B4: =D4*$D$7 -> 0.1892590153 | D4: =1.09*0.10789 -> 0.1176001 | E4: Long-Haul International Average | G4: Small Private Jet | H4: jet fuel | I4: =ROUND(SUMIF(M:M, G4,O:O )/COUNTIF(M:M, G4), -1) -> 220 | J4: 4 | K4: http://www.ehow.com/about_5665316_private-suv-jet-fuel-cost.html | L4: 10 | M4: Small Private Jet | N4: Citation Excel | O4: 250 | P4: Joe Bellas, Universal carbon calculator factors based on equipment manual
A5: Average | B5: =AVERAGE(B2:B4) -> 0.2147765592 | G5: Helicopter | H5: aviation gasoline | I5: =ROUND(SUMIF(M:M, G5,O:O )/COUNTIF(M:M, G5), -1) -> 50 | J5: =ROUND(1.65, 1) -> 1.7 | K5: http://en.wikipedia.org/wiki/Fuel_efficiency_in_transportation | L5: 10 | M5: Small Private Jet | N5: Cessna 50XL Citation | O5: 166 | P5: Joe Bellas, Universal carbon calculator factors based on equipment manual
M6: Small Private Jet | N6: ACG 39 / Lear 45 | O6: 184 | P6: Joe Bellas, Universal carbon calculator factors based on equipment manual
D7: 1.609344 | E7: km = 1 mile | M7: Small Private Jet | N7: Metro III | O7: 80 | P7: Joe Bellas, Universal carbon calculator factors based on equipment manual
M8: Helicopter | N8: Eurocopter 350 B-2 | O8: 45 | P8: Joe Bellas, Universal carbon calculator factors based on equipment manual
D9: *Includes km uplift factor of 109% | L9: 16 | M9: Large Private Jet | N9: G5 | O9: 370 | P9: Joe Bellas, Universal carbon calculator factors based on equipment manual
A10: Reference: | L10: 16 | M10: Large Private Jet | N10: G5 | O10: 510 | P10: Joe Bellas, Universal carbon calculator factors based on equipment manual
A11: Department for Environment, Food and Rural Affairs (2012). 2012 Guidelines to Defra / DECC’s GHG Conversion Factors for Company Reporting. Version 1.0 (updated May 28). Annex 6 Passenger Transport, Table 6l: Air Passenger Transport Conversion Factors | M11: Small Private Jet | N11: Charter - C750 | O11: 316 | P11: Joe Bellas, Universal carbon calculator factors based on equipment manual
M12: Small Private Jet | N12: Charter - Falcon 2000 | O12: 254 | P12: Joe Bellas, Universal carbon calculator factors based on equipment manual
M13: Helicopter | N13: Helicopter - A Star 350 | O13: 45 | P13: Joe Bellas, Universal carbon calculator factors based on equipment manual
A14: 2010 Emission Factor | B14: 2012 Emission Factor | M14: Large Private Jet | N14: Charter - G IV | O14: 450 | P14: Joe Bellas, Universal carbon calculator factors based on equipment manual
A15: (kg CO2e per passenger mile) | B15: (kg CO2e per passenger mile) | C15: % difference | G15: Plane Type | H15: Number of Passengers | M15: Helicopter | N15: Helicopter - A Star 350 | O15: 47 | P15: Joe Bellas, Universal carbon calculator factors based on equipment manual
A16: 0.304 | B16: =109%*0.16685*D7 -> 0.2926857606 | C16: =(B16-A16)/A16 -> -0.03721789284 | G16: Chartered Commercial Jet | H16: >20 | M16: Helicopter | N16: Helicopter - Twin Star | O16: 55 | P16: Joe Bellas, Universal carbon calculator factors based on equipment manual
A17: 0.172 | B17: =1.09*0.09522*D7 -> 0.1670334919 | C17: =(B17-A17)/A17 -> -0.02887504714 | G17: Large Private Jet | H17: 14-20 | M17: Helicopter | N17: Helicopter–EuroAS350BA | O17: 43 | P17: Joe Bellas, Universal carbon calculator factors based on equipment manual
A18: 0.2 | B18: =1.09*0.10896*D7 -> 0.1911359932 | C18: =(B18-A18)/A18 -> -0.04432003379 | G18: Small Private Jet | H18: 5-13 | M18: Small Private Jet | N18: Citation 550 | O18: 350 | P18: Joe Bellas, Universal carbon calculator factors based on equipment manual
M19: Helicopter | N19: Helecoptor – Bell B212 | O19: 50 | P19: Joe Bellas, Universal carbon calculator factors based on equipment manual
M20: Small Private Jet | N20: Cessna Citation CJ2 | O20: 140 | P20: http://www.jetadvisors.com/aircraft-specs/Description-CessnaCitationCJ2-SmallCabinLightJets.htm

Sheet HotelFactors (hidden)
A1: Room Type | B1: Square Footage | C1: kWh/square foot/yr | D1: kWh/yr | E1: KBtu/sq foot/yr | F1: natural gas/yr | G1: Year
A2: Economy Hotel | B2: 535 | C2: 10.31 | D2: =B2*C2 -> 5515.85 | E2: 42.45 | F2: =E2*Lookups!$E$4/100*B2 -> 0.2209216926 | G2: 2005 | H2: hotel_casino_analysis.pdf, Table 16 & 17
A3: Midscale Hotel | B3: 656 | C3: 16.57 | D3: =B3*C3 -> 10869.92 | E3: 54.04 | F3: =E3*Lookups!$E$4/100*B3 -> 0.3448466926 | G3: 2005 | H3: hotel_casino_analysis.pdf, Table 16 & 18
A4: Upscale Hotel | B4: 842 | C4: 14.96 | D4: =B4*C4 -> 12596.32 | E4: 40.57 | F4: =E4*Lookups!$E$4/100*B4 -> 0.3322951362 | G4: 2005 | H4: hotel_casino_analysis.pdf, Table 16 & 19
A5: Luxury Hotel | B5: 905 | C5: 18.18 | D5: =B5*C5 -> 16452.9 | E5: 49.01 | F5: =E5*Lookups!$E$4/100*B5 -> 0.4314596304 | G5: 2005 | H5: hotel_casino_analysis.pdf, Table 16 & 20
A6: Apartment/Condo | B6: Apartments in 5 or More Unit Buildings | D6: 11320 | G6: 2009 | H6: Residential Energy Consumption Survey (RECS) Table CE2.1 Household Site Fuel Consumption in the U.S., Totals and Averages, 2009 (Released January 2013)
A7: Average House | B7: Total US | D7: 6376 | G7: 2009 | H7: Residential Energy Consumption Survey (RECS) Table CE2.1 Household Site Fuel Consumption in the U.S., Totals and Averages, 2009 (Released January 2013)
A8: Large House | B8: >4000 | D8: 17498 | G8: 2009 | H8: Residential Energy Consumption Survey (RECS) Table CE2.1 Household Site Fuel Consumption in the U.S., Totals and Averages, 2009 (Released January 2013)
A11: Housing Type | B11: Casino Analysis | C11: Examples
A12: Economy Hotel | B12: Economy and Budget | C12: Motel 6, Red Roof, Days Inn
A13: Midscale Hotel | B13: Midscale w/ Food and Beverage | C13: Holiday Inn, Ramada, Best Western
A14: Upscale Hotel | B14: Upscale | C14: Marriot, Hilton
A15: Luxury Hotel | B15: Upper Upscale | C15: Four Seasons, Ritz Carlton
A16: Apartment/Condo | C16: <1000 square feet
A17: Average House | C17: 1000 - 4000 square feet
A18: Large House | C18: >4000 Square feet
F20: Room/House Type

Sheet Equivalents (hidden)
B1: http://www.epa.gov/cleanenergy/energy-resources/calculator.html
G2: Homes per Year
B3: 1 MT CO2 Emissions is equivalent to*:
B5: Annual energy use from
B6: =1/19.43 -> 0.05146680391 | C6: homes for one year
B8: Annual emissions from
B9: =1/4.8 -> 0.2083333333 | C9: passenger vehicles
B11: =1/0.039 -> 25.64102564 | C11: tree seedlings grown for 10 years
B13: =1/0.00892 -> 112.1076233 | C13: gallons of gasoline consumed
G17: Passenger Vehicles
G24: Tree Seedlings
G29: Gallons of Gasoline Consumed

Sheet Sheet2 (hidden)
A1: Production Info Data entry field | B1: Film | C1: TV | D1: Comments
A2: Category of Film by Budget: | B2: X | D2: Required benchmark values with dropdown lists as defined in the proposal; shoot days and number of episodes must be whole numbers
A3: Type of TV Production: | C3: X
A4: Region: | B4: X | C4: X
A5: Total Number of Shoot Days: | B5: X | C5: X
A6: Total Number of 1st Unit Shoot Days: | B6: X
A7: Total Number of 2nd Unit Shoot Days: | B7: X
A8: Other/Additional Photography Shoot Days: | B8: X
A9: Number of On Location Days: | B9: X | C9: X
A10: Number of Stage Days: | B10: X | C10: X
A11: Number of Episodes: | C11: X
A12: Main Production Office Location: | B12: X | C12: X | D12: Free Field
A13: Start Date: | B13: X | C13: X
A14: End Date: | B14: X | C14: X
A15: Number of Days for Prep: | B15: X | C15: X
A16: Number of Weeks for Shooting: | D16: REMOVE
A17: Number of Days for Wrap: | B17: X | C17: X
A18: Season Number: | C18: X

Sheet Change Log (hidden)
A1: Date | B1: Name | C1: Version | D1: Notes
A2: 2013-12-04 | B2: CN | C2: 3.1.1 | D2: started EAR/Setting/EAR Metrics; instructions for Megan
A3: 2013-12-11 | B3: CN | C3: 3.1.2 | D3: updated production info;
A4: 2013-12-17 | B4: CN | C4: 3.1.3 | D4: Added EAR and EAR Metrics drafts
A5: 2013-12-18 | B5: MN | C5: 3.1.4 | D5: Completed Megan Task 1
A6: 2013-12-23 | B6: CN | C6: 3.1.5 | D6: EAR metrics- fuel use, plywood, donations, formatting
A7: 2013-12-31 | B7: MN | C7: 3.1.6 | D7: Completed Megan Task 2 & 3
A8: 2013-12-31 | B8: MN | C8: 3.1.7 | D8: Completed Megan Task 4 & 5 (tab EAR Metrics only)
A9: 2014-01-02 | B9: CN | C9: 3.1.8 | D9: EAR graphics (partial)
A10: 2014-01-02 | B10: MN | C10: 3.1.9 | D10: Completed Task # 7 (Settings)
A11: 2014-01-03 | B11: MN | C11: 3.1.10 | D11: Task # 6 Completed
A12: 2014-01-07 | B12: CN | C12: 3.1.11 | D12: QA/QC for MN, updated formatting, error check, etc.
A13: 2014-01-08 | B13: LA | C13: 3.1.12
A14: 2014-01-08 | B14: MN | C14: 3.1.13 | D14: Updates per "Megan Tasks" to Original Tasks, Kept Data
A15: 2014-01-09 | B15: MN | C15: 3.1.14 | D15: Updates per "Megan Tasks" to Original Tasks, Kept Data
A16: 2014-01-09 | B16: MN | C16: 3.1.15 | D16: Updates per "Megan Tasks" to Original Tasks, Kept Data
A17: 2014-01-09 | B17: MN | C17: 3.1.16 | D17: Updates per "Megan Tasks" to Original Tasks, Kept Data
A18: 2014-01-10 | B18: MN | C18: 3.1.17 | D18: Updated to complete "Megan Tasks"
A19: 2014-01-21 | B19: CN | C19: 3.1.17-19 | D19: testing and update to format, calculations and functionality
A20: 2014-01-23 | B20: CN | C20: 3.1.20 | D20: updates per initial demo feedback
A21: 2014-01-23 | B21: MN | C21: 3.1.21 | D21: updates to worksheet protection in VBA code per CN/client

Sheet Sheet3 (hidden)

Sheet Version (hidden)
A1: Version | B1: Date | C1: Changes
A2: 3.3.0 | B2: 2014-10-10 | C2: Updated Plywood module to remove "Non Lauan Ply/Other" and change "Plywood Alternative" to "Lauan Alternative"; Modified summary tab to include "version number" Formatting changes on production info and fuel tabs Added ability to enter total board feet in Plywood section Added Percent Source Contribution graph to p1 EAR and moved Additional measures and challenges box to p2.
